Organisation Name,Effective Date,Purch Date,Service Area,Expense Area,Beneficiary,Net amount,    Tax,     Gross,G/L Acct Long Text,MCC Description
Buckinghamshire Council,30.09.2022,30.09.2022,Communities,Culture & Leisure - Communities Dir,BIGDUG LIMITED,71.65,14.33,85.98,Furniture Fittings & IT,Hardware Equipment & Suppliers
Buckinghamshire Council,30.09.2022,30.09.2022,Communities,Culture & Leisure - Communities Dir,BIGDUG LIMITED,0.01,0,0.01,Furniture Fittings & IT,Hardware Equipment & Suppliers
Buckinghamshire Council,30.09.2022,30.09.2022,Children's Services,Education & Childrens Services - CS Dir,TOPGOLF UK,225,0,225,Subsistence,Restaurants
Buckinghamshire Council,30.09.2022,30.09.2022,Children's Services,Education & Childrens Services - CS Dir,ARGOS LTD,207.95,0,207.95,Leaving Care - Grants for Care Leavers,Discount stores
Buckinghamshire Council,30.09.2022,30.09.2022,Children's Services,Education & Childrens Services - CS Dir,ARGOS LTD,38.95,0,38.95,Leaving Care - Grants for Care Leavers,Discount stores
Buckinghamshire Council,30.09.2022,30.09.2022,Children's Services,Education & Childrens Services - CS Dir,ARGOS LTD,103,0,103,Leaving Care - Grants for Care Leavers,Discount stores
Buckinghamshire Council,30.09.2022,30.09.2022,Children's Services,Education & Childrens Services - CS Dir,WWW.BUCKINGHAMSHIRE.GOV,204.62,0,204.62,Leaving Care  - Financial Assistance,Government services
Buckinghamshire Council,30.09.2022,30.09.2022,Children's Services,Education & Childrens Services - CS Dir,TESCO STORES 2041,15.5,0,15.5,Awaiting Coding,Grocery stores
Buckinghamshire Council,30.09.2022,30.09.2022,Children's Services,Education & Childrens Services - CS Dir,TAXIPAY,85,0,85,Staff Travelling Expenses,Taxicabs & limousines
Buckinghamshire Council,30.09.2022,30.09.2022,Children's Services,Education & Childrens Services - CS Dir,TAXIPAY,85,0,85,Staff Travelling Expenses,Taxicabs & limousines
Buckinghamshire Council,30.09.2022,30.09.2022,Children's Services,Education & Childrens Services - CS Dir,TAXIPAY,100,0,100,Staff Travelling Expenses,Taxicabs & limousines
Buckinghamshire Council,30.09.2022,30.09.2022,Children's Services,Education & Childrens Services - CS Dir,TRAINLINE,69.3,0,69.3,Staff Travelling Expenses,Passenger railways
Buckinghamshire Council,30.09.2022,30.09.2022,Children's Services,Education & Childrens Services - CS Dir,TAXIPAY,100,0,100,Sec 20/31: Transport,Taxicabs & limousines
Buckinghamshire Council,30.09.2022,30.09.2022,Children's Services,Education & Childrens Services - CS Dir,TRAINLINE,229.5,0,229.5,Sec 20/31: Transport,Passenger railways
Buckinghamshire Council,30.09.2022,30.09.2022,Deputy Chief Executive,Communities - DCE,AO RETAIL LIMITED,338.99,0,338.99,Other Personal Needs,Household appliance stores
Buckinghamshire Council,30.09.2022,30.09.2022,Deputy Chief Executive,Communities - DCE,AO RETAIL LIMITED,"1,038.99",0,"1,038.99",Other Personal Needs,Household appliance stores
Buckinghamshire Council,30.09.2022,30.09.2022,Deputy Chief Executive,Communities - DCE,AO RETAIL LIMITED,308.99,0,308.99,Other Personal Needs,Household appliance stores
Buckinghamshire Council,30.09.2022,30.09.2022,Deputy Chief Executive,Communities - DCE,FLOGAS BRITAIN LIMITED,188.7,0,188.7,Petrol,Fuel dealers
Buckinghamshire Council,30.09.2022,30.09.2022,Resources,AH&R - Res Dir,SWAN RIDER,800,0,800,Staff Travelling Expenses,Transportation services
Buckinghamshire Council,30.09.2022,30.09.2022,Communities,Transport - Communities Dir,TOOLSTATION LTD,281.48,0,281.48,General Repairs & Maintenance,Timber & building supplies
Buckinghamshire Council,30.09.2022,30.09.2022,Adults and Health,Health & Wellbeing - Adults & Health Dir,Wiltshire Farm Foods,78.26,0,78.26,General Provisions (Food),Misc Food stores
Buckinghamshire Council,30.09.2022,30.09.2022,,,AMZNMktplace,13.98,0,13.98,Awaiting Coding,Miscellaneous retail
Buckinghamshire Council,30.09.2022,30.09.2022,Communities,Climate Change & Environment - Community,TWITTER ONLINE ADS,11.6,0,11.6,Waste Prevention costs,Advertising services
Buckinghamshire Council,30.09.2022,30.09.2022,Adults and Health,Communities - Adults & Health,AMZNMKTPLACE,86,0,86,Protective Clothing & Uniforms,Miscellaneous retail
Buckinghamshire Council,30.09.2022,30.09.2022,Resources,AH&R - Res Dir,THE FIVE ARROWS HOTEL,100,0,100,Other Employees Expenses,"Hotels, motels & resorts"
Buckinghamshire Council,30.09.2022,30.09.2022,Deputy Chief Executive,Communities - DCE,AMERSHAM HOSPITAL,3.5,0,3.5,Staff Travelling Expenses,Car parking & garages
Buckinghamshire Council,30.09.2022,30.09.2022,Adults and Health,Health & Wellbeing - Adults & Health Dir,ASDA GROCERIES ONLINE,106.9,0,106.9,Awaiting Coding,Grocery stores
Buckinghamshire Council,30.09.2022,30.09.2022,Children's Services,Education & Childrens Services - CS Dir,ANNA FREUD CENTRE,165,0,165,"Courses, Conference and Seminar Fees",Charitable organisations
Buckinghamshire Council,30.09.2022,30.09.2022,Children's Services,Education & Childrens Services - CS Dir,HTTP://WWW.HYDRO-X.CO.,76.74,0,76.74,Miscellaneous (Other)  Expenses,Chemical products
Buckinghamshire Council,30.09.2022,30.09.2022,Children's Services,Education & Childrens Services - CS Dir,WYCOMBE SWAN,2.2,0,2.2,Subsistence,Restaurants
Buckinghamshire Council,30.09.2022,30.09.2022,Communities,Culture & Leisure - Communities Dir,HALFORDS 0529,59.34,11.87,71.21,Petrol,"Bicycle shops, sales & service"
Buckinghamshire Council,30.09.2022,30.09.2022,Resources,AH&R - Res Dir,HOLIDAY INNS,173.63,0,173.63,"Courses, Conference and Seminar Fees",Holiday Inn
Buckinghamshire Council,30.09.2022,30.09.2022,Adults and Health,Health & Wellbeing - Adults & Health Dir,Amazon Prime,8.99,0,8.99,Stationery & Office Supplies,Continuous subscriptions
Buckinghamshire Council,30.09.2022,30.09.2022,Resources,AH&R - Res Dir,GMO GLOBALSIGN LIM,"1,243.20",0,"1,243.20",Annual Licence (IT),Computer network information services
Buckinghamshire Council,30.09.2022,30.09.2022,Children's Services,Education & Childrens Services - CS Dir,TRAVELODGE GB0000,292.67,0,292.67,Sec 17: Financial Assistance,Travelodge
Buckinghamshire Council,30.09.2022,30.09.2022,,,FACEBK FLL8AKTPN2,840,0,840,Advertising,Advertising services
Buckinghamshire Council,30.09.2022,30.09.2022,Children's Services,Education & Childrens Services - CS Dir,Hobbycraft,21,0,21,Awaiting Coding,Art & craft shops
Buckinghamshire Council,30.09.2022,30.09.2022,"Planning, Growth & Sustainability",Housing & Homelessness & Regulatory PGS,IKEA LTD SHOP ONLINE,-190,0,-190,Furniture,Furniture & home furnishing
Buckinghamshire Council,30.09.2022,30.09.2022,Children's Services,Education & Childrens Services - CS Dir,ANNA FREUD CENTRE,22.85,0,22.85,Health & Safety Supplies & Services,Charitable organisations
Buckinghamshire Council,30.09.2022,30.09.2022,Children's Services,Education & Childrens Services - CS Dir,TIMPSON LTD,12,0,12,General Repairs & Maintenance,Miscellaneous retail
Buckinghamshire Council,30.09.2022,30.09.2022,Children's Services,Education & Childrens Services - CS Dir,AMZNMKTPLACE,38.62,0,38.62,Consumable Supplies,Miscellaneous retail
Buckinghamshire Council,30.09.2022,30.09.2022,Children's Services,Education & Childrens Services - CS Dir,TRAINLINE.COM,66.19,0,66.19,Staff Travelling Expenses,Passenger railways
Buckinghamshire Council,30.09.2022,30.09.2022,Children's Services,Education & Childrens Services - CS Dir,TRAINLINE.COM,57.23,0,57.23,Staff Travelling Expenses,Passenger railways
Buckinghamshire Council,30.09.2022,30.09.2022,Children's Services,Education & Childrens Services - CS Dir,BUCKINGHAM HOTELS,446,0,446,"Courses, Conference and Seminar Fees","Hotels, motels & resorts"
Buckinghamshire Council,30.09.2022,30.09.2022,Resources,AH&R - Res Dir,TAXIPAY,150,0,150,Staff Travelling Expenses,Taxicabs & limousines
Buckinghamshire Council,30.09.2022,29.09.2022,Communities,Housing & Homelessness & Regulatory Comm,AMZNMKTPLACE,7.99,0,7.99,Stationery & Office Supplies,Miscellaneous retail
Buckinghamshire Council,30.09.2022,29.09.2022,Children's Services,Education & Childrens Services - CS Dir,BLUE PEPPER DESIGN,210,0,210,Photocopiers,Photocopy & reproduction services
Buckinghamshire Council,30.09.2022,29.09.2022,Resources,AH&R - Res Dir,THE COUNTY HOTEL,915,0,915,"Courses, Conference and Seminar Fees","Hotels, motels & resorts"
Buckinghamshire Council,30.09.2022,29.09.2022,CC Obsolete Cost Centres,Obsolete Cost Centres,PREMIER INN44011835,111.49,0,111.49,"Courses, Conference and Seminar Fees",Premier Inn
Buckinghamshire Council,30.09.2022,29.09.2022,Resources,AH&R - Res Dir,Hotel at Booking.com,69,0,69,"Courses, Conference and Seminar Fees","Hotels, motels & resorts"
Buckinghamshire Council,30.09.2022,29.09.2022,Resources,AH&R - Res Dir,FREEDOM PROGRAMME LIMITED,12,0,12,Awaiting Coding,Schools
Buckinghamshire Council,30.09.2022,29.09.2022,Communities,Housing & Homelessness & Regulatory Comm,THE HORSE TRUST,95,0,95,Course Fees & Post Entry Training,Charitable organisations
Buckinghamshire Council,30.09.2022,29.09.2022,Communities,Housing & Homelessness & Regulatory Comm,THE HORSE TRUST,95,0,95,Course Fees & Post Entry Training,Charitable organisations
Buckinghamshire Council,30.09.2022,29.09.2022,Communities,Housing & Homelessness & Regulatory Comm,THE HORSE TRUST,95,0,95,Course Fees & Post Entry Training,Charitable organisations
Buckinghamshire Council,30.09.2022,29.09.2022,Children's Services,Education & Childrens Services - CS Dir,VILLAGE HOTEL LEEDS SOUTH,104.7,0,104.7,Staff Travelling Expenses,"Hotels, motels & resorts"
Buckinghamshire Council,30.09.2022,29.09.2022,Children's Services,Education & Childrens Services - CS Dir,AQUA VALE SWIMMING,9.2,0,9.2,Awaiting Coding,"Member clubs, sport, recreation & golf"
Buckinghamshire Council,30.09.2022,29.09.2022,Communities,Climate Change & Environment - Community,EROS TOOLS,60,0,60,Awaiting Coding,"Equipment, tool, furniture hire & leasing"
Buckinghamshire Council,30.09.2022,29.09.2022,Children's Services,Education & Childrens Services - CS Dir,A1 TAXI SERVICE,264,0,264,Staff Travelling Expenses,Taxicabs & limousines
Buckinghamshire Council,30.09.2022,29.09.2022,Children's Services,Education & Childrens Services - CS Dir,BRITISH A,138.92,0,138.92,Staff Travelling Expenses,British Airways
Buckinghamshire Council,30.09.2022,29.09.2022,Children's Services,Education & Childrens Services - CS Dir,VOUCHER EXPRESS,300,0,300,Long Service Awards,Misc business services
Buckinghamshire Council,30.09.2022,29.09.2022,Communities,Climate Change & Environment - Community,AMZNMktplace,325.23,0,325.23,Awaiting Coding,Miscellaneous retail
Buckinghamshire Council,30.09.2022,29.09.2022,"Planning, Growth & Sustainability",AH&R - PGS Dir,WREN DAVIS LIMITED,129.2,0,129.2,Awaiting Coding,Grocery stores
Buckinghamshire Council,30.09.2022,29.09.2022,Children's Services,Education & Childrens Services - CS Dir,TAXIPAY,100,0,100,Sec 20/31: Transport,Taxicabs & limousines
Buckinghamshire Council,30.09.2022,29.09.2022,Resources,AH&R - Res Dir,UK CARS (HIGH WYCOMBE),200,0,200,Staff Travelling Expenses,Taxicabs & limousines
Buckinghamshire Council,30.09.2022,29.09.2022,Children's Services,Education & Childrens Services - CS Dir,TESCO STORES 2041,58.25,0,58.25,General Provisions (Food),Grocery stores
Buckinghamshire Council,30.09.2022,29.09.2022,Communities,Culture & Leisure - Communities Dir,FAST KEY SERVICES LIMI,6.23,1.25,7.48,Administrative Equipment & Tools,Misc business services
Buckinghamshire Council,30.09.2022,29.09.2022,Communities,Transport - Communities Dir,WAITROSE 871,9.6,0,9.6,Miscellaneous (Other)  Expenses,Grocery stores
Buckinghamshire Council,30.09.2022,29.09.2022,"Planning, Growth & Sustainability",AH&R - PGS Dir,AMZNMktplace,16.98,0,16.98,Awaiting Coding,Miscellaneous retail
Buckinghamshire Council,30.09.2022,29.09.2022,Communities,Housing & Homelessness & Regulatory Comm,AMZNMKTPLACE,3.32,0.67,20.87,Cleaning Materials,Miscellaneous retail
Buckinghamshire Council,30.09.2022,29.09.2022,Communities,Housing & Homelessness & Regulatory Comm,AMZNMKTPLACE,14.05,2.81,16.86,Cleaning Materials,Miscellaneous retail
Buckinghamshire Council,30.09.2022,29.09.2022,Communities,Housing & Homelessness & Regulatory Comm,AMZNMKTPLACE,0.02,0,0.02,Cleaning Materials,Miscellaneous retail
Buckinghamshire Council,30.09.2022,29.09.2022,"Planning, Growth & Sustainability",AH&R - PGS Dir,AMAZON.CO.UK,13.85,0,13.85,Administrative Equipment & Tools,Direct sales companies
Buckinghamshire Council,30.09.2022,29.09.2022,Children's Services,Education & Childrens Services - CS Dir,TICKETS 83175512,516,0,516,Awaiting Coding,Theatres and ticket agencies
Buckinghamshire Council,30.09.2022,29.09.2022,Deputy Chief Executive,Communities - DCE,CHILTERN POOL,2.7,0,2.7,General Provisions (Food),"Member clubs, sport, recreation & golf"
Buckinghamshire Council,30.09.2022,29.09.2022,Adults and Health,Health & Wellbeing - Adults & Health Dir,MILK AND MORE (RECUR,13.79,0,13.79,General Provisions (Food),Dairy produce stores
Buckinghamshire Council,30.09.2022,29.09.2022,Communities,Transport - Communities Dir,SP BOXESANDCASESUK,29.62,0,29.62,Miscellaneous (Other)  Expenses,Hardware stores
Buckinghamshire Council,30.09.2022,29.09.2022,Children's Services,Education & Childrens Services - CS Dir,AMZNMKTPLACE,94.2,0,94.2,"Books, Records, Films & Oth Publications",Miscellaneous retail
Buckinghamshire Council,30.09.2022,29.09.2022,Children's Services,Education & Childrens Services - CS Dir,AMZNMktplace,13.98,0,13.98,Awaiting Coding,Miscellaneous retail
Buckinghamshire Council,30.09.2022,29.09.2022,Children's Services,Education & Childrens Services - CS Dir,AMZNMktplace,19.87,0,19.87,Awaiting Coding,Miscellaneous retail
Buckinghamshire Council,30.09.2022,29.09.2022,Resources,AH&R - Res Dir,BUCKINGHAM HOTELS,840,0,840,"Courses, Conference and Seminar Fees","Hotels, motels & resorts"
Buckinghamshire Council,30.09.2022,29.09.2022,Resources,AH&R - Res Dir,BUCKINGHAM HOTELS,777.6,0,777.6,"Courses, Conference and Seminar Fees","Hotels, motels & resorts"
Buckinghamshire Council,30.09.2022,29.09.2022,Resources,AH&R - Res Dir,BUCKINGHAM HOTELS,864,0,864,"Courses, Conference and Seminar Fees","Hotels, motels & resorts"
Buckinghamshire Council,30.09.2022,29.09.2022,Resources,AH&R - Res Dir,BUCKINGHAM HOTELS,777.6,0,777.6,"Courses, Conference and Seminar Fees","Hotels, motels & resorts"
Buckinghamshire Council,30.09.2022,29.09.2022,Children's Services,Education & Childrens Services - CS Dir,THE WINDERMERE,80,0,80,"Courses, Conference and Seminar Fees","Hotels, motels & resorts"
Buckinghamshire Council,30.09.2022,29.09.2022,Resources,AH&R - Res Dir,AGODA.COM BEST WESTE,69.1,0,69.1,Staff Travelling Expenses,Travel agencies
Buckinghamshire Council,30.09.2022,29.09.2022,Resources,AH&R - Res Dir,TRAVELODGE GB0000,"1,335.40",0,"1,335.40","Courses, Conference and Seminar Fees",Travelodge
Buckinghamshire Council,30.09.2022,29.09.2022,Resources,AH&R - Res Dir,TRAVELODGE GB0000,502.22,0,502.22,"Courses, Conference and Seminar Fees",Travelodge
Buckinghamshire Council,30.09.2022,29.09.2022,Resources,AH&R - Res Dir,TRAVELODGE GB0000,559.34,0,559.34,"Courses, Conference and Seminar Fees",Travelodge
Buckinghamshire Council,30.09.2022,29.09.2022,Communities,Transport - Communities Dir,CJ'S LOCKSMITHS,89.3,0,89.3,Stationery & Office Supplies,Misc. repair services
Buckinghamshire Council,30.09.2022,29.09.2022,Children's Services,Education & Childrens Services - CS Dir,AMAZON.CO.UK,19.98,0,19.98,Stationery & Office Supplies,Direct sales companies
Buckinghamshire Council,30.09.2022,29.09.2022,Children's Services,Education & Childrens Services - CS Dir,ASDA GEORGE COM LEEDS,26.5,0,26.5,Equipment (including storage),Grocery stores
Buckinghamshire Council,30.09.2022,29.09.2022,CC Obsolete Cost Centres,Obsolete Cost Centres,KINGSTON UNIVERSITY,"2,528.00",0,"2,528.00",Awaiting Coding,Colleges & universities
Buckinghamshire Council,30.09.2022,29.09.2022,Communities,Communities - Trust Accounts,TESCO STORES 4395,120.63,0,120.63,Awaiting Coding,Grocery stores
Buckinghamshire Council,30.09.2022,29.09.2022,Communities,Communities - Trust Accounts,TESCO STORES 3372,47.6,0,47.6,Awaiting Coding,Grocery stores
Buckinghamshire Council,30.09.2022,29.09.2022,Communities,Communities - Trust Accounts,BOOKER LIMITED SLOUGH,286.86,0,286.86,Contract Catering,Caterers
Buckinghamshire Council,30.09.2022,29.09.2022,Children's Services,Education & Childrens Services - CS Dir,TESCO STORES 2041,150,0,150,Awaiting Coding,Grocery stores
Buckinghamshire Council,30.09.2022,29.09.2022,"Planning, Growth & Sustainability",Planning & Regeneration - PGS,TRAINLINE,18.33,0,18.33,Staff Travelling Expenses,Passenger railways
Buckinghamshire Council,30.09.2022,29.09.2022,Resources,AH&R - Res Dir,LINKEDIN 8303809604,148.8,0,148.8,Permanent Recruitment Costs,Advertising services
Buckinghamshire Council,30.09.2022,29.09.2022,Children's Services,Education & Childrens Services - CS Dir,AMAZON.CO.UK,58,0,58,Stationery & Office Supplies,Direct sales companies
Buckinghamshire Council,30.09.2022,29.09.2022,Children's Services,Education & Childrens Services - CS Dir,AMZNMKTPLACE,119.99,0,119.99,Furniture,Miscellaneous retail
Buckinghamshire Council,30.09.2022,29.09.2022,Children's Services,Education & Childrens Services - CS Dir,ACTIVEWEARB,62.99,0,62.99,Protective Clothing & Uniforms,Uniforms & commercial clothing
Buckinghamshire Council,30.09.2022,29.09.2022,Deputy Chief Executive,Communities - DCE,SQ *MOSAIC BY THE COFFEE,7.09,0,7.09,Subsistence,Fast food restaurants
Buckinghamshire Council,30.09.2022,29.09.2022,Communities,Climate Change & Environment - Community,TESCO STORES 2041,11,0,11,Awaiting Coding,Grocery stores
Buckinghamshire Council,30.09.2022,29.09.2022,Communities,Climate Change & Environment - Community,HSS AYLESBURY,-396.76,0,-396.76,Awaiting Coding,"Equipment, tool, furniture hire & leasing"
Buckinghamshire Council,30.09.2022,29.09.2022,Communities,Climate Change & Environment - Community,HSS AYLESBURY,-103.24,0,-103.24,Awaiting Coding,"Equipment, tool, furniture hire & leasing"
Buckinghamshire Council,30.09.2022,29.09.2022,Children's Services,Education & Childrens Services - CS Dir,thetrainline.com,57.23,0,57.23,Staff Travelling Expenses,Passenger railways
Buckinghamshire Council,30.09.2022,28.09.2022,Children's Services,Education & Childrens Services - CS Dir,SAINSBURY S S/MKTS,14.55,0,14.55,Awaiting Coding,Grocery stores
Buckinghamshire Council,30.09.2022,28.09.2022,Children's Services,Education & Childrens Services - CS Dir,SAINSBURY S S/MKTS,20.3,0,20.3,Awaiting Coding,Grocery stores
Buckinghamshire Council,30.09.2022,28.09.2022,Children's Services,Education & Childrens Services - CS Dir,B&M 426 - HS AYLESBURY,4.28,0,4.28,Awaiting Coding,Misc. general merchandise
Buckinghamshire Council,30.09.2022,28.09.2022,Children's Services,Education & Childrens Services - CS Dir,SPORTSDIRECT 210,28,0,28,Awaiting Coding,Sporting goods shops
Buckinghamshire Council,30.09.2022,28.09.2022,"Planning, Growth & Sustainability",Planning & Regeneration - PGS,THETRAINLINE.COM,25.81,0,25.81,Staff Travelling Expenses,Passenger railways
Buckinghamshire Council,30.09.2022,28.09.2022,Resources,AH&R - Res Dir,EDF ENERGY-DOM,121.28,0,121.28,Awaiting Coding,Utilities
Buckinghamshire Council,30.09.2022,28.09.2022,Children's Services,Education & Childrens Services - CS Dir,LOGANAIR,175.95,0,175.95,Staff Travelling Expenses,"Airlines, air carriers"
Buckinghamshire Council,30.09.2022,28.09.2022,Communities,Climate Change & Environment - Community,PAYPAL,100,0,100,Awaiting Coding,"Civic, social & fraternal associations"
Buckinghamshire Council,30.09.2022,28.09.2022,Children's Services,Education & Childrens Services - CS Dir,BIRMINGHAM REGISTER,15,0,15,Sec 20/31: Specialist Services,Government services
Buckinghamshire Council,30.09.2022,28.09.2022,Deputy Chief Executive,Communities - DCE,ARGOS LTD,170,0,170,Other Personal Needs,Discount stores
Buckinghamshire Council,30.09.2022,28.09.2022,Deputy Chief Executive,Communities - DCE,ARGOS LTD,276.95,0,276.95,Other Personal Needs,Discount stores
Buckinghamshire Council,30.09.2022,28.09.2022,Deputy Chief Executive,Communities - DCE,ARGOS LTD,363.95,0,363.95,Other Personal Needs,Discount stores
Buckinghamshire Council,30.09.2022,28.09.2022,Deputy Chief Executive,Communities - DCE,AO RETAIL LIMITED,283.99,0,283.99,Other Personal Needs,Household appliance stores
Buckinghamshire Council,30.09.2022,28.09.2022,Deputy Chief Executive,Communities - DCE,AO RETAIL LIMITED,308.99,0,308.99,Other Personal Needs,Household appliance stores
Buckinghamshire Council,30.09.2022,28.09.2022,Deputy Chief Executive,Communities - DCE,AO RETAIL LIMITED,748.99,0,748.99,Other Personal Needs,Household appliance stores
Buckinghamshire Council,30.09.2022,28.09.2022,Communities,Housing & Homelessness & Regulatory Comm,PAPERSTONE,19.93,0,19.93,Stationery & Office Supplies,Stationery & office supplies
Buckinghamshire Council,30.09.2022,28.09.2022,Children's Services,Education & Childrens Services - CS Dir,AMAZON.CO.UK,53.79,0,53.79,Training Materials,Direct sales companies
Buckinghamshire Council,30.09.2022,28.09.2022,Adults and Health,Health & Wellbeing - Adults & Health Dir,TESCO STORES 6030,9.25,0,9.25,Activities & General Recreation,Grocery stores
Buckinghamshire Council,30.09.2022,28.09.2022,Communities,Transport - Communities Dir,WILKO RETAIL LIMITED,14.75,0,14.75,"Workshop - Materials,Tools & Equipment",Misc. general merchandise
Buckinghamshire Council,30.09.2022,28.09.2022,Communities,Transport - Communities Dir,SCREWFIX DIR LTD,37.99,0,37.99,General Repairs & Maintenance,Timber & building supplies
Buckinghamshire Council,30.09.2022,28.09.2022,Communities,Housing & Homelessness & Regulatory Comm,VAN HAGE GARDEN CO,12.99,0,12.99,Seeds & Plants,Lawn & garden supply/nursery
Buckinghamshire Council,30.09.2022,28.09.2022,Adults and Health,Health & Wellbeing - Adults & Health Dir,WM MORRISONS STORE,68.92,0,68.92,"Courses, Conference and Seminar Fees",Grocery stores
Buckinghamshire Council,30.09.2022,28.09.2022,"Planning, Growth & Sustainability",AH&R - PGS Dir,SCREWFIX DIR LTD,7.49,0,7.49,Miscellaneous (Other)  Expenses,Timber & building supplies
Buckinghamshire Council,30.09.2022,28.09.2022,Communities,Housing & Homelessness & Regulatory Comm,AMAZON.CO.UK,34.95,6.99,41.94,Protective Clothing & Uniforms,Direct sales companies
Buckinghamshire Council,30.09.2022,28.09.2022,Communities,Housing & Homelessness & Regulatory Comm,AMAZON.CO.UK,0.01,0,0.01,Protective Clothing & Uniforms,Direct sales companies
Buckinghamshire Council,30.09.2022,28.09.2022,Communities,Housing & Homelessness & Regulatory Comm,WORKPLACEDEPOT.CO.UK,166.49,33.3,199.79,Cleaning Materials,Misc Industrial supplies
Buckinghamshire Council,30.09.2022,28.09.2022,Children's Services,Education & Childrens Services - CS Dir,AMAZON.CO.UK,28.82,0,28.82,Printing & Stationery,Direct sales companies
Buckinghamshire Council,30.09.2022,28.09.2022,Resources,AH&R - Res Dir,ABRATAX - MTD,10,2,12,Computer Consumables,Computer software stores
Buckinghamshire Council,30.09.2022,28.09.2022,Children's Services,Education & Childrens Services - CS Dir,AMZNMktplace,51.94,0,51.94,Awaiting Coding,Miscellaneous retail
Buckinghamshire Council,30.09.2022,28.09.2022,Resources,AH&R - Res Dir,PAYPAL,7.2,0,7.2,IT - Computer Network Charges,Computer network information services
Buckinghamshire Council,30.09.2022,28.09.2022,Children's Services,Education & Childrens Services - CS Dir,Vistaprint,86.63,0,86.63,Awaiting Coding,Misc business services
Buckinghamshire Council,30.09.2022,28.09.2022,Children's Services,Education & Childrens Services - CS Dir,TESCO STORES 4804,13.55,0,13.55,Awaiting Coding,Grocery stores
Buckinghamshire Council,30.09.2022,28.09.2022,"Planning, Growth & Sustainability",AH&R - PGS Dir,FIRST RESCUE TRAIN,73.14,0,73.14,Miscellaneous (Other)  Expenses,Misc. general merchandise
Buckinghamshire Council,30.09.2022,28.09.2022,"Planning, Growth & Sustainability",AH&R - PGS Dir,QUADIENT UK LTD,"1,000.00",0,"1,000.00",General Postage,Stationery & office supplies
Buckinghamshire Council,30.09.2022,28.09.2022,Communities,Communities - Trust Accounts,IKEA LTD 461 READING MAIN,330.25,0,330.25,Awaiting Coding,Furniture & home furnishing
Buckinghamshire Council,30.09.2022,28.09.2022,Children's Services,Education & Childrens Services - CS Dir,ARGOS LTD,202.95,0,202.95,Equipment (including storage),Discount stores
Buckinghamshire Council,30.09.2022,28.09.2022,Children's Services,Education & Childrens Services - CS Dir,WWW.ADT.CO.UK,586.49,0,586.49,Awaiting Coding,Detective & security services
Buckinghamshire Council,30.09.2022,28.09.2022,Children's Services,Education & Childrens Services - CS Dir,TRAINLINE,35.85,0,35.85,Sec 17: Transport,Passenger railways
Buckinghamshire Council,30.09.2022,28.09.2022,Communities,Climate Change & Environment - Community,TESCO STORES 2041,28,0,28,Awaiting Coding,Grocery stores
Buckinghamshire Council,30.09.2022,28.09.2022,Resources,AH&R - Res Dir,HTTPS://ISLINGTON.CIVI,12,0,12,Awaiting Coding,Government services
Buckinghamshire Council,30.09.2022,28.09.2022,Resources,AH&R - Res Dir,WWW.MARKALLENGROUP.COM,144,0,144,Awaiting Coding,Schools
Buckinghamshire Council,30.09.2022,28.09.2022,Resources,AH&R - Res Dir,WWW.MARKALLENGROUP.COM,144,0,144,Awaiting Coding,Schools
Buckinghamshire Council,30.09.2022,28.09.2022,Adults and Health,Health & Wellbeing - Adults & Health Dir,THRIIVER LIMITED,410,82,492,Specialist Equipment,"Computers, peripherals & software"
Buckinghamshire Council,30.09.2022,28.09.2022,Communities,Culture & Leisure - Communities Dir,AMAZON.CO.UK,100,0,100,Stationery & Office Supplies,Direct sales companies
Buckinghamshire Council,30.09.2022,28.09.2022,Adults and Health,Health & Wellbeing - Adults & Health Dir,ASDA  STORES 4396,64.06,0,64.06,Other Supplies,Grocery stores
Buckinghamshire Council,30.09.2022,28.09.2022,Communities,Transport - Communities Dir,43043295 COSTA COFFEE,7.45,0,7.45,Subsistence,Fast food restaurants
Buckinghamshire Council,30.09.2022,28.09.2022,Communities,Housing & Homelessness & Regulatory Comm,BP CHALFONTS WAY S/STN,40.84,0,40.84,Petrol,Service stations
Buckinghamshire Council,30.09.2022,28.09.2022,Children's Services,Education & Childrens Services - CS Dir,ARGOS LTD,25.95,0,25.95,Equipment (including storage),Discount stores
Buckinghamshire Council,30.09.2022,28.09.2022,Children's Services,Education & Childrens Services - CS Dir,ARGOS LTD,100.95,0,100.95,Awaiting Coding,Discount stores
Buckinghamshire Council,30.09.2022,28.09.2022,Children's Services,Education & Childrens Services - CS Dir,ARGOS LTD,412.95,0,412.95,Awaiting Coding,Discount stores
Buckinghamshire Council,30.09.2022,27.09.2022,Communities,Culture & Leisure - Communities Dir,TVLICENSING.CO.UK,159,0,159,Administrative Equipment & Tools,Consultants & public relation services
Buckinghamshire Council,30.09.2022,27.09.2022,Resources,AH&R - Res Dir,PAYPAL,10.2,0,10.2,IT - Computer Network Charges,Computer network information services
Buckinghamshire Council,30.09.2022,27.09.2022,Resources,AH&R - Res Dir,PAYPAL,12,0,12,IT - Computer Network Charges,Computer network information services
Buckinghamshire Council,30.09.2022,27.09.2022,Resources,AH&R - Res Dir,PAYPAL,12,0,12,IT - Computer Network Charges,Computer network information services
Buckinghamshire Council,30.09.2022,27.09.2022,Children's Services,Education & Childrens Services - CS Dir,AMZNMktplace,32.79,0,32.79,Awaiting Coding,Miscellaneous retail
Buckinghamshire Council,30.09.2022,27.09.2022,Children's Services,Education & Childrens Services - CS Dir,POST OFFICE COUNTER,7.65,0,7.65,General Postage,Postal services
Buckinghamshire Council,30.09.2022,27.09.2022,Communities,Climate Change & Environment - Community,Amazon.co.uk,752.2,0,752.2,Stationery & Office Supplies,Direct sales companies
Buckinghamshire Council,30.09.2022,27.09.2022,Communities,Climate Change & Environment - Community,Amazon.co.uk,752.2,0,752.2,Stationery & Office Supplies,Direct sales companies
Buckinghamshire Council,30.09.2022,27.09.2022,Communities,Transport - Communities Dir,POST OFFICE COUNTER,10,0,10,General Postage,Postal services
Buckinghamshire Council,30.09.2022,27.09.2022,Children's Services,Education & Childrens Services - CS Dir,GO APE,66,0,66,Sec 17: Direct Work with Children,Misc. recreational services
Buckinghamshire Council,30.09.2022,27.09.2022,Adults and Health,Health & Wellbeing - Adults & Health Dir,ICELAND FOODS LTD 1748,44.99,0,44.99,Catering & Domestic Equipment,Grocery stores
Buckinghamshire Council,30.09.2022,27.09.2022,Adults and Health,Health & Wellbeing - Adults & Health Dir,ASDA  STORES 4396,31.24,0,31.24,"Courses, Conference and Seminar Fees",Grocery stores
Buckinghamshire Council,30.09.2022,27.09.2022,Communities,Housing & Homelessness & Regulatory Comm,AMZNMKTPLACE,17.19,3.44,20.63,Maintenance of Cremators Plant & Equip,Miscellaneous retail
Buckinghamshire Council,30.09.2022,27.09.2022,Children's Services,Education & Childrens Services - CS Dir,GIFTS TOMORROW,17.5,3.5,21,Administrative Equipment & Tools,Misc. general merchandise
Buckinghamshire Council,30.09.2022,27.09.2022,Communities,Culture & Leisure - Communities Dir,WWW.BUCKINGHAMSHIRE.GOV,11.13,0,11.13,"Trade Refuse Disposal, Cesspools & Pests",Government services
Buckinghamshire Council,30.09.2022,27.09.2022,"Planning, Growth & Sustainability",Planning & Regeneration - PGS,CHARTERED ASSOCIATION,240,0,240,Professional Subscriptions re Employees,Colleges & universities
Buckinghamshire Council,30.09.2022,27.09.2022,"Planning, Growth & Sustainability",Planning & Regeneration - PGS,CHARTERED ASSOCIATION,310,0,310,Professional Subscriptions re Employees,Colleges & universities
Buckinghamshire Council,30.09.2022,27.09.2022,Children's Services,Education & Childrens Services - CS Dir,AMZNMktplace,12.28,0,12.28,Awaiting Coding,Miscellaneous retail
Buckinghamshire Council,30.09.2022,27.09.2022,Children's Services,Education & Childrens Services - CS Dir,AMZNMktplace,10.98,0,10.98,Awaiting Coding,Miscellaneous retail
Buckinghamshire Council,30.09.2022,27.09.2022,Children's Services,Education & Childrens Services - CS Dir,MARKS&SPENCER PLC SACA,8.66,0,8.66,Awaiting Coding,Grocery stores
Buckinghamshire Council,30.09.2022,27.09.2022,Children's Services,Education & Childrens Services - CS Dir,POUNDLAND LTD 1301,16,0,16,Awaiting Coding,Discount stores
Buckinghamshire Council,30.09.2022,27.09.2022,Children's Services,Education & Childrens Services - CS Dir,SAINSBURYS S/MKTS,6.5,0,6.5,Awaiting Coding,Grocery stores
Buckinghamshire Council,30.09.2022,27.09.2022,Children's Services,Education & Childrens Services - CS Dir,MARKS&SPENCER PLC SA,72.5,0,72.5,Purchase.of Refreshments and Food,Grocery stores
Buckinghamshire Council,30.09.2022,27.09.2022,Resources,AH&R - Res Dir,PREMIER INN,809.36,0,809.36,"Courses, Conference and Seminar Fees",Premier Inn
Buckinghamshire Council,30.09.2022,27.09.2022,Children's Services,Education & Childrens Services - CS Dir,Amazon.co.uk,100,0,100,Stationery & Office Supplies,Direct sales companies
Buckinghamshire Council,30.09.2022,27.09.2022,Children's Services,Education & Childrens Services - CS Dir,ASDA  STORES 4396,2.63,0,2.63,General Provisions (Food),Grocery stores
Buckinghamshire Council,30.09.2022,27.09.2022,Children's Services,Education & Childrens Services - CS Dir,ASDA  STORES 4396,2.63,0,2.63,General Provisions (Food),Grocery stores
Buckinghamshire Council,30.09.2022,27.09.2022,Children's Services,Education & Childrens Services - CS Dir,TEAMUP CALENDAR,928.26,0,928.26,Computer Consumables,Computer software stores
Buckinghamshire Council,30.09.2022,27.09.2022,Children's Services,Education & Childrens Services - CS Dir,Leafylaine Designs,20,0,20,Awaiting Coding,Misc. general merchandise
Buckinghamshire Council,30.09.2022,27.09.2022,Children's Services,Education & Childrens Services - CS Dir,STUDENT ROOST,"1,225.00",0,"1,225.00",Leaving Care - Higher Education Supp,Estate Agents & Property Management
Buckinghamshire Council,30.09.2022,27.09.2022,Adults and Health,Health & Wellbeing - Adults & Health Dir,NOOR GROCERIES AND HALAL,14,0,14,Awaiting Coding,Grocery stores
Buckinghamshire Council,30.09.2022,27.09.2022,Adults and Health,Health & Wellbeing - Adults & Health Dir,ALDI 73 775,39.47,0,39.47,Awaiting Coding,Grocery stores
Buckinghamshire Council,30.09.2022,27.09.2022,Adults and Health,Health & Wellbeing - Adults & Health Dir,ICELAND FOODS LTD 1748,88.38,0,88.38,Awaiting Coding,Grocery stores
Buckinghamshire Council,30.09.2022,27.09.2022,Adults and Health,Health & Wellbeing - Adults & Health Dir,B&M 426 - HS AYLESBURY,76.42,0,76.42,Awaiting Coding,Misc. general merchandise
Buckinghamshire Council,30.09.2022,27.09.2022,Children's Services,Education & Childrens Services - CS Dir,Amazon.co.uk,17.96,0,17.96,Stationery & Office Supplies,Direct sales companies
Buckinghamshire Council,30.09.2022,27.09.2022,Resources,AH&R - Res Dir,LINKEDIN-829,107.28,0,107.28,Permanent Recruitment Costs,Advertising services
Buckinghamshire Council,30.09.2022,27.09.2022,Children's Services,Education & Childrens Services - CS Dir,AMZNMKTPLACE,12.99,0,12.99,Printing & Stationery,Miscellaneous retail
Buckinghamshire Council,30.09.2022,27.09.2022,Children's Services,Education & Childrens Services - CS Dir,AMAZON PRIME,8.99,0,8.99,Stationery & Office Supplies,Continuous subscriptions
Buckinghamshire Council,30.09.2022,27.09.2022,Children's Services,Education & Childrens Services - CS Dir,THETRAINLINE.COM,92.06,0,92.06,Sec 20/31: Supp for Contact,Passenger railways
Buckinghamshire Council,30.09.2022,27.09.2022,Children's Services,Education & Childrens Services - CS Dir,TRAINLINE.COM,130.77,0,130.77,Sec 20/31: Supp for Contact,Passenger railways
Buckinghamshire Council,30.09.2022,27.09.2022,Children's Services,Education & Childrens Services - CS Dir,WWW.SAFARIMK.CO.UK,18.4,0,18.4,Sec 20/31: Supp for Contact,Misc. recreational services
Buckinghamshire Council,30.09.2022,27.09.2022,Adults and Health,Health & Wellbeing - Adults & Health Dir,SAINSBURYS S/MKTS,3.55,0,3.55,Activities & General Recreation,Grocery stores
Buckinghamshire Council,30.09.2022,27.09.2022,Adults and Health,Health & Wellbeing - Adults & Health Dir,HOMELIFE WAREHOUSE LTD,16.96,0,16.96,Activities & General Recreation,Discount stores
Buckinghamshire Council,30.09.2022,27.09.2022,Adults and Health,Health & Wellbeing - Adults & Health Dir,MARKS&SPENCER PLC,35,0,35,Other General Office Expenses,Grocery stores
Buckinghamshire Council,30.09.2022,26.09.2022,Deputy Chief Executive,Communities - DCE,ARGOS LTD,331.95,0,331.95,Other Personal Needs,Discount stores
Buckinghamshire Council,30.09.2022,26.09.2022,"Planning, Growth & Sustainability",Leader - PGS,1 AND 1 IONOS LTD,8.39,0,8.39,Computer Support Services,Computer network information services
Buckinghamshire Council,30.09.2022,26.09.2022,"Planning, Growth & Sustainability",Housing & Homelessness & Regulatory PGS,HIGH WYCOMBE STATION T,45.2,0,45.2,Staff Travelling Expenses,Passenger railways
Buckinghamshire Council,30.09.2022,26.09.2022,"Planning, Growth & Sustainability",Housing & Homelessness & Regulatory PGS,LAND REGISTRY ECOM CCC,3,0,3,Homelessness,Government services
Buckinghamshire Council,30.09.2022,26.09.2022,"Planning, Growth & Sustainability",Housing & Homelessness & Regulatory PGS,LAND REGISTRY ECOM CCC,3,0,3,Homelessness,Government services
Buckinghamshire Council,30.09.2022,26.09.2022,"Planning, Growth & Sustainability",Housing & Homelessness & Regulatory PGS,LAND REGISTRY ECOM CCC,3,0,3,Homelessness,Government services
Buckinghamshire Council,30.09.2022,26.09.2022,"Planning, Growth & Sustainability",Housing & Homelessness & Regulatory PGS,LAND REGISTRY ECOM CCC,3,0,3,Homelessness,Government services
Buckinghamshire Council,30.09.2022,26.09.2022,Children's Services,Education & Childrens Services - CS Dir,WWW.MEADOPENFARM.CO.UK,260,0,260,Awaiting Coding,Tourist attractions and exhibitions
Buckinghamshire Council,30.09.2022,26.09.2022,Children's Services,Education & Childrens Services - CS Dir,WWW.MEADOPENFARM.CO.UK,260,0,260,Awaiting Coding,Tourist attractions and exhibitions
Buckinghamshire Council,30.09.2022,26.09.2022,Deputy Chief Executive,Communities - DCE,C/GAS UXBRIDGE 353,80.06,0,80.06,Other Personal Needs,Utilities
Buckinghamshire Council,30.09.2022,26.09.2022,Children's Services,Education & Childrens Services - CS Dir,STUDENT FEES,"2,700.48",0,"2,700.48",Leaving Care - Higher Education Supp,Colleges & universities
Buckinghamshire Council,30.09.2022,26.09.2022,Children's Services,Education & Childrens Services - CS Dir,A1 TAXI SERVICE,30,0,30,Sec 20/31: Transport,Taxicabs & limousines
Buckinghamshire Council,30.09.2022,26.09.2022,Children's Services,Education & Childrens Services - CS Dir,HOTEL AT BOOKING.COM,89,0,89,Staff Travelling Expenses,"Hotels, motels & resorts"
Buckinghamshire Council,30.09.2022,26.09.2022,Communities,Climate Change & Environment - Community,Amazon.co.uk,752.2,0,752.2,Stationery & Office Supplies,Direct sales companies
Buckinghamshire Council,30.09.2022,26.09.2022,Deputy Chief Executive,Communities - DCE,ARGOS LTD,203.95,0,203.95,Other Personal Needs,Discount stores
Buckinghamshire Council,30.09.2022,26.09.2022,Deputy Chief Executive,Communities - DCE,ARGOS LTD,336.95,0,336.95,Other Personal Needs,Discount stores
Buckinghamshire Council,30.09.2022,26.09.2022,Deputy Chief Executive,Communities - DCE,AO RETAIL LIMITED,"1,147.99",0,"1,147.99",Other Personal Needs,Household appliance stores
Buckinghamshire Council,30.09.2022,26.09.2022,Deputy Chief Executive,Communities - DCE,AO RETAIL LIMITED,"1,393.99",0,"1,393.99",Other Personal Needs,Household appliance stores
Buckinghamshire Council,30.09.2022,26.09.2022,Children's Services,Education & Childrens Services - CS Dir,EARLY EXCELLENCE LTD,60,0,60,Visiting Lecturers Fees and Expenses,Schools
Buckinghamshire Council,30.09.2022,26.09.2022,Communities,Transport - Communities Dir,PHONE STAR,40,0,40,Telephones,Phone equipment & sales
Buckinghamshire Council,30.09.2022,26.09.2022,Adults and Health,Health & Wellbeing - Adults & Health Dir,TESCO STORES 5135,176.45,0,176.45,Awaiting Coding,Grocery stores
Buckinghamshire Council,30.09.2022,26.09.2022,Communities,Housing & Homelessness & Regulatory Comm,AMZNMKTPLACE,24.99,5,29.99,Printing & Stationery,Miscellaneous retail
Buckinghamshire Council,30.09.2022,26.09.2022,Communities,Housing & Homelessness & Regulatory Comm,COSTCO WHOLESALE #102,205.55,41.11,246.66,Vending Machines Supplies,Buying & shopping services/clubs
Buckinghamshire Council,30.09.2022,26.09.2022,Communities,Housing & Homelessness & Regulatory Comm,COSTCO WHOLESALE #102,0.01,0,0.01,Vending Machines Supplies,Buying & shopping services/clubs
Buckinghamshire Council,30.09.2022,26.09.2022,Communities,Housing & Homelessness & Regulatory Comm,COSTCO WHOLESALE #102,26.75,5.35,32.1,Purchase.of Refreshments and Food,Buying & shopping services/clubs
Buckinghamshire Council,30.09.2022,26.09.2022,Communities,Housing & Homelessness & Regulatory Comm,COSTCO WHOLESALE #102,13.8,0,13.8,Purchase.of Refreshments and Food,Buying & shopping services/clubs
Buckinghamshire Council,30.09.2022,26.09.2022,Communities,Housing & Homelessness & Regulatory Comm,TESCO STORES 2020,2.9,0,2.9,Purchase.of Refreshments and Food,Grocery stores
Buckinghamshire Council,30.09.2022,26.09.2022,Communities,Housing & Homelessness & Regulatory Comm,THE GRIFFIN OLD AMERSHAM,73.75,14.75,88.5,Purchase.of Refreshments and Food,Restaurants
Buckinghamshire Council,30.09.2022,26.09.2022,Adults and Health,Communities - Adults & Health,AMZNMKTPLACE,85.51,0,85.51,Security & Safety Supplies & Equipment,Miscellaneous retail
Buckinghamshire Council,30.09.2022,26.09.2022,"Planning, Growth & Sustainability",AH&R - PGS Dir,NEWTON NEWTON FLAG & BANN,30.6,0,30.6,General Repairs & Maintenance,Miscellaneous retail
Buckinghamshire Council,30.09.2022,26.09.2022,Deputy Chief Executive,Leader - DCE,SP FEEDBACK FRAMES,88.8,0,88.8,Computer Consumables,Computer software stores
Buckinghamshire Council,30.09.2022,26.09.2022,Communities,Culture & Leisure - Communities Dir,TESCO STORE 3099,8.44,0,8.44,Awaiting Coding,Grocery stores
Buckinghamshire Council,30.09.2022,26.09.2022,Deputy Chief Executive,AH&R- DCE Dir,WP ENGINE,35.21,0,35.21,Computer Support Services,Computer network information services
Buckinghamshire Council,30.09.2022,26.09.2022,Children's Services,Education & Childrens Services - CS Dir,HOBBYCRAFT,18,0,18,Activities & General Recreation,Art & craft shops
Buckinghamshire Council,30.09.2022,26.09.2022,Children's Services,Education & Childrens Services - CS Dir,CARD FACTORY,0.2,0,0.2,Activities & General Recreation,"Gift, card & novelty shops"
Buckinghamshire Council,30.09.2022,26.09.2022,Children's Services,Education & Childrens Services - CS Dir,CARD FACTORY,69.6,0,69.6,Activities & General Recreation,"Gift, card & novelty shops"
Buckinghamshire Council,30.09.2022,26.09.2022,Children's Services,Education & Childrens Services - CS Dir,DARTINGTON CRYSTAL TORRIN,"1,417.57",0,"1,417.57",Activities & General Recreation,Glassware & crystal shops
Buckinghamshire Council,30.09.2022,26.09.2022,Children's Services,Education & Childrens Services - CS Dir,ASDA  STORES 4396,14.19,0,14.19,General Provisions (Food),Grocery stores
Buckinghamshire Council,30.09.2022,26.09.2022,Communities,Culture & Leisure - Communities Dir,WWW.PLANNING.CO,494.2,0,494.2,Supply of consultancy services,Misc business services
Buckinghamshire Council,30.09.2022,26.09.2022,Communities,Culture & Leisure - Communities Dir,AMZNMKTPLACE,67.6,0,67.6,"Workshop - Materials,Tools & Equipment",Miscellaneous retail
Buckinghamshire Council,30.09.2022,26.09.2022,Communities,Culture & Leisure - Communities Dir,WWW.ASPLI.COM,149.76,0,149.76,"Workshop - Materials,Tools & Equipment",Timber & building supplies
Buckinghamshire Council,30.09.2022,26.09.2022,Children's Services,Education & Childrens Services - CS Dir,SMART AIRPORT TRANSFER,64,0,64,Staff Travelling Expenses,Taxicabs & limousines
Buckinghamshire Council,30.09.2022,26.09.2022,Children's Services,Education & Childrens Services - CS Dir,TESCO STORES 5927,4,0,4,General Provisions (Food),Grocery stores
Buckinghamshire Council,30.09.2022,26.09.2022,"Planning, Growth & Sustainability",Planning & Regeneration - PGS,THETRAINLINE.COM,18.33,0,18.33,Other Employees Expenses,Passenger railways
Buckinghamshire Council,30.09.2022,26.09.2022,Deputy Chief Executive,Communities - DCE,VIKING UK,13.89,2.78,16.67,Other General Office Expenses,Stationery & office supplies
Buckinghamshire Council,30.09.2022,26.09.2022,Adults and Health,Health & Wellbeing - Adults & Health Dir,TESCO STORES 5135,86.9,0,86.9,Awaiting Coding,Grocery stores
Buckinghamshire Council,30.09.2022,26.09.2022,Children's Services,Education & Childrens Services - CS Dir,TRAINLINE.COM,57.23,0,57.23,Staff Travelling Expenses,Passenger railways
Buckinghamshire Council,30.09.2022,26.09.2022,Children's Services,Education & Childrens Services - CS Dir,REGISTRATION SERVICES,33,0,33,Sec 20/31: Financial Assistance,Government services
Buckinghamshire Council,30.09.2022,26.09.2022,Children's Services,Education & Childrens Services - CS Dir,SPEED STITCH,202.5,0,202.5,Sec 20/31: Financial Assistance,Family clothing shops
Buckinghamshire Council,30.09.2022,26.09.2022,Children's Services,Education & Childrens Services - CS Dir,WWW.MADEWITHLOVEANDSPA,28.24,0,28.24,Sec 20/31: Financial Assistance,Misc. general merchandise
Buckinghamshire Council,30.09.2022,26.09.2022,Children's Services,Education & Childrens Services - CS Dir,HERTFORDSHIRE COUNTY COUN,11,0,11,Sec 20/31: Financial Assistance,Charitable organisations
Buckinghamshire Council,30.09.2022,26.09.2022,Adults and Health,Health & Wellbeing - Adults & Health Dir,ONLINE ERGONOMICS LTD,"2,545.18",509.04,"3,054.22",Specialist Equipment,Office & commercial furniture
Buckinghamshire Council,30.09.2022,25.09.2022,"Planning, Growth & Sustainability",AH&R - PGS Dir,AMZNMKTPLACE,16.99,0,16.99,General Repairs & Maintenance,Miscellaneous retail
Buckinghamshire Council,30.09.2022,25.09.2022,Communities,Climate Change & Environment - Community,AMZNMKTPLACE,17.49,0,17.49,Waste Prevention costs,Miscellaneous retail
Buckinghamshire Council,30.09.2022,25.09.2022,"Planning, Growth & Sustainability",Planning & Regeneration - PGS,AMAZON.CO.UK,29.99,0,29.99,Stationery & Office Supplies,Direct sales companies
Buckinghamshire Council,30.09.2022,25.09.2022,Communities,Climate Change & Environment - Community,AMAZON.CO.UK,100,0,100,Stationery & Office Supplies,Direct sales companies
Buckinghamshire Council,30.09.2022,25.09.2022,Children's Services,Education & Childrens Services - CS Dir,MARKS&SPENCER PLC SACA,4.1,0,4.1,Awaiting Coding,Grocery stores
Buckinghamshire Council,30.09.2022,25.09.2022,Resources,AH&R - Res Dir,WM MORRISONS STORE,20.76,0,20.76,Awaiting Coding,Grocery stores
Buckinghamshire Council,30.09.2022,25.09.2022,Communities,Communities - Trust Accounts,CURRYS SLOUGH,69.98,0,69.98,Awaiting Coding,Electronics shops
Buckinghamshire Council,30.09.2022,25.09.2022,Resources,AH&R - Res Dir,LINKEDIN-828,117.86,0,117.86,Permanent Recruitment Costs,Advertising services
Buckinghamshire Council,30.09.2022,25.09.2022,Resources,AH&R - Res Dir,FACEBK *UALTHEXV82,157.58,0,157.58,Permanent Recruitment Costs,Advertising services
Buckinghamshire Council,30.09.2022,24.09.2022,Children's Services,Education & Childrens Services - CS Dir,TESCO STORES 2041,31.66,0,31.66,Miscellaneous (Other)  Expenses,Grocery stores
Buckinghamshire Council,30.09.2022,24.09.2022,Deputy Chief Executive,Communities - DCE,AO RETAIL LIMITED,19.99,0,19.99,Other Personal Needs,Household appliance stores
Buckinghamshire Council,30.09.2022,24.09.2022,Deputy Chief Executive,Communities - DCE,SUMUP  *DELIGHTS FROM T,4,0,4,Subsistence,Miscellaneous retail
Buckinghamshire Council,30.09.2022,24.09.2022,Deputy Chief Executive,Communities - DCE,VDUBBING LTD,2,0,2,Subsistence,Fast food restaurants
Buckinghamshire Council,30.09.2022,24.09.2022,Communities,Climate Change & Environment - Community,AMZNMKTPLACE,28.3,0,28.3,Waste Prevention costs,Miscellaneous retail
Buckinghamshire Council,30.09.2022,24.09.2022,Communities,Climate Change & Environment - Community,AMZNMKTPLACE,41.67,0,41.67,Waste Prevention costs,Miscellaneous retail
Buckinghamshire Council,30.09.2022,24.09.2022,Children's Services,Education & Childrens Services - CS Dir,AMZNMktplace,179.95,0,179.95,Awaiting Coding,Miscellaneous retail
Buckinghamshire Council,30.09.2022,24.09.2022,Children's Services,Education & Childrens Services - CS Dir,AMZNMktplace,4.99,0,4.99,Awaiting Coding,Miscellaneous retail
Buckinghamshire Council,30.09.2022,24.09.2022,Children's Services,Education & Childrens Services - CS Dir,AMAZON.CO.UK,59.98,0,59.98,Support for Foster Carers,Direct sales companies
Buckinghamshire Council,30.09.2022,24.09.2022,Children's Services,Education & Childrens Services - CS Dir,AMZNMktplace,71.71,0,71.71,Awaiting Coding,Miscellaneous retail
Buckinghamshire Council,30.09.2022,24.09.2022,"Planning, Growth & Sustainability",Planning & Regeneration - PGS,TRAINLINE,18.33,0,18.33,Staff Travelling Expenses,Passenger railways
Buckinghamshire Council,30.09.2022,24.09.2022,Children's Services,Education & Childrens Services - CS Dir,LONGRIDGE ON THE THAME,5.5,0,5.5,"Exp of School, Club & College Activities",Restaurants
Buckinghamshire Council,30.09.2022,24.09.2022,Communities,Culture & Leisure - Communities Dir,SAFETYSIGNSUP.COUK,49.49,0,49.49,"Workshop - Materials,Tools & Equipment","Commercial photo, art & graphic"
Buckinghamshire Council,30.09.2022,23.09.2022,Children's Services,Education & Childrens Services - CS Dir,TLAM TECHNOLOGIES,396,0,396,Sec 20/31: Specialist Services,Legal services
Buckinghamshire Council,30.09.2022,23.09.2022,Children's Services,Education & Childrens Services - CS Dir,NEALES TAXIS LTD,216,0,216,Staff Travelling Expenses,Taxicabs & limousines
Buckinghamshire Council,30.09.2022,23.09.2022,Children's Services,Education & Childrens Services - CS Dir,UK CARS (HIGH WYCOMBE),180,0,180,Staff Travelling Expenses,Taxicabs & limousines
Buckinghamshire Council,30.09.2022,23.09.2022,Children's Services,Education & Childrens Services - CS Dir,NEALES TAXIS LTD,864,0,864,Staff Travelling Expenses,Taxicabs & limousines
Buckinghamshire Council,30.09.2022,23.09.2022,Children's Services,Education & Childrens Services - CS Dir,AO RETAIL LIMITED,278.99,0,278.99,Leaving Care - Grants for Care Leavers,Household appliance stores
Buckinghamshire Council,30.09.2022,23.09.2022,Children's Services,Education & Childrens Services - CS Dir,DUNELM SOFTFURNISHINGS,524.15,0,524.15,Leaving Care - Grants for Care Leavers,Furniture & home furnishing
Buckinghamshire Council,30.09.2022,23.09.2022,Children's Services,Education & Childrens Services - CS Dir,ARGOS LTD,232.95,0,232.95,Leaving Care - Grants for Care Leavers,Discount stores
Buckinghamshire Council,30.09.2022,23.09.2022,Children's Services,Education & Childrens Services - CS Dir,HOTEL AT BOOKING.COM,75,0,75,Staff Travelling Expenses,"Hotels, motels & resorts"
Buckinghamshire Council,30.09.2022,23.09.2022,Children's Services,Education & Childrens Services - CS Dir,L&Q RENT PAYMENT,123.89,0,123.89,Leaving Care - Rent,Government services
Buckinghamshire Council,30.09.2022,23.09.2022,Children's Services,Education & Childrens Services - CS Dir,ARGOS LTD,999.2,0,999.2,Leaving Care - Grants for Care Leavers,Discount stores
Buckinghamshire Council,30.09.2022,23.09.2022,Children's Services,Education & Childrens Services - CS Dir,ARGOS  AYLESBURY GATEHOU,35.2,0,35.2,Awaiting Coding,Discount stores
Buckinghamshire Council,30.09.2022,23.09.2022,Children's Services,Education & Childrens Services - CS Dir,TRAINLINE,23.35,0,23.35,Staff Travelling Expenses,Passenger railways
Buckinghamshire Council,30.09.2022,23.09.2022,Children's Services,Education & Childrens Services - CS Dir,TRAINLINE,23.35,0,23.35,Staff Travelling Expenses,Passenger railways
Buckinghamshire Council,30.09.2022,23.09.2022,Children's Services,Education & Childrens Services - CS Dir,TRAINLINE,23.35,0,23.35,Staff Travelling Expenses,Passenger railways
Buckinghamshire Council,30.09.2022,23.09.2022,Children's Services,Education & Childrens Services - CS Dir,TAXIPAY,85,0,85,Staff Travelling Expenses,Taxicabs & limousines
Buckinghamshire Council,30.09.2022,23.09.2022,Children's Services,Education & Childrens Services - CS Dir,TRAINLINE,23.35,0,23.35,Staff Travelling Expenses,Passenger railways
Buckinghamshire Council,30.09.2022,23.09.2022,Children's Services,Education & Childrens Services - CS Dir,TAXIPAY,85,0,85,Staff Travelling Expenses,Taxicabs & limousines
Buckinghamshire Council,30.09.2022,23.09.2022,Children's Services,Education & Childrens Services - CS Dir,TAXIPAY,41,0,41,Sec 20/31: Transport,Taxicabs & limousines
Buckinghamshire Council,30.09.2022,23.09.2022,Deputy Chief Executive,Communities - DCE,AO RETAIL LIMITED,483.99,0,483.99,Other Personal Needs,Household appliance stores
Buckinghamshire Council,30.09.2022,23.09.2022,Deputy Chief Executive,Communities - DCE,AO RETAIL LIMITED,343.99,0,343.99,Other Personal Needs,Household appliance stores
Buckinghamshire Council,30.09.2022,23.09.2022,Deputy Chief Executive,Communities - DCE,AO RETAIL LIMITED,530.99,0,530.99,Other Personal Needs,Household appliance stores
Buckinghamshire Council,30.09.2022,23.09.2022,Deputy Chief Executive,Communities - DCE,ARGOS LTD,165.95,0,165.95,Other Personal Needs,Discount stores
Buckinghamshire Council,30.09.2022,23.09.2022,Deputy Chief Executive,Communities - DCE,DISCLOSURE & BARRING,13,0,13,Other Personal Needs,Government services
Buckinghamshire Council,30.09.2022,23.09.2022,Deputy Chief Executive,Communities - DCE,ARGOS LTD,246.95,0,246.95,Other Personal Needs,Discount stores
Buckinghamshire Council,30.09.2022,23.09.2022,Deputy Chief Executive,Communities - DCE,ARGOS LTD,246.95,0,246.95,Other Personal Needs,Discount stores
Buckinghamshire Council,30.09.2022,23.09.2022,Deputy Chief Executive,Communities - DCE,AO RETAIL LIMITED,644.99,0,644.99,Other Personal Needs,Household appliance stores
Buckinghamshire Council,30.09.2022,23.09.2022,Communities,Culture & Leisure - Communities Dir,TIMBERSTORELTD.CO.UK/,40,8,48,"Workshop - Materials,Tools & Equipment",Timber & building supplies
Buckinghamshire Council,30.09.2022,23.09.2022,Communities,Partnerships - Communities,ROYAL MAIL GROUP LTD,2.85,0,2.85,Miscellaneous (Other)  Expenses,Postal services
Buckinghamshire Council,30.09.2022,23.09.2022,"Planning, Growth & Sustainability",AH&R - PGS Dir,CJ'S LOCKSMITHS,16.95,0,16.95,General Repairs & Maintenance,Misc. repair services
Buckinghamshire Council,30.09.2022,23.09.2022,Communities,Special Expenses,AMZNMKTPLACE,31.69,0,31.69,Maintenance of Grounds,Miscellaneous retail
Buckinghamshire Council,30.09.2022,23.09.2022,Communities,Climate Change & Environment - Community,AMZNMKTPLACE,29.99,0,29.99,Waste Prevention costs,Miscellaneous retail
Buckinghamshire Council,30.09.2022,23.09.2022,Children's Services,Education & Childrens Services - CS Dir,TALKTALK BUSINESS,37.95,7.59,45.54,Software Support,Computer network information services
Buckinghamshire Council,30.09.2022,23.09.2022,Children's Services,Education & Childrens Services - CS Dir,BAKER ROSS,21.8,0,21.8,Awaiting Coding,Art & craft shops
Buckinghamshire Council,30.09.2022,23.09.2022,Children's Services,Education & Childrens Services - CS Dir,IZ *AQUA CARS,120,0,120,Sec 17: Financial Assistance,Taxicabs & limousines
Buckinghamshire Council,30.09.2022,23.09.2022,Deputy Chief Executive,Communities - DCE,RINGGO PARKING,1.75,0,1.75,Staff Travelling Expenses,Car parking & garages
Buckinghamshire Council,30.09.2022,23.09.2022,Children's Services,Education & Childrens Services - CS Dir,TRAINLINE,23.35,0,23.35,Sec 20/31: Specialist Services,Passenger railways
Buckinghamshire Council,30.09.2022,23.09.2022,Communities,Climate Change & Environment - Community,AMZNMKTPLACE,118.79,0,118.79,Stationery & Office Supplies,Miscellaneous retail
Buckinghamshire Council,30.09.2022,23.09.2022,Resources,AH&R - Res Dir,TRAVELODGE GB0000,"1,175.26",0,"1,175.26","Courses, Conference and Seminar Fees",Travelodge
Buckinghamshire Council,30.09.2022,23.09.2022,Children's Services,Education & Childrens Services - CS Dir,ARGOS LTD,128.95,0,128.95,Equipment (including storage),Discount stores
Buckinghamshire Council,30.09.2022,23.09.2022,Children's Services,Education & Childrens Services - CS Dir,ARGOS LTD,55.95,0,55.95,Equipment (including storage),Discount stores
Buckinghamshire Council,30.09.2022,23.09.2022,Children's Services,Education & Childrens Services - CS Dir,POUNDLAND LTD 1301,16,0,16,Awaiting Coding,Discount stores
Buckinghamshire Council,30.09.2022,23.09.2022,Children's Services,Education & Childrens Services - CS Dir,THE WORKS,33,0,33,Awaiting Coding,Discount stores
Buckinghamshire Council,30.09.2022,23.09.2022,Children's Services,Education & Childrens Services - CS Dir,NEW LOOK     1611,17.5,0,17.5,Awaiting Coding,Womens clothes shops
Buckinghamshire Council,30.09.2022,23.09.2022,Children's Services,Education & Childrens Services - CS Dir,SUPERDRUG STORES PLC,19.99,0,19.99,Medical Supplies & Services inc Vet'nary,Chemists & pharmacies
Buckinghamshire Council,30.09.2022,23.09.2022,Children's Services,Education & Childrens Services - CS Dir,SP COCOALOCO.CO.UK,48.91,0,48.91,Computer Consumables,Computer software stores
Buckinghamshire Council,30.09.2022,23.09.2022,Adults and Health,Health & Wellbeing - Adults & Health Dir,ASDA SUPERSTORE,4.85,0,4.85,General Provisions (Food),Grocery stores
Buckinghamshire Council,30.09.2022,23.09.2022,Resources,AH&R - Res Dir,Hotel at Booking.com,9,0,9,"Courses, Conference and Seminar Fees","Hotels, motels & resorts"
Buckinghamshire Council,30.09.2022,23.09.2022,Communities,Communities - Trust Accounts,BOOKER LIMITED SLOUGH,483.66,0,483.66,Contract Catering,Caterers
Buckinghamshire Council,30.09.2022,23.09.2022,Communities,Communities - Trust Accounts,CO-OP GROUP FOOD,12.74,0,12.74,Awaiting Coding,Grocery stores
Buckinghamshire Council,30.09.2022,23.09.2022,Children's Services,Education & Childrens Services - CS Dir,AMZNMktplace,85.98,0,85.98,Awaiting Coding,Miscellaneous retail
Buckinghamshire Council,30.09.2022,23.09.2022,Resources,AH&R - Res Dir,LINKEDIN 8282422324,171.14,0,171.14,Permanent Recruitment Costs,Advertising services
Buckinghamshire Council,30.09.2022,23.09.2022,"Planning, Growth & Sustainability",Planning & Regeneration - PGS,WWW.REDOAKDIRECT.C,163.41,0,163.41,"Books, Records, Films & Oth Publications",Timber & building supplies
Buckinghamshire Council,30.09.2022,23.09.2022,Communities,Culture & Leisure - Communities Dir,AMZNMKTPLACE,13.7,0,13.7,Administrative Equipment & Tools,Miscellaneous retail
Buckinghamshire Council,30.09.2022,23.09.2022,Children's Services,Education & Childrens Services - CS Dir,THETRAINLINE.COM,14.55,0,14.55,Sec 20/31: Supp for Contact,Passenger railways
Buckinghamshire Council,30.09.2022,23.09.2022,Children's Services,Education & Childrens Services - CS Dir,HM PASSPORT OFFICE,49,0,49,Sec 20/31: Financial Assistance,Government services
Buckinghamshire Council,30.09.2022,23.09.2022,Children's Services,Education & Childrens Services - CS Dir,ARRIVA UK BUS,93,0,93,Sec 20/31: Supp for Contact,"Buses, charter & tour"
Buckinghamshire Council,30.09.2022,23.09.2022,Children's Services,Education & Childrens Services - CS Dir,HM PASSPORT OFFICE,49,0,49,Sec 20/31: Financial Assistance,Government services
Buckinghamshire Council,30.09.2022,23.09.2022,Adults and Health,Health & Wellbeing - Adults & Health Dir,TAXIPAY,150,0,150,Staff Travelling Expenses,Taxicabs & limousines
Buckinghamshire Council,30.09.2022,23.09.2022,Adults and Health,Health & Wellbeing - Adults & Health Dir,BUCKINGHAM HOTELS,"1,876.00",375.2,"2,251.20",Other Short Term Support,"Hotels, motels & resorts"
Buckinghamshire Council,30.09.2022,23.09.2022,Communities,Communities - Trading Accounts,DISTRICTENFORCEMENT,35,0,35,Vehicle Repair Recharge,Car parking & garages
Buckinghamshire Council,30.09.2022,23.09.2022,Communities,Culture & Leisure - Communities Dir,TVLICENSING.CO.UK,159,0,159,Professional Services (non curriculum) - External,Consultants & public relation services
Buckinghamshire Council,30.09.2022,23.09.2022,Communities,Culture & Leisure - Communities Dir,TVLICENSING.CO.UK,159,0,159,Professional Services (non curriculum) - External,Consultants & public relation services
Buckinghamshire Council,30.09.2022,22.09.2022,Children's Services,Education & Childrens Services - CS Dir,AMZNMKTPLACE,62.99,0,62.99,Leaving Care - Grants for Care Leavers,Miscellaneous retail
Buckinghamshire Council,30.09.2022,22.09.2022,Adults and Health,Health & Wellbeing - Adults & Health Dir,ASDA SUPERSTORE,15.5,0,15.5,General Provisions (Food),Grocery stores
Buckinghamshire Council,30.09.2022,22.09.2022,Children's Services,Education & Childrens Services - CS Dir,WWW.ANYVAN.COM,334,0,334,Sec 17: Specialist Services,"Haulage, removals & delivery"
Buckinghamshire Council,30.09.2022,22.09.2022,"Planning, Growth & Sustainability",Housing & Homelessness & Regulatory PGS,LAND REGISTRY ECOM CCC,3,0,3,Homelessness,Government services
Buckinghamshire Council,30.09.2022,22.09.2022,Deputy Chief Executive,Communities - DCE,AO RETAIL LIMITED,501.65,100.33,601.98,Other Personal Needs,Household appliance stores
Buckinghamshire Council,30.09.2022,22.09.2022,Deputy Chief Executive,Communities - DCE,AO RETAIL LIMITED,0.01,0,0.01,Other Personal Needs,Household appliance stores
Buckinghamshire Council,30.09.2022,22.09.2022,Deputy Chief Executive,Communities - DCE,ARGOS LTD,105.95,0,105.95,Other Personal Needs,Discount stores
Buckinghamshire Council,30.09.2022,22.09.2022,Deputy Chief Executive,Communities - DCE,AO RETAIL LIMITED,403.3,80.66,483.96,Other Personal Needs,Household appliance stores
Buckinghamshire Council,30.09.2022,22.09.2022,Deputy Chief Executive,Communities - DCE,AO RETAIL LIMITED,0.03,0,0.03,Other Personal Needs,Household appliance stores
Buckinghamshire Council,30.09.2022,22.09.2022,Resources,AH&R - Res Dir,C2E830100859T UKVI,"3,199.00",0,"3,199.00",Professional Services (non curriculum) - External,Government services
Buckinghamshire Council,30.09.2022,22.09.2022,Resources,AH&R - Res Dir,C2E830100159S UKVI,"1,199.00",0,"1,199.00",Professional Services (non curriculum) - External,Government services
Buckinghamshire Council,30.09.2022,22.09.2022,"Planning, Growth & Sustainability",Planning & Regeneration - PGS,WWW.LABC.UK.COM,180,0,180,Course Fees & Post Entry Training,Misc business services
Buckinghamshire Council,30.09.2022,22.09.2022,Children's Services,Education & Childrens Services - CS Dir,TRAINLINE,263.6,0,263.6,Sec 20/31: Transport,Passenger railways
Buckinghamshire Council,30.09.2022,22.09.2022,Children's Services,Education & Childrens Services - CS Dir,A1 TAXI SERVICE,264,0,264,Sec 20/31: Transport,Taxicabs & limousines
Buckinghamshire Council,30.09.2022,22.09.2022,Children's Services,Education & Childrens Services - CS Dir,PP*INTUTAXI,89.6,0,89.6,Sec 20/31: Transport,Record shops
Buckinghamshire Council,30.09.2022,22.09.2022,Deputy Chief Executive,AH&R- DCE Dir,TRAVELODGE GB0000,"1,459.37",0,"1,459.37","Courses, Conference and Seminar Fees",Travelodge
Buckinghamshire Council,30.09.2022,22.09.2022,Deputy Chief Executive,Communities - DCE,ARGOS LTD,246.95,0,246.95,Other Personal Needs,Discount stores
Buckinghamshire Council,30.09.2022,22.09.2022,Deputy Chief Executive,Communities - DCE,AO RETAIL LIMITED,612.99,0,612.99,Other Personal Needs,Household appliance stores
Buckinghamshire Council,30.09.2022,22.09.2022,Deputy Chief Executive,Communities - DCE,AO RETAIL LIMITED,248.99,0,248.99,Other Personal Needs,Household appliance stores
Buckinghamshire Council,30.09.2022,22.09.2022,Deputy Chief Executive,Communities - DCE,ARGOS LTD,93.5,0,93.5,Other Personal Needs,Discount stores
Buckinghamshire Council,30.09.2022,22.09.2022,Deputy Chief Executive,Communities - DCE,AO RETAIL LIMITED,318.99,0,318.99,Other Personal Needs,Household appliance stores
Buckinghamshire Council,30.09.2022,22.09.2022,Deputy Chief Executive,Communities - DCE,FLOGAS BRITAIN LIMITED,83.23,0,83.23,Petrol,Fuel dealers
Buckinghamshire Council,30.09.2022,22.09.2022,Deputy Chief Executive,Communities - DCE,AO RETAIL LIMITED,866.99,0,866.99,Other Personal Needs,Household appliance stores
Buckinghamshire Council,30.09.2022,22.09.2022,Deputy Chief Executive,Communities - DCE,ARGOS LTD,123.5,0,123.5,Other Personal Needs,Discount stores
Buckinghamshire Council,30.09.2022,22.09.2022,Deputy Chief Executive,Communities - DCE,ARGOS LTD,236.95,0,236.95,Other Personal Needs,Discount stores
Buckinghamshire Council,30.09.2022,22.09.2022,Communities,Housing & Homelessness & Regulatory Comm,J PARKER DUTCH BULBS LTD,330,0,330,Seeds & Plants,Lawn & garden supply/nursery
Buckinghamshire Council,30.09.2022,22.09.2022,Communities,Culture & Leisure - Communities Dir,TIMBERSTORELTD.CO.UK/,49.68,9.94,59.62,"Workshop - Materials,Tools & Equipment",Timber & building supplies
Buckinghamshire Council,30.09.2022,22.09.2022,"Planning, Growth & Sustainability",AH&R - PGS Dir,JUST BAGUETTES,61.6,0,61.6,Subsistence,Fast food restaurants
Buckinghamshire Council,30.09.2022,22.09.2022,"Planning, Growth & Sustainability",Leader - PGS,NEW YORK DELI GATEHOUSE,45,0,45,Subsistence,Restaurants
Buckinghamshire Council,30.09.2022,22.09.2022,Adults and Health,Health & Wellbeing - Adults & Health Dir,BOOKER LIMITED SLOUGH,57.17,0,57.17,Activities & General Recreation,Caterers
Buckinghamshire Council,30.09.2022,22.09.2022,Adults and Health,Health & Wellbeing - Adults & Health Dir,MILK AND MORE (RECUR,13.55,0,13.55,General Provisions (Food),Dairy produce stores
Buckinghamshire Council,30.09.2022,22.09.2022,Deputy Chief Executive,AH&R- DCE Dir,TIGER TAXIS,10,0,10,Staff Travelling Expenses,Taxicabs & limousines
Buckinghamshire Council,30.09.2022,22.09.2022,Resources,AH&R - Res Dir,AIRBNB * HMNQFMSXSA,"3,205.36",0,"3,205.36",Staff Travelling Expenses,Travel agencies
Buckinghamshire Council,30.09.2022,22.09.2022,,,VOUCHER EXPRESS,100,0,100,Awaiting Coding,Misc business services
Buckinghamshire Council,30.09.2022,22.09.2022,Children's Services,Education & Childrens Services - CS Dir,MIDPAC,95.71,0,95.71,Awaiting Coding,Miscellaneous retail
Buckinghamshire Council,30.09.2022,22.09.2022,Children's Services,Education & Childrens Services - CS Dir,QUADIENT UK LTD,308,61.6,369.6,General Postage,Stationery & office supplies
Buckinghamshire Council,30.09.2022,22.09.2022,Children's Services,Education & Childrens Services - CS Dir,AMZNMKTPLACE,34.69,0,34.69,Leaving Care - Grants for Care Leavers,Miscellaneous retail
Buckinghamshire Council,30.09.2022,22.09.2022,Adults and Health,Health & Wellbeing - Adults & Health Dir,AMZNMktplace,25.96,0,25.96,Awaiting Coding,Miscellaneous retail
Buckinghamshire Council,30.09.2022,22.09.2022,Communities,Culture & Leisure - Communities Dir,AMZNMKTPLACE,47.14,0,47.14,Administrative Equipment & Tools,Miscellaneous retail
Buckinghamshire Council,30.09.2022,22.09.2022,Children's Services,Education & Childrens Services - CS Dir,HALFORDS ON LINE,199.99,0,199.99,Sec 17: Specialist Services,Automotive parts & accessories
Buckinghamshire Council,30.09.2022,22.09.2022,Communities,Climate Change & Environment - Community,HSS AYLESBURY,500,0,500,Awaiting Coding,"Equipment, tool, furniture hire & leasing"
Buckinghamshire Council,30.09.2022,22.09.2022,"Planning, Growth & Sustainability",Housing & Homelessness & Regulatory PGS,SLOUGH BOROUGH COUNCIL,11,0,11,Burial Costs,Government services
Buckinghamshire Council,30.09.2022,22.09.2022,Adults and Health,Health & Wellbeing - Adults & Health Dir,AMZNMKTPLACE,48.36,0,48.36,Activities & General Recreation,Miscellaneous retail
Buckinghamshire Council,30.09.2022,22.09.2022,Adults and Health,Health & Wellbeing - Adults & Health Dir,POUNDLAND LTD 1301,10,0,10,Activities & General Recreation,Discount stores
Buckinghamshire Council,30.09.2022,21.09.2022,Children's Services,Education & Childrens Services - CS Dir,THETRAINLINE.COM,28.92,0,28.92,Sec 20/31: Supp for Contact,Passenger railways
Buckinghamshire Council,30.09.2022,21.09.2022,Children's Services,Education & Childrens Services - CS Dir,TRAINLINE.COM,28.92,0,28.92,Sec 20/31: Supp for Contact,Passenger railways
Buckinghamshire Council,30.09.2022,21.09.2022,Children's Services,Education & Childrens Services - CS Dir,SNOZONE MILTON KEYNE,254.76,0,254.76,Subsistence,Restaurants
Buckinghamshire Council,30.09.2022,21.09.2022,Deputy Chief Executive,Communities - DCE,CURRYS ONLINE,469.15,93.83,562.98,Other Personal Needs,Electronics shops
Buckinghamshire Council,30.09.2022,21.09.2022,Deputy Chief Executive,Communities - DCE,CURRYS ONLINE,0.02,0,0.02,Other Personal Needs,Electronics shops
Buckinghamshire Council,30.09.2022,21.09.2022,Deputy Chief Executive,Communities - DCE,AO RETAIL LIMITED,274.15,54.83,328.98,Other Personal Needs,Household appliance stores
Buckinghamshire Council,30.09.2022,21.09.2022,Deputy Chief Executive,Communities - DCE,AO RETAIL LIMITED,0.01,0,0.01,Other Personal Needs,Household appliance stores
Buckinghamshire Council,30.09.2022,21.09.2022,Deputy Chief Executive,Communities - DCE,AO RETAIL LIMITED,403.3,80.66,483.96,Other Personal Needs,Household appliance stores
Buckinghamshire Council,30.09.2022,21.09.2022,Deputy Chief Executive,Communities - DCE,AO RETAIL LIMITED,0.03,0,0.03,Other Personal Needs,Household appliance stores
Buckinghamshire Council,30.09.2022,21.09.2022,Deputy Chief Executive,Communities - DCE,ARGOS LTD,114.95,0,114.95,Other Personal Needs,Discount stores
Buckinghamshire Council,30.09.2022,21.09.2022,Deputy Chief Executive,Communities - DCE,ARGOS LTD,284.95,0,284.95,Other Personal Needs,Discount stores
Buckinghamshire Council,30.09.2022,21.09.2022,Deputy Chief Executive,Communities - DCE,ARGOS LTD,284.95,0,284.95,Other Personal Needs,Discount stores
Buckinghamshire Council,30.09.2022,21.09.2022,Deputy Chief Executive,Communities - DCE,ARGOS LTD,337.95,0,337.95,Other Personal Needs,Discount stores
Buckinghamshire Council,30.09.2022,21.09.2022,Deputy Chief Executive,Communities - DCE,AO RETAIL LIMITED,361.65,72.33,433.98,Other Personal Needs,Household appliance stores
Buckinghamshire Council,30.09.2022,21.09.2022,Deputy Chief Executive,Communities - DCE,AO RETAIL LIMITED,0.01,0,0.01,Other Personal Needs,Household appliance stores
Buckinghamshire Council,30.09.2022,21.09.2022,Deputy Chief Executive,Communities - DCE,AO RETAIL LIMITED,378.3,75.66,453.96,Other Personal Needs,Household appliance stores
Buckinghamshire Council,30.09.2022,21.09.2022,Deputy Chief Executive,Communities - DCE,AO RETAIL LIMITED,0.03,0,0.03,Other Personal Needs,Household appliance stores
Buckinghamshire Council,30.09.2022,21.09.2022,Deputy Chief Executive,Communities - DCE,ARGOS LTD,55,0,55,Other Personal Needs,Discount stores
Buckinghamshire Council,30.09.2022,21.09.2022,Deputy Chief Executive,Communities - DCE,ARGOS LTD,187.95,0,187.95,Other Personal Needs,Discount stores
Buckinghamshire Council,30.09.2022,21.09.2022,Deputy Chief Executive,Communities - DCE,CURRYS ONLINE,245,49,294,Other Personal Needs,Electronics shops
Buckinghamshire Council,30.09.2022,21.09.2022,Deputy Chief Executive,Communities - DCE,ARGOS LTD,687.95,0,687.95,Other Personal Needs,Discount stores
Buckinghamshire Council,30.09.2022,21.09.2022,Deputy Chief Executive,Communities - DCE,ARGOS LTD,-187.95,0,-187.95,Other Personal Needs,Discount stores
Buckinghamshire Council,30.09.2022,21.09.2022,Communities,Culture & Leisure - Communities Dir,ENGELBERT STRAUSS LTD,148.18,0,148.18,General Repairs & Maintenance,Timber & building supplies
Buckinghamshire Council,30.09.2022,21.09.2022,Children's Services,Education & Childrens Services - CS Dir,FS *TECHSMITH,268.88,0,268.88,Computer Software Licences & Purchase,
Buckinghamshire Council,30.09.2022,21.09.2022,"Planning, Growth & Sustainability",Planning & Regeneration - PGS,SAINSBURY'S S/MKT,4.1,0,4.1,Miscellaneous (Other)  Expenses,Grocery stores
Buckinghamshire Council,30.09.2022,21.09.2022,Children's Services,Education & Childrens Services - CS Dir,BIG YELLOW - HIGH WYCO,-60.6,0,-60.6,Sec 20/31: Specialist Services,Warehousing
Buckinghamshire Council,30.09.2022,21.09.2022,Deputy Chief Executive,AH&R- DCE Dir,SAINSBURY S S/MKTS,8.8,0,8.8,General Provisions (Food),Grocery stores
Buckinghamshire Council,30.09.2022,21.09.2022,Deputy Chief Executive,Communities - DCE,AO RETAIL LIMITED,866.99,0,866.99,Other Personal Needs,Household appliance stores
Buckinghamshire Council,30.09.2022,21.09.2022,Deputy Chief Executive,Communities - DCE,AO RETAIL LIMITED,687.99,0,687.99,Other Personal Needs,Household appliance stores
Buckinghamshire Council,30.09.2022,21.09.2022,Deputy Chief Executive,Communities - DCE,ARGOS LTD,246.95,0,246.95,Other Personal Needs,Discount stores
Buckinghamshire Council,30.09.2022,21.09.2022,Deputy Chief Executive,Communities - DCE,AO RETAIL LIMITED,293.99,0,293.99,Other Personal Needs,Household appliance stores
Buckinghamshire Council,30.09.2022,21.09.2022,Deputy Chief Executive,Communities - DCE,ARGOS LTD,165.95,0,165.95,Other Personal Needs,Discount stores
Buckinghamshire Council,30.09.2022,21.09.2022,Resources,AH&R - Res Dir,BUCKINGHAM HOTELS,777.6,0,777.6,"Courses, Conference and Seminar Fees","Hotels, motels & resorts"
Buckinghamshire Council,30.09.2022,21.09.2022,Resources,AH&R - Res Dir,BUCKINGHAM HOTELS,600,0,600,"Courses, Conference and Seminar Fees","Hotels, motels & resorts"
Buckinghamshire Council,30.09.2022,21.09.2022,Resources,AH&R - Res Dir,BUCKINGHAM HOTELS,840,0,840,"Courses, Conference and Seminar Fees","Hotels, motels & resorts"
Buckinghamshire Council,30.09.2022,21.09.2022,Resources,AH&R - Res Dir,BUCKINGHAM HOTELS,777.6,0,777.6,"Courses, Conference and Seminar Fees","Hotels, motels & resorts"
Buckinghamshire Council,30.09.2022,21.09.2022,Resources,AH&R - Res Dir,BUCKINGHAM HOTELS,259.2,0,259.2,"Courses, Conference and Seminar Fees","Hotels, motels & resorts"
Buckinghamshire Council,30.09.2022,21.09.2022,Resources,AH&R - Res Dir,BUCKINGHAM HOTELS,777.6,0,777.6,"Courses, Conference and Seminar Fees","Hotels, motels & resorts"
Buckinghamshire Council,30.09.2022,21.09.2022,Deputy Chief Executive,AH&R- DCE Dir,EB *PRACTICE FORUM OVE,48,0,48,"Courses, Conference and Seminar Fees",Misc business services
Buckinghamshire Council,30.09.2022,21.09.2022,Adults and Health,Health & Wellbeing - Adults & Health Dir,WWW.ADASS.ORG.UK,660,0,660,"Courses, Conference and Seminar Fees",Membership organisations
Buckinghamshire Council,30.09.2022,21.09.2022,"Planning, Growth & Sustainability",AH&R - PGS Dir,ASDA SUPERSTORE,1.65,0.33,1.98,Cleaning Materials,Grocery stores
Buckinghamshire Council,30.09.2022,21.09.2022,Communities,Climate Change & Environment - Community,AMZNMKTPLACE,28.99,0,28.99,IT Equipment Purchase,Miscellaneous retail
Buckinghamshire Council,30.09.2022,21.09.2022,Children's Services,Education & Childrens Services - CS Dir,TESCO STORES 2020,2.86,0,2.86,Awaiting Coding,Grocery stores
Buckinghamshire Council,30.09.2022,21.09.2022,Children's Services,Education & Childrens Services - CS Dir,TRAVELODGE GB0000,295.24,0,295.24,Sec 17: Financial Assistance,Travelodge
Buckinghamshire Council,30.09.2022,21.09.2022,Adults and Health,Health & Wellbeing - Adults & Health Dir,AMZNMKTPLACE,9.98,0,9.98,Other Supplies,Miscellaneous retail
Buckinghamshire Council,30.09.2022,21.09.2022,"Planning, Growth & Sustainability",Planning & Regeneration - PGS,AMZNMKTPLACE,229.9,0,229.9,Miscellaneous (Other)  Expenses,Miscellaneous retail
Buckinghamshire Council,30.09.2022,21.09.2022,Resources,AH&R - Res Dir,FS.COM GMBH,21,0,21,Computer Consumables,"Computers, peripherals & software"
Buckinghamshire Council,30.09.2022,21.09.2022,Resources,AH&R - Res Dir,TRAVELODGE GB0000,910.13,0,910.13,"Courses, Conference and Seminar Fees",Travelodge
Buckinghamshire Council,30.09.2022,21.09.2022,Children's Services,Education & Childrens Services - CS Dir,B & Q 1305,6,0,6,Other Equipment and Materials,Home supply warehouse stores
Buckinghamshire Council,30.09.2022,21.09.2022,Children's Services,Education & Childrens Services - CS Dir,eBay O*19-09123-72633,20.36,0,20.36,Awaiting Coding,Department stores
Buckinghamshire Council,30.09.2022,21.09.2022,Children's Services,Education & Childrens Services - CS Dir,TESCO STORES 4804,6.2,0,6.2,Awaiting Coding,Grocery stores
Buckinghamshire Council,30.09.2022,21.09.2022,Communities,Partnerships - Communities,THE BIRCH,75,0,75,Subsistence,Restaurants
Buckinghamshire Council,30.09.2022,21.09.2022,Adults and Health,Health & Wellbeing - Adults & Health Dir,ASDA SUPERSTORE,11.1,0,11.1,General Provisions (Food),Grocery stores
Buckinghamshire Council,30.09.2022,21.09.2022,Children's Services,Education & Childrens Services - CS Dir,AO RETAIL LIMITED,453.99,0,453.99,Leaving Care - Grants for Care Leavers,Household appliance stores
Buckinghamshire Council,30.09.2022,21.09.2022,Children's Services,Education & Childrens Services - CS Dir,ARGOS LTD,35,0,35,Leaving Care - Grants for Care Leavers,Discount stores
Buckinghamshire Council,30.09.2022,21.09.2022,Children's Services,Education & Childrens Services - CS Dir,ARGOS LTD,236.95,0,236.95,Leaving Care - Grants for Care Leavers,Discount stores
Buckinghamshire Council,30.09.2022,21.09.2022,Children's Services,Education & Childrens Services - CS Dir,AMZNMKTPLACE,529.99,0,529.99,Leaving Care - Grants for Care Leavers,Miscellaneous retail
Buckinghamshire Council,30.09.2022,21.09.2022,Children's Services,Education & Childrens Services - CS Dir,AMZNMKTPLACE,69.99,0,69.99,Leaving Care - Grants for Care Leavers,Miscellaneous retail
Buckinghamshire Council,30.09.2022,21.09.2022,Children's Services,Education & Childrens Services - CS Dir,AMZ*AVANT-GARDE ESSENT,-24.99,0,-24.99,Leaving Care - Grants for Care Leavers,Miscellaneous retail
Buckinghamshire Council,30.09.2022,21.09.2022,Children's Services,Education & Childrens Services - CS Dir,DUNELM SOFTFURNISHINGS,-15,0,-15,Leaving Care - Grants for Care Leavers,Furniture & home furnishing
Buckinghamshire Council,30.09.2022,21.09.2022,Deputy Chief Executive,AH&R- DCE Dir,THE POINTER,320,0,320,"Courses, Conference and Seminar Fees","Hotels, motels & resorts"
Buckinghamshire Council,30.09.2022,21.09.2022,Resources,AH&R - Res Dir,LINKEDIN-827,139.31,0,139.31,Permanent Recruitment Costs,Advertising services
Buckinghamshire Council,30.09.2022,21.09.2022,Children's Services,Education & Childrens Services - CS Dir,CPD ONLINE COLLEGE,24,0,24,Health & Safety Supplies & Services,Schools
Buckinghamshire Council,30.09.2022,21.09.2022,Children's Services,Education & Childrens Services - CS Dir,CPD ONLINE COLLEGE,96,0,96,Health & Safety Supplies & Services,Schools
Buckinghamshire Council,30.09.2022,21.09.2022,Children's Services,Education & Childrens Services - CS Dir,SWI SCHOOLWEAR,91.35,0,91.35,Other Personal Needs,Misc. clothing & accessory shops
Buckinghamshire Council,30.09.2022,21.09.2022,Children's Services,Education & Childrens Services - CS Dir,HSQE LTD,28.8,0,28.8,Health & Safety Supplies & Services,Schools
Buckinghamshire Council,30.09.2022,21.09.2022,Children's Services,Education & Childrens Services - CS Dir,AMAZON.CO.UK,7.84,0,7.84,Stationery & Office Supplies,Direct sales companies
Buckinghamshire Council,30.09.2022,21.09.2022,Adults and Health,Health & Wellbeing - Adults & Health Dir,AMZNMktplace,39.78,0,39.78,Awaiting Coding,Miscellaneous retail
Buckinghamshire Council,30.09.2022,21.09.2022,Children's Services,Education & Childrens Services - CS Dir,HM PASSPORT OFFICE,49,0,49,Sec 20/31: Specialist Services,Government services
Buckinghamshire Council,30.09.2022,21.09.2022,Children's Services,Education & Childrens Services - CS Dir,TRAINLINE.COM,66.19,0,66.19,Sec 20/31: Supp for Contact,Passenger railways
Buckinghamshire Council,30.09.2022,21.09.2022,Children's Services,Education & Childrens Services - CS Dir,WWW.SAFARIMK.CO.UK,18.4,0,18.4,Sec 20/31: Supp for Contact,Misc. recreational services
Buckinghamshire Council,30.09.2022,21.09.2022,Communities,Communities - Trading Accounts,DVLA VEHICLE TAX,167.5,0,167.5,Maintenance Contract with VMD,Tax payments
Buckinghamshire Council,30.09.2022,20.09.2022,Communities,Culture & Leisure - Communities Dir,AMZNMKTPLACE,18.69,0,18.69,Awaiting Coding,Miscellaneous retail
Buckinghamshire Council,30.09.2022,20.09.2022,Children's Services,Education & Childrens Services - CS Dir,THETRAINLINE.COM,28.92,0,28.92,Sec 20/31: Supp for Contact,Passenger railways
Buckinghamshire Council,30.09.2022,20.09.2022,Children's Services,Education & Childrens Services - CS Dir,THETRAINLINE.COM,28.92,0,28.92,Sec 20/31: Supp for Contact,Passenger railways
Buckinghamshire Council,30.09.2022,20.09.2022,Children's Services,Education & Childrens Services - CS Dir,THETRAINLINE.COM,-17.3,0,-17.3,Sec 20/31: Supp for Contact,Passenger railways
Buckinghamshire Council,30.09.2022,20.09.2022,Children's Services,Education & Childrens Services - CS Dir,THETRAINLINE.COM,-17.3,0,-17.3,Sec 20/31: Supp for Contact,Passenger railways
Buckinghamshire Council,30.09.2022,20.09.2022,Children's Services,Education & Childrens Services - CS Dir,TRAINLINE.COM,-110.4,0,-110.4,Sec 20/31: Supp for Contact,Passenger railways
Buckinghamshire Council,30.09.2022,20.09.2022,"Planning, Growth & Sustainability",Housing & Homelessness & Regulatory PGS,BUCKINGHAMSHIRE CNCL,11,0,11,Burial Costs,Government services
Buckinghamshire Council,30.09.2022,20.09.2022,Children's Services,Education & Childrens Services - CS Dir,A1 TAXI SERVICE,264,0,264,Sec 20/31: Transport,Taxicabs & limousines
Buckinghamshire Council,30.09.2022,20.09.2022,Children's Services,Education & Childrens Services - CS Dir,A1 TAXI SERVICE,-60,0,-60,Sec 20/31: Transport,Taxicabs & limousines
Buckinghamshire Council,30.09.2022,20.09.2022,"Planning, Growth & Sustainability",AH&R - PGS Dir,SIGN WIZZARD LIMITED,181.21,0,181.21,LKD Printing CPU Catalogue,Typesetting & plate making
Buckinghamshire Council,30.09.2022,20.09.2022,Deputy Chief Executive,Communities - DCE,ARGOS LTD,65.95,0,65.95,Other Personal Needs,Discount stores
Buckinghamshire Council,30.09.2022,20.09.2022,Deputy Chief Executive,Communities - DCE,AO RETAIL LIMITED,523.99,0,523.99,Other Personal Needs,Household appliance stores
Buckinghamshire Council,30.09.2022,20.09.2022,Deputy Chief Executive,Communities - DCE,AO RETAIL LIMITED,-481.99,0,-481.99,Other Personal Needs,Household appliance stores
Buckinghamshire Council,30.09.2022,20.09.2022,Resources,AH&R - Res Dir,GEN REGISTER OFFICE,14,0,14,Miscellaneous (Other)  Expenses,Government services
Buckinghamshire Council,30.09.2022,20.09.2022,Resources,AH&R - Res Dir,GEN REGISTER OFFICE,11,0,11,Miscellaneous (Other)  Expenses,Government services
Buckinghamshire Council,30.09.2022,20.09.2022,Children's Services,Education & Childrens Services - CS Dir,DVLA DRIVER ONLINE,34,0,34,YOS - Direct Work,Government services
Buckinghamshire Council,30.09.2022,20.09.2022,Communities,Transport - Communities Dir,AMZNMKTPLACE,55.99,0,55.99,Equipment,Miscellaneous retail
Buckinghamshire Council,30.09.2022,20.09.2022,Communities,Housing & Homelessness & Regulatory Comm,AMZNMKTPLACE,79.26,0,79.26,Purchase.of Refreshments and Food,Miscellaneous retail
Buckinghamshire Council,30.09.2022,20.09.2022,Children's Services,Education & Childrens Services - CS Dir,FAMILY LINKS,286.6,0,286.6,Miscellaneous (Other)  Expenses,Charitable organisations
Buckinghamshire Council,30.09.2022,20.09.2022,"Planning, Growth & Sustainability",Planning & Regeneration - PGS,PRINT GROUP,547.1,0,547.1,Printing & Stationery,Misc business services
Buckinghamshire Council,30.09.2022,20.09.2022,Communities,Culture & Leisure - Communities Dir,TIMPSON LTD,24,0,24,Administrative Equipment & Tools,Miscellaneous retail
Buckinghamshire Council,30.09.2022,20.09.2022,Adults and Health,Health & Wellbeing - Adults & Health Dir,CARD FACTORY,1.24,0.25,1.49,Printing & Stationery,"Gift, card & novelty shops"
Buckinghamshire Council,30.09.2022,20.09.2022,Children's Services,Education & Childrens Services - CS Dir,HM PASSPORT OFFICE,75.5,0,75.5,Sec 20/31: Specialist Services,Government services
Buckinghamshire Council,30.09.2022,20.09.2022,Children's Services,Education & Childrens Services - CS Dir,HM PASSPORT OFFICE,49,0,49,Sec 20/31: Specialist Services,Government services
Buckinghamshire Council,30.09.2022,20.09.2022,Children's Services,Education & Childrens Services - CS Dir,BUCKINGHAMSHIRE CNCL,11,0,11,Sec 20/31: Specialist Services,Government services
Buckinghamshire Council,30.09.2022,20.09.2022,Children's Services,Education & Childrens Services - CS Dir,SAINSBURYS S/MKTS,9.13,0,9.13,Awaiting Coding,Grocery stores
Buckinghamshire Council,30.09.2022,20.09.2022,"Planning, Growth & Sustainability",Planning & Regeneration - PGS,AMZ*FUDESY,-269.9,0,-269.9,Miscellaneous (Other)  Expenses,Miscellaneous retail
Buckinghamshire Council,30.09.2022,20.09.2022,Children's Services,Education & Childrens Services - CS Dir,AMZNMKTPLACE,30.98,0,30.98,Sec 20/31: Financial Assistance,Miscellaneous retail
Buckinghamshire Council,30.09.2022,20.09.2022,Deputy Chief Executive,AH&R- DCE Dir,TAXIPAY,52,0,52,Staff Travelling Expenses,Taxicabs & limousines
Buckinghamshire Council,30.09.2022,20.09.2022,Deputy Chief Executive,AH&R- DCE Dir,THE TAXI PEOPLE,216,0,216,Staff Travelling Expenses,Taxicabs & limousines
Buckinghamshire Council,30.09.2022,20.09.2022,Children's Services,Education & Childrens Services - CS Dir,MARKS&SPENCER PLC SA,96.5,0,96.5,Purchase.of Refreshments and Food,Grocery stores
Buckinghamshire Council,30.09.2022,20.09.2022,"Planning, Growth & Sustainability",AH&R - PGS Dir,ALLSTAR COLLECTIONS,160.6,32.12,192.72,Diesel Oil - Gas Oil,Fuel dealers
Buckinghamshire Council,30.09.2022,20.09.2022,"Planning, Growth & Sustainability",AH&R - PGS Dir,ALLSTAR COLLECTIONS,0.04,0,0.04,Diesel Oil - Gas Oil,Fuel dealers
Buckinghamshire Council,30.09.2022,20.09.2022,Deputy Chief Executive,AH&R- DCE Dir,MOONPIG,4.74,0,4.74,"Courses, Conference and Seminar Fees",Misc. general merchandise
Buckinghamshire Council,30.09.2022,20.09.2022,"Planning, Growth & Sustainability",AH&R - PGS Dir,WWW.NEOPOST.CO.UK,"1,000.00",0,"1,000.00",General Postage,Stationery & office supplies
Buckinghamshire Council,30.09.2022,20.09.2022,Children's Services,Education & Childrens Services - CS Dir,TRAINLINE.COM,10.99,0,10.99,Staff Travelling Expenses,Passenger railways
Buckinghamshire Council,30.09.2022,20.09.2022,"Planning, Growth & Sustainability",Planning & Regeneration - PGS,COLYER LONDON,208.93,0,208.93,Computer Consumables,Computer software stores
Buckinghamshire Council,30.09.2022,20.09.2022,"Planning, Growth & Sustainability",Planning & Regeneration - PGS,AMAZON.CO.UK,52.2,0,52.2,Stationery & Office Supplies,Direct sales companies
Buckinghamshire Council,30.09.2022,20.09.2022,"Planning, Growth & Sustainability",Planning & Regeneration - PGS,AMZNMKTPLACE,76.05,0,76.05,Stationery & Office Supplies,Miscellaneous retail
Buckinghamshire Council,30.09.2022,20.09.2022,"Planning, Growth & Sustainability",Housing & Homelessness & Regulatory PGS,BARGAIN BUYS,8.55,0,8.55,Other General Office Expenses,Variety stores
Buckinghamshire Council,30.09.2022,20.09.2022,Adults and Health,Health & Wellbeing - Adults & Health Dir,TESCO STORES 5135,89.15,0,89.15,Awaiting Coding,Grocery stores
Buckinghamshire Council,30.09.2022,20.09.2022,Adults and Health,Health & Wellbeing - Adults & Health Dir,TRAVELODGE GB0000,168.25,33.66,201.91,Other Short Term Support,Travelodge
Buckinghamshire Council,30.09.2022,20.09.2022,Adults and Health,Health & Wellbeing - Adults & Health Dir,SAINSBURY'S S/MKT,46.66,0,46.66,Activities & General Recreation,Grocery stores
Buckinghamshire Council,30.09.2022,20.09.2022,Deputy Chief Executive,Communities - DCE,ARGOS LTD,43.14,0,43.14,Other Personal Needs,Discount stores
Buckinghamshire Council,30.09.2022,20.09.2022,Deputy Chief Executive,Communities - DCE,ARGOS LTD,34.95,0,34.95,Other Personal Needs,Discount stores
Buckinghamshire Council,30.09.2022,20.09.2022,Deputy Chief Executive,Communities - DCE,ARGOS LTD,272.95,0,272.95,Other Personal Needs,Discount stores
Buckinghamshire Council,30.09.2022,20.09.2022,Deputy Chief Executive,Communities - DCE,ARGOS LTD,542.95,0,542.95,Other Personal Needs,Discount stores
Buckinghamshire Council,30.09.2022,19.09.2022,Children's Services,Education & Childrens Services - CS Dir,TRAINLINE.COM,-105.1,0,-105.1,Sec 20/31: Supp for Contact,Passenger railways
Buckinghamshire Council,30.09.2022,19.09.2022,Children's Services,Education & Childrens Services - CS Dir,ARGOS LTD,-20,0,-20,Leaving Care - Grants for Care Leavers,Discount stores
Buckinghamshire Council,30.09.2022,19.09.2022,Children's Services,Education & Childrens Services - CS Dir,ARGOS LTD,-12,0,-12,Leaving Care - Grants for Care Leavers,Discount stores
Buckinghamshire Council,30.09.2022,19.09.2022,Children's Services,Education & Childrens Services - CS Dir,AMZNMktplace,18.45,0,18.45,Awaiting Coding,Miscellaneous retail
Buckinghamshire Council,30.09.2022,19.09.2022,Children's Services,Education & Childrens Services - CS Dir,AMAZON.CO.UK,57.98,0,57.98,Miscellaneous (Other)  Expenses,Direct sales companies
Buckinghamshire Council,30.09.2022,19.09.2022,"Planning, Growth & Sustainability",Planning & Regeneration - PGS,AMZNMKTPLACE,431.84,0,431.84,Miscellaneous (Other)  Expenses,Miscellaneous retail
Buckinghamshire Council,30.09.2022,19.09.2022,Resources,AH&R - Res Dir,DELIVEROO,95.68,0,95.68,Subsistence,Restaurants
Buckinghamshire Council,30.09.2022,19.09.2022,Children's Services,Education & Childrens Services - CS Dir,AMZNMKTPLACE,84.93,0,84.93,Consumable Supplies,Miscellaneous retail
Buckinghamshire Council,30.09.2022,19.09.2022,Communities,Culture & Leisure - Communities Dir,TVLICENSING.CO.UK,159,0,159,Administrative Equipment & Tools,Consultants & public relation services
Buckinghamshire Council,30.09.2022,19.09.2022,Communities,Culture & Leisure - Communities Dir,TVLICENSING.CO.UK,159,0,159,Administrative Equipment & Tools,Consultants & public relation services
Buckinghamshire Council,30.09.2022,18.09.2022,Communities,Climate Change & Environment - Community,AMZNMKTPLACE,29.99,0,29.99,Stationery & Office Supplies,Miscellaneous retail
Buckinghamshire Council,30.09.2022,18.09.2022,Children's Services,Education & Childrens Services - CS Dir,Lebara Mobile Limited,25,0,25,Computer Support Services,Computer network information services
Buckinghamshire Council,30.09.2022,18.09.2022,Resources,AH&R - Res Dir,PAYPAL,14.39,0,14.39,IT - Computer Network Charges,Computer network information services
Buckinghamshire Council,30.09.2022,17.09.2022,Communities,Culture & Leisure - Communities Dir,SP CONVENIENT DRAIN,22.29,4.46,26.75,"Workshop - Materials,Tools & Equipment","Cleaning, maintenance & janitorial services"
Buckinghamshire Council,30.09.2022,17.09.2022,Communities,Housing & Homelessness & Regulatory Comm,BRITISH GAS ONLINE,15.04,0,15.04,Gas,Utilities
Buckinghamshire Council,30.09.2022,17.09.2022,Children's Services,Education & Childrens Services - CS Dir,GREGGS,8.65,0,8.65,Miscellaneous (Other)  Expenses,Restaurants
Buckinghamshire Council,30.09.2022,17.09.2022,Communities,Transport - Communities Dir,INTERFLORA BRITISH UNI,62,0,62,Seeds & Plants,Florists
Buckinghamshire Council,30.09.2022,17.09.2022,Children's Services,Education & Childrens Services - CS Dir,CANVA* I03546-10371149,22.99,0,22.99,Service Development,Photographic studios
Buckinghamshire Council,30.09.2022,17.09.2022,Communities,Culture & Leisure - Communities Dir,WWW.SCREWFIX.COM,77.72,15.55,148.86,"Workshop - Materials,Tools & Equipment",Timber & building supplies
Buckinghamshire Council,30.09.2022,17.09.2022,Communities,Culture & Leisure - Communities Dir,WORKGLOVES.CO.UK,49.9,9.98,59.88,Protective Clothing & Uniforms,"Laboratory, medical & hospital equipment"
Buckinghamshire Council,30.09.2022,17.09.2022,Communities,Culture & Leisure - Communities Dir,WWW.SCREWFIX.COM,46.32,9.27,148.86,Protective Clothing & Uniforms,Timber & building supplies
Buckinghamshire Council,30.09.2022,17.09.2022,Deputy Chief Executive,AH&R- DCE Dir,AMZNMKTPLACE,11.4,0,11.4,Stationery & Office Supplies,Miscellaneous retail
Buckinghamshire Council,30.09.2022,16.09.2022,Communities,Culture & Leisure - Communities Dir,AMZNMKTPLACE,23.94,0,23.94,Miscellaneous (Other)  Expenses,Miscellaneous retail
Buckinghamshire Council,30.09.2022,16.09.2022,Children's Services,Education & Childrens Services - CS Dir,AMZNMktplace,86.99,0,86.99,Awaiting Coding,Miscellaneous retail
Buckinghamshire Council,30.09.2022,16.09.2022,Children's Services,Education & Childrens Services - CS Dir,AMZNMKTPLACE,194.98,0,194.98,Other internal recharge��������������,Miscellaneous retail
Buckinghamshire Council,30.09.2022,16.09.2022,Adults and Health,Health & Wellbeing - Adults & Health Dir,Amazon.co.uk,24.04,0,24.04,Stationery & Office Supplies,Direct sales companies
Buckinghamshire Council,30.09.2022,16.09.2022,Children's Services,Education & Childrens Services - CS Dir,LOCKFIT AYLESBURY,200,0,200,Sec 17: Financial Assistance One Off,General contractors
Buckinghamshire Council,30.09.2022,16.09.2022,Children's Services,Education & Childrens Services - CS Dir,TRAINLINE.COM,126.08,0,126.08,Sec 20/31: Supp for Contact,Passenger railways
Buckinghamshire Council,30.09.2022,16.09.2022,"Planning, Growth & Sustainability",Housing & Homelessness & Regulatory PGS,C.P.J. FIELD & CO. LIMITE,95,0,95,Burial Costs,Funeral services & crematoriums
Buckinghamshire Council,30.09.2022,16.09.2022,Children's Services,Education & Childrens Services - CS Dir,SWAN RIDER,640,0,640,Staff Travelling Expenses,Transportation services
Buckinghamshire Council,30.09.2022,16.09.2022,Children's Services,Education & Childrens Services - CS Dir,UK CARS (HIGH WYCOMBE),160,0,160,Staff Travelling Expenses,Taxicabs & limousines
Buckinghamshire Council,30.09.2022,16.09.2022,Children's Services,Education & Childrens Services - CS Dir,ARGOS LTD,551.95,0,551.95,Leaving Care - Grants for Care Leavers,Discount stores
Buckinghamshire Council,30.09.2022,16.09.2022,Children's Services,Education & Childrens Services - CS Dir,AMZNMktplace,47.58,0,47.58,Awaiting Coding,Miscellaneous retail
Buckinghamshire Council,30.09.2022,16.09.2022,Children's Services,Education & Childrens Services - CS Dir,ROGUE BOWLING,75,0,75,Awaiting Coding,"Member clubs, sport, recreation & golf"
Buckinghamshire Council,30.09.2022,16.09.2022,Children's Services,Education & Childrens Services - CS Dir,A1 TAXI SERVICE,200,40,240,Sec 20/31: Transport,Taxicabs & limousines
Buckinghamshire Council,30.09.2022,16.09.2022,Children's Services,Education & Childrens Services - CS Dir,WWW.ANYVAN.COM,150,0,150,Sec 20/31: Financial Assistance One Off,"Haulage, removals & delivery"
Buckinghamshire Council,30.09.2022,16.09.2022,Children's Services,Education & Childrens Services - CS Dir,WWW.ANYVAN.COM,-75,0,-75,Sec 20/31: Financial Assistance One Off,"Haulage, removals & delivery"
Buckinghamshire Council,30.09.2022,16.09.2022,Children's Services,Education & Childrens Services - CS Dir,PP*INTUTAXI,86,0,86,Sec 20/31: Transport,Record shops
Buckinghamshire Council,30.09.2022,16.09.2022,Deputy Chief Executive,Communities - DCE,ARGOS LTD,57.95,0,57.95,Other Personal Needs,Discount stores
Buckinghamshire Council,30.09.2022,16.09.2022,Deputy Chief Executive,Communities - DCE,ARGOS LTD,142.95,0,142.95,Other Personal Needs,Discount stores
Buckinghamshire Council,30.09.2022,16.09.2022,Deputy Chief Executive,Communities - DCE,AO RETAIL LIMITED,715.99,0,715.99,Other Personal Needs,Household appliance stores
Buckinghamshire Council,30.09.2022,16.09.2022,Deputy Chief Executive,Communities - DCE,AO RETAIL LIMITED,884.99,0,884.99,Other Personal Needs,Household appliance stores
Buckinghamshire Council,30.09.2022,16.09.2022,Adults and Health,Health & Wellbeing - Adults & Health Dir,TESCO STORES 5135,151.61,0,151.61,Awaiting Coding,Grocery stores
Buckinghamshire Council,30.09.2022,16.09.2022,Resources,AH&R - Res Dir,NABLE TECHNOLOGIES,179.28,0,179.28,Server Hosting,Computer maintenance & repair
Buckinghamshire Council,30.09.2022,16.09.2022,Communities,Housing & Homelessness & Regulatory Comm,IZ *SHANTOCK NURSE,41.49,0,41.49,Maintenance of Grounds,Miscellaneous retail
Buckinghamshire Council,30.09.2022,16.09.2022,Communities,Housing & Homelessness & Regulatory Comm,ZTL*SHANTOCK NURSERIES LT,920,0,920,Maintenance of Grounds,Miscellaneous retail
Buckinghamshire Council,30.09.2022,16.09.2022,Adults and Health,Health & Wellbeing - Adults & Health Dir,WICKES CHESHAM,29.9,0,29.9,Cleaning & Domestic Equipment,Timber & building supplies
Buckinghamshire Council,30.09.2022,16.09.2022,Adults and Health,Health & Wellbeing - Adults & Health Dir,SAINSBURYS S/MKTS,26.75,0,26.75,General Provisions (Food),Grocery stores
Buckinghamshire Council,30.09.2022,16.09.2022,Communities,Housing & Homelessness & Regulatory Comm,AMZNMKTPLACE,11.75,2.35,14.1,Purchase.of Refreshments and Food,Miscellaneous retail
Buckinghamshire Council,30.09.2022,16.09.2022,Communities,Housing & Homelessness & Regulatory Comm,AMZNMKTPLACE,92.05,0,92.05,Purchase.of Refreshments and Food,Miscellaneous retail
Buckinghamshire Council,30.09.2022,16.09.2022,Children's Services,Education & Childrens Services - CS Dir,COOKSON PRECIOUS M,23.05,4.61,27.66,Educational Equipment,"Precious stones, metals & jewellery"
Buckinghamshire Council,30.09.2022,16.09.2022,Communities,Climate Change & Environment - Community,FACEBK WUT9HHPBM2,124.02,0,124.02,Waste Prevention costs,Advertising services
Buckinghamshire Council,30.09.2022,16.09.2022,Communities,Climate Change & Environment - Community,STK*SHUTTERSTOCK,139,0,139,Waste Prevention costs,"Commercial photo, art & graphic"
Buckinghamshire Council,30.09.2022,16.09.2022,Communities,Climate Change & Environment - Community,TWITTER ONLINE ADS,50,0,50,Waste Prevention costs,Advertising services
Buckinghamshire Council,30.09.2022,16.09.2022,Children's Services,Education & Childrens Services - CS Dir,TESCO STORES 4770,8.15,0,8.15,Miscellaneous (Other)  Expenses,Grocery stores
Buckinghamshire Council,30.09.2022,16.09.2022,Children's Services,Education & Childrens Services - CS Dir,TAXIPAY,70,0,70,Sec 17: Financial Assistance,Taxicabs & limousines
Buckinghamshire Council,30.09.2022,16.09.2022,CC Obsolete Cost Centres,Obsolete Cost Centres,BUCKINGHAM HOTELS,240,0,240,"Courses, Conference and Seminar Fees","Hotels, motels & resorts"
Buckinghamshire Council,30.09.2022,16.09.2022,CC Obsolete Cost Centres,Obsolete Cost Centres,BUCKINGHAM HOTELS,240,0,240,"Courses, Conference and Seminar Fees","Hotels, motels & resorts"
Buckinghamshire Council,30.09.2022,16.09.2022,CC Obsolete Cost Centres,Obsolete Cost Centres,BUCKINGHAM HOTELS,777.6,0,777.6,"Courses, Conference and Seminar Fees","Hotels, motels & resorts"
Buckinghamshire Council,30.09.2022,16.09.2022,Adults and Health,Health & Wellbeing - Adults & Health Dir,HOTEL AT BOOKING.COM,140.25,0,140.25,Other Short Term Support,"Hotels, motels & resorts"
Buckinghamshire Council,30.09.2022,16.09.2022,Communities,Climate Change & Environment - Community,TESCO STORES 2041,15.2,0,15.2,Stationery & Office Supplies,Grocery stores
Buckinghamshire Council,30.09.2022,16.09.2022,Communities,Climate Change & Environment - Community,SP FIRST AID WAREHOU,85.1,0,85.1,Medical Supplies & Services inc Vet'nary,"Laboratory, medical & hospital equipment"
Buckinghamshire Council,30.09.2022,16.09.2022,,,NEALES TAXIS LTD,"1,120.00",0,"1,120.00",Staff Travelling Expenses,Taxicabs & limousines
Buckinghamshire Council,30.09.2022,16.09.2022,Communities,Communities - Trust Accounts,NBBMATTING.CO.UK,996,0,996,Awaiting Coding,Misc Durable goods
Buckinghamshire Council,30.09.2022,16.09.2022,Resources,AH&R - Res Dir,LINKEDIN 8255372434,91.54,0,91.54,Permanent Recruitment Costs,Advertising services
Buckinghamshire Council,30.09.2022,16.09.2022,Resources,AH&R - Res Dir,FACEBK *VUSJAH35X2,74.38,0,74.38,Permanent Recruitment Costs,Advertising services
Buckinghamshire Council,30.09.2022,16.09.2022,Children's Services,Education & Childrens Services - CS Dir,TAXIPAY,44,0,44,Sec 20/31: Supp for Contact,Taxicabs & limousines
Buckinghamshire Council,30.09.2022,16.09.2022,Children's Services,Education & Childrens Services - CS Dir,THETRAINLINE.COM,15.57,0,15.57,Sec 20/31: Supp for Contact,Passenger railways
Buckinghamshire Council,30.09.2022,16.09.2022,Communities,Climate Change & Environment - Community,EURO CAR PARTS P,34.47,0,34.47,Repair & Maint of Vehicles & Plant,Automotive parts & accessories
Buckinghamshire Council,30.09.2022,16.09.2022,Children's Services,Education & Childrens Services - CS Dir,WWW.DISCOUNTDISPLAYS.C,-23.94,0,-23.94,Activities & General Recreation,Miscellaneous retail
Buckinghamshire Council,30.09.2022,16.09.2022,Children's Services,Education & Childrens Services - CS Dir,DARTINGTON.CO.UK,60,0,60,Support for Foster Carers,Glassware & crystal shops
Buckinghamshire Council,30.09.2022,16.09.2022,Children's Services,Education & Childrens Services - CS Dir,INTELLISOFTWARE LTD,52.8,0,52.8,Support for Foster Carers,"Computers, peripherals & software"
Buckinghamshire Council,30.09.2022,16.09.2022,Children's Services,Education & Childrens Services - CS Dir,BUCKINGHAMSHIRE CNCL,11,0,11,Sec 20/31: Financial Assistance,Government services
Buckinghamshire Council,30.09.2022,16.09.2022,Adults and Health,Health & Wellbeing - Adults & Health Dir,TAXIPAY,50,0,50,Staff Travelling Expenses,Taxicabs & limousines
Buckinghamshire Council,30.09.2022,16.09.2022,"Planning, Growth & Sustainability",Climate Change & Environment - PGS,SPAINS HALL ESTATE,45,0,45,Environmental Projects,Tourist attractions and exhibitions
Buckinghamshire Council,30.09.2022,15.09.2022,Children's Services,Education & Childrens Services - CS Dir,AMZNMKTPLACE,67.43,0,67.43,Leaving Care - Grants for Care Leavers,Miscellaneous retail
Buckinghamshire Council,30.09.2022,15.09.2022,Children's Services,Education & Childrens Services - CS Dir,TRAINLINE.COM,114.47,0,114.47,Sec 20/31: Supp for Contact,Passenger railways
Buckinghamshire Council,30.09.2022,15.09.2022,Deputy Chief Executive,Communities - DCE,TINGEWICK FUELS,90,0,90,Other Personal Needs,Fuel dealers
Buckinghamshire Council,30.09.2022,15.09.2022,Deputy Chief Executive,Communities - DCE,ARGOS LTD,897.95,0,897.95,Other Personal Needs,Discount stores
Buckinghamshire Council,30.09.2022,15.09.2022,Children's Services,Education & Childrens Services - CS Dir,UK CARS (HIGH WYCOMBE),40,0,40,Staff Travelling Expenses,Taxicabs & limousines
Buckinghamshire Council,30.09.2022,15.09.2022,Children's Services,Education & Childrens Services - CS Dir,SWAN RIDER,160,0,160,Staff Travelling Expenses,Transportation services
Buckinghamshire Council,30.09.2022,15.09.2022,Communities,Climate Change & Environment - Community,AMADEUS NEC,22.6,0,22.6,Contract Catering,Caterers
Buckinghamshire Council,30.09.2022,15.09.2022,Communities,Climate Change & Environment - Community,AMADEUS NEC,18.05,0,18.05,Contract Catering,Caterers
Buckinghamshire Council,30.09.2022,15.09.2022,"Planning, Growth & Sustainability",Planning & Regeneration - PGS,TEXTANYWHERE,54,0,54,Computer Consumables,Computer software stores
Buckinghamshire Council,30.09.2022,15.09.2022,Communities,Climate Change & Environment - Community,ROADWARRIOR,8.99,0,8.99,Computer Support Services,"Programming, data processing & system design"
Buckinghamshire Council,30.09.2022,15.09.2022,Deputy Chief Executive,AH&R- DCE Dir,TRAVELODGE GB0000,730.43,0,730.43,"Courses, Conference and Seminar Fees",Travelodge
Buckinghamshire Council,30.09.2022,15.09.2022,Deputy Chief Executive,Communities - DCE,AO RETAIL LIMITED,481.99,0,481.99,Other Personal Needs,Household appliance stores
Buckinghamshire Council,30.09.2022,15.09.2022,Deputy Chief Executive,Communities - DCE,ARGOS LTD,236.95,0,236.95,Other Personal Needs,Discount stores
Buckinghamshire Council,30.09.2022,15.09.2022,Deputy Chief Executive,Communities - DCE,AO RETAIL LIMITED,318.99,0,318.99,Other Personal Needs,Household appliance stores
Buckinghamshire Council,30.09.2022,15.09.2022,Deputy Chief Executive,Communities - DCE,ARGOS LTD,200,0,200,Other Personal Needs,Discount stores
Buckinghamshire Council,30.09.2022,15.09.2022,Deputy Chief Executive,Communities - DCE,AO RETAIL LIMITED,377.99,0,377.99,Other Personal Needs,Household appliance stores
Buckinghamshire Council,30.09.2022,15.09.2022,Deputy Chief Executive,Communities - DCE,ARGOS LTD,73.45,0,73.45,Other Personal Needs,Discount stores
Buckinghamshire Council,30.09.2022,15.09.2022,Deputy Chief Executive,Communities - DCE,ASDA GEORGE COM LEEDS,164.5,0,164.5,Other Personal Needs,Grocery stores
Buckinghamshire Council,30.09.2022,15.09.2022,Deputy Chief Executive,Communities - DCE,ARGOS LTD,191.95,0,191.95,Other Personal Needs,Discount stores
Buckinghamshire Council,30.09.2022,15.09.2022,Deputy Chief Executive,Communities - DCE,ONE YMCA,15,0,15,Other Personal Needs,Misc business services
Buckinghamshire Council,30.09.2022,15.09.2022,Deputy Chief Executive,Communities - DCE,AO RETAIL LIMITED,481.99,0,481.99,Other Personal Needs,Household appliance stores
Buckinghamshire Council,30.09.2022,15.09.2022,Deputy Chief Executive,Communities - DCE,ARGOS LTD,65.45,0,65.45,Other Personal Needs,Discount stores
Buckinghamshire Council,30.09.2022,15.09.2022,Children's Services,Education & Childrens Services - CS Dir,GEN REGISTER OFFICE,14,0,14,Court Orders Sec 31: Miscellaneous,Government services
Buckinghamshire Council,30.09.2022,15.09.2022,Communities,Partnerships - Communities,ROYAL MAIL GROUP LTD,1.37,0,1.37,Equipment,Postal services
Buckinghamshire Council,30.09.2022,15.09.2022,Adults and Health,Health & Wellbeing - Adults & Health Dir,WM MORRISONS STORE,40.96,0,40.96,General Provisions (Food),Grocery stores
Buckinghamshire Council,30.09.2022,15.09.2022,"Planning, Growth & Sustainability",AH&R - PGS Dir,AMZNMKTPLACE,35.95,0,35.95,Miscellaneous (Other)  Expenses,Miscellaneous retail
Buckinghamshire Council,30.09.2022,15.09.2022,"Planning, Growth & Sustainability",AH&R - PGS Dir,LOCK & KEY CENTRE,88.5,0,88.5,General Repairs & Maintenance,Shoe repairs
Buckinghamshire Council,30.09.2022,15.09.2022,Children's Services,Education & Childrens Services - CS Dir,SAINSBURY'S S/MKT,10,0,10,Miscellaneous (Other)  Expenses,Grocery stores
Buckinghamshire Council,30.09.2022,15.09.2022,Adults and Health,Health & Wellbeing - Adults & Health Dir,TESCO STORES 5927,18.4,0,18.4,General Provisions (Food),Grocery stores
Buckinghamshire Council,30.09.2022,15.09.2022,Adults and Health,Health & Wellbeing - Adults & Health Dir,MILK AND MORE (RECUR,13.55,0,13.55,General Provisions (Food),Dairy produce stores
Buckinghamshire Council,30.09.2022,15.09.2022,Communities,Culture & Leisure - Communities Dir,AMZNMKTPLACE,4.15,0.83,4.98,Events Expenditure,Miscellaneous retail
Buckinghamshire Council,30.09.2022,15.09.2022,Communities,Culture & Leisure - Communities Dir,AMZNMKTPLACE,0.02,0,0.02,Events Expenditure,Miscellaneous retail
Buckinghamshire Council,30.09.2022,15.09.2022,Communities,Culture & Leisure - Communities Dir,AMZNMKTPLACE,20.82,4.17,24.99,Events Expenditure,Miscellaneous retail
Buckinghamshire Council,30.09.2022,15.09.2022,Communities,Culture & Leisure - Communities Dir,AMZNMKTPLACE,24.98,5,29.98,Events Expenditure,Miscellaneous retail
Buckinghamshire Council,30.09.2022,15.09.2022,Communities,Culture & Leisure - Communities Dir,AMZNMKTPLACE,14.15,2.83,16.98,Events Expenditure,Miscellaneous retail
Buckinghamshire Council,30.09.2022,15.09.2022,Communities,Culture & Leisure - Communities Dir,AMZNMKTPLACE,0.01,0,0.01,Events Expenditure,Miscellaneous retail
Buckinghamshire Council,30.09.2022,15.09.2022,Communities,Culture & Leisure - Communities Dir,AMZNMKTPLACE,11.65,2.33,13.98,Events Expenditure,Miscellaneous retail
Buckinghamshire Council,30.09.2022,15.09.2022,Communities,Culture & Leisure - Communities Dir,AMZNMKTPLACE,0.01,0,0.01,Events Expenditure,Miscellaneous retail
Buckinghamshire Council,30.09.2022,15.09.2022,Adults and Health,Health & Wellbeing - Adults & Health Dir,TESCO STORE 2162,47.1,0,47.1,General Provisions (Food),Grocery stores
Buckinghamshire Council,30.09.2022,15.09.2022,Communities,Climate Change & Environment - Community,SHORT/MED 2&3 BIRMINGH,12,0,12,Staff Travelling Expenses,Car parking & garages
Buckinghamshire Council,30.09.2022,15.09.2022,Communities,Climate Change & Environment - Community,WWW.LETSRECYCLE.COM,237.6,0,237.6,"Courses, Conference and Seminar Fees",
Buckinghamshire Council,30.09.2022,15.09.2022,Communities,Climate Change & Environment - Community,THE CORNISH BAKERY-NEC,6.9,0,6.9,Subsistence,Restaurants
Buckinghamshire Council,30.09.2022,15.09.2022,Resources,AH&R - Res Dir,AMZNMKTPLACE,89.65,0,89.65,Administrative Equipment & Tools,Miscellaneous retail
Buckinghamshire Council,30.09.2022,15.09.2022,Deputy Chief Executive,AH&R- DCE Dir,TRAVELODGE GB0000,790.61,0,790.61,"Courses, Conference and Seminar Fees",Travelodge
Buckinghamshire Council,30.09.2022,15.09.2022,Deputy Chief Executive,AH&R- DCE Dir,TAXIPAY TAXI FARE,50,0,50,Staff Travelling Expenses,Taxicabs & limousines
Buckinghamshire Council,30.09.2022,15.09.2022,Resources,AH&R - Res Dir,GMO GLOBALSIGN LIM,189.6,0,189.6,Annual Licence (IT),Computer network information services
Buckinghamshire Council,30.09.2022,15.09.2022,Resources,AH&R - Res Dir,BUSINESS RELATIONSHIP MAN,524.76,0,524.76,Subscriptions to National Bodies,Professional services
Buckinghamshire Council,30.09.2022,15.09.2022,Resources,AH&R - Res Dir,PAYPAL,8.4,0,8.4,IT - Computer Network Charges,Computer network information services
Buckinghamshire Council,30.09.2022,15.09.2022,Resources,AH&R - Res Dir,AIRBNB * HM4N3THTS2,637,0,637,Staff Travelling Expenses,Travel agencies
Buckinghamshire Council,30.09.2022,15.09.2022,,,DELIVEROO,56.33,0,56.33,Subsistence,Restaurants
Buckinghamshire Council,30.09.2022,15.09.2022,Deputy Chief Executive,AH&R- DCE Dir,AMZNMKTPLACE,35.94,0,35.94,Canvas Expenses,Miscellaneous retail
Buckinghamshire Council,30.09.2022,15.09.2022,Children's Services,Education & Childrens Services - CS Dir,TESCO STORES 5927,4,0,4,General Provisions (Food),Grocery stores
Buckinghamshire Council,30.09.2022,15.09.2022,Communities,Communities - Trust Accounts,COSTCO WHOLESALE #102,166.54,0,166.54,Stationery & Office Supplies,Buying & shopping services/clubs
Buckinghamshire Council,30.09.2022,15.09.2022,Communities,Communities - Trust Accounts,OLYMPIC WORKWEAR,114.84,0,114.84,Protective Clothing & Uniforms,Uniforms & commercial clothing
Buckinghamshire Council,30.09.2022,15.09.2022,Children's Services,Education & Childrens Services - CS Dir,PARENTPAY E-COM R,57,0,57,General Provisions (Food),Colleges & universities
Buckinghamshire Council,30.09.2022,15.09.2022,Resources,AH&R - Res Dir,WH Smith Aylesbury,7.6,0,7.6,"Books, Records, Films & Oth Publications",Newspapers / newsagents
Buckinghamshire Council,30.09.2022,15.09.2022,Adults and Health,Health & Wellbeing - Adults & Health Dir,WILKO RETAIL LIMITED,5.75,0,5.75,Stationery & Office Supplies,Misc. general merchandise
Buckinghamshire Council,30.09.2022,15.09.2022,Adults and Health,Health & Wellbeing - Adults & Health Dir,CURIOSITY,9.3,0,9.3,Awaiting Coding,"Gift, card & novelty shops"
Buckinghamshire Council,30.09.2022,15.09.2022,Children's Services,Education & Childrens Services - CS Dir,TRAINLINE,55.1,0,55.1,Sec 17: Transport,Passenger railways
Buckinghamshire Council,30.09.2022,15.09.2022,"Planning, Growth & Sustainability",Housing & Homelessness & Regulatory PGS,GOVNET EVENTS,820.8,0,820.8,Course Fees & Post Entry Training,Membership organisations
Buckinghamshire Council,30.09.2022,15.09.2022,"Planning, Growth & Sustainability",Leader - PGS,WESTMINSTER INSIGHT,286.2,0,286.2,"Courses, Conference and Seminar Fees",
Buckinghamshire Council,30.09.2022,15.09.2022,Adults and Health,Health & Wellbeing - Adults & Health Dir,AMZNMktplace,17.4,0,17.4,Awaiting Coding,Miscellaneous retail
Buckinghamshire Council,30.09.2022,15.09.2022,Children's Services,Education & Childrens Services - CS Dir,PREMIER INN,81,0,81,"Courses, Conference and Seminar Fees",Premier Inn
Buckinghamshire Council,30.09.2022,15.09.2022,Children's Services,Education & Childrens Services - CS Dir,PREMIER INN,81,0,81,"Courses, Conference and Seminar Fees",Premier Inn
Buckinghamshire Council,30.09.2022,15.09.2022,Children's Services,Education & Childrens Services - CS Dir,AMZNMKTPLACE,35.93,0,35.93,Sec 20/31: Financial Assistance,Miscellaneous retail
Buckinghamshire Council,30.09.2022,15.09.2022,Adults and Health,Health & Wellbeing - Adults & Health Dir,ALDI STORES,6.93,0,6.93,Awaiting Coding,Grocery stores
Buckinghamshire Council,30.09.2022,15.09.2022,Deputy Chief Executive,AH&R- DCE Dir,DOUBLETREE BY HILTON,109,0,109,"Courses, Conference and Seminar Fees",Doubletree Hotels
Buckinghamshire Council,30.09.2022,15.09.2022,Deputy Chief Executive,AH&R- DCE Dir,DOUBLETREE BY HILTON,109,0,109,"Courses, Conference and Seminar Fees",Doubletree Hotels
Buckinghamshire Council,30.09.2022,15.09.2022,Deputy Chief Executive,AH&R- DCE Dir,DOUBLETREE BY HILTON,109,0,109,"Courses, Conference and Seminar Fees",Doubletree Hotels
Buckinghamshire Council,30.09.2022,15.09.2022,Deputy Chief Executive,AH&R- DCE Dir,DOUBLETREE BY HILTON,109,0,109,"Courses, Conference and Seminar Fees",Doubletree Hotels
Buckinghamshire Council,30.09.2022,15.09.2022,Adults and Health,Health & Wellbeing - Adults & Health Dir,WH SMITH,16.32,0,16.32,General Postage,Newspapers / newsagents
Buckinghamshire Council,30.09.2022,14.09.2022,Children's Services,Education & Childrens Services - CS Dir,BUCKINGHAMSHIRE CNCL,22,0,22,Sec 20/31: Specialist Services,Government services
Buckinghamshire Council,30.09.2022,14.09.2022,Communities,Transport - Communities Dir,BHM STATION TVM,4.3,0,4.3,Staff Travelling Expenses,Passenger railways
Buckinghamshire Council,30.09.2022,14.09.2022,Children's Services,Education & Childrens Services - CS Dir,MARKS&SPENCER PLC,5.25,0,5.25,Miscellaneous (Other)  Expenses,Grocery stores
Buckinghamshire Council,30.09.2022,14.09.2022,Deputy Chief Executive,Communities - DCE,AO RETAIL LIMITED,523.32,104.67,627.99,Other Personal Needs,Household appliance stores
Buckinghamshire Council,30.09.2022,14.09.2022,Deputy Chief Executive,Communities - DCE,AO RETAIL LIMITED,490.05,98.01,588.06,Other Personal Needs,Household appliance stores
Buckinghamshire Council,30.09.2022,14.09.2022,Deputy Chief Executive,Communities - DCE,AO RETAIL LIMITED,0.03,0,0.03,Other Personal Needs,Household appliance stores
Buckinghamshire Council,30.09.2022,14.09.2022,Deputy Chief Executive,Communities - DCE,AO RETAIL LIMITED,245.05,49.01,294.06,Other Personal Needs,Household appliance stores
Buckinghamshire Council,30.09.2022,14.09.2022,Deputy Chief Executive,Communities - DCE,AO RETAIL LIMITED,0.03,0,0.03,Other Personal Needs,Household appliance stores
Buckinghamshire Council,30.09.2022,14.09.2022,Deputy Chief Executive,Communities - DCE,AO RETAIL LIMITED,228.32,45.67,273.99,Other Personal Needs,Household appliance stores
Buckinghamshire Council,30.09.2022,14.09.2022,Children's Services,Education & Childrens Services - CS Dir,SWAN RIDER,160,0,160,Staff Travelling Expenses,Transportation services
Buckinghamshire Council,30.09.2022,14.09.2022,Children's Services,Education & Childrens Services - CS Dir,UK CARS (HIGH WYCOMBE),28,0,28,Staff Travelling Expenses,Taxicabs & limousines
Buckinghamshire Council,30.09.2022,14.09.2022,Children's Services,Education & Childrens Services - CS Dir,UK CARS (HIGH WYCOMBE),40,0,40,Staff Travelling Expenses,Taxicabs & limousines
Buckinghamshire Council,30.09.2022,14.09.2022,Children's Services,Education & Childrens Services - CS Dir,SWAN RIDER,160,0,160,Staff Travelling Expenses,Transportation services
Buckinghamshire Council,30.09.2022,14.09.2022,Children's Services,Education & Childrens Services - CS Dir,ARGOS LTD,234.2,0,234.2,Leaving Care - Grants for Care Leavers,Discount stores
Buckinghamshire Council,30.09.2022,14.09.2022,Children's Services,Education & Childrens Services - CS Dir,ARGOS LTD,199.99,0,199.99,Leaving Care - Grants for Care Leavers,Discount stores
Buckinghamshire Council,30.09.2022,14.09.2022,Children's Services,Education & Childrens Services - CS Dir,AO RETAIL LIMITED,652.99,0,652.99,Leaving Care - Grants for Care Leavers,Household appliance stores
Buckinghamshire Council,30.09.2022,14.09.2022,Children's Services,Education & Childrens Services - CS Dir,AMZNMktplace,23.76,0,23.76,Awaiting Coding,Miscellaneous retail
Buckinghamshire Council,30.09.2022,14.09.2022,Children's Services,Education & Childrens Services - CS Dir,Amazon Prime,7.99,0,7.99,Stationery & Office Supplies,Continuous subscriptions
Buckinghamshire Council,30.09.2022,14.09.2022,Communities,Climate Change & Environment - Community,FR Jones and Son,150.36,0,150.36,Awaiting Coding,Hardware stores
Buckinghamshire Council,30.09.2022,14.09.2022,Children's Services,Education & Childrens Services - CS Dir,PAYPAL,412,0,412,Training Materials,Charitable organisations
Buckinghamshire Council,30.09.2022,14.09.2022,Resources,AH&R - Res Dir,AMAZON.CO.UK,107.97,0,107.97,Stationery & Office Supplies,Direct sales companies
Buckinghamshire Council,30.09.2022,14.09.2022,Children's Services,Education & Childrens Services - CS Dir,TRAVELODGE GB0000,80.56,0,80.56,"Courses, Conference and Seminar Fees",Travelodge
Buckinghamshire Council,30.09.2022,14.09.2022,"Planning, Growth & Sustainability",AH&R - PGS Dir,SCREWFIX DIR LTD,212.98,0,212.98,General Repairs & Maintenance,Timber & building supplies
Buckinghamshire Council,30.09.2022,14.09.2022,Children's Services,Education & Childrens Services - CS Dir,IBIS STYLES LEEDS CITY,119,0,119,Other Employees Expenses,"Hotels, motels & resorts"
Buckinghamshire Council,30.09.2022,14.09.2022,Communities,Culture & Leisure - Communities Dir,AMZNMKTPLACE,20.7,4.14,24.84,Events Expenditure,Miscellaneous retail
Buckinghamshire Council,30.09.2022,14.09.2022,Communities,Culture & Leisure - Communities Dir,AMZNMKTPLACE,0.04,0,0.04,Events Expenditure,Miscellaneous retail
Buckinghamshire Council,30.09.2022,14.09.2022,Communities,Culture & Leisure - Communities Dir,AMZNMKTPLACE,30.82,6.17,36.99,Events Expenditure,Miscellaneous retail
Buckinghamshire Council,30.09.2022,14.09.2022,Children's Services,Education & Childrens Services - CS Dir,AMZNMktplace,5.99,0,5.99,Awaiting Coding,Miscellaneous retail
Buckinghamshire Council,30.09.2022,14.09.2022,Communities,Climate Change & Environment - Community,THE ATRIUM,83.03,0,83.03,Subsistence,Restaurants
Buckinghamshire Council,30.09.2022,14.09.2022,Communities,Climate Change & Environment - Community,SHORT/MED 2&3 BIRMINGH,3,0,3,Staff Travelling Expenses,Car parking & garages
Buckinghamshire Council,30.09.2022,14.09.2022,Communities,Climate Change & Environment - Community,CURB,10,0,10,Staff Travelling Expenses,Taxicabs & limousines
Buckinghamshire Council,30.09.2022,14.09.2022,"Planning, Growth & Sustainability",Housing & Homelessness & Regulatory PGS,CHARTERED INSTITUTE OF EN,50,0,50,"Courses, Conference and Seminar Fees",Charitable organisations
Buckinghamshire Council,30.09.2022,14.09.2022,Children's Services,Education & Childrens Services - CS Dir,IBIS STYLES LEEDS CITY,119,0,119,"Courses, Conference and Seminar Fees","Hotels, motels & resorts"
Buckinghamshire Council,30.09.2022,14.09.2022,Children's Services,Education & Childrens Services - CS Dir,ARGOS LTD,97.95,0,97.95,Sec 17: Financial Assistance,Discount stores
Buckinghamshire Council,30.09.2022,14.09.2022,Deputy Chief Executive,Communities - DCE,ALLENS,-72,0,-72,Payments - Other Bodies,"Equipment, tool, furniture hire & leasing"
Buckinghamshire Council,30.09.2022,14.09.2022,Children's Services,Education & Childrens Services - CS Dir,DOMINO S PIZZA,37.84,0,37.84,Subsistence,Restaurants
Buckinghamshire Council,30.09.2022,14.09.2022,Children's Services,Education & Childrens Services - CS Dir,TESCO STORES 2041,8.75,0,8.75,Awaiting Coding,Grocery stores
Buckinghamshire Council,30.09.2022,14.09.2022,Children's Services,Education & Childrens Services - CS Dir,EBAY O*21-09096-49281,34.27,0,34.27,General Repairs & Maintenance,Department stores
Buckinghamshire Council,30.09.2022,14.09.2022,Children's Services,Education & Childrens Services - CS Dir,AMZNMKTPLACE,19.98,0,19.98,Leaving Care - Grants for Care Leavers,Miscellaneous retail
Buckinghamshire Council,30.09.2022,14.09.2022,Children's Services,Education & Childrens Services - CS Dir,PCCS BOOKS,10,0,10,"Books, Records, Films & Oth Publications",Book stores
Buckinghamshire Council,30.09.2022,14.09.2022,Resources,AH&R - Res Dir,NEXT DIRECTORY,155,0,155,Long Service Awards,Catalogue & retail shops
Buckinghamshire Council,30.09.2022,14.09.2022,Resources,AH&R - Res Dir,SP INSTITUTE OF CS,152.4,0,152.4,Computer Consumables,Computer software stores
Buckinghamshire Council,30.09.2022,14.09.2022,"Planning, Growth & Sustainability",Leader - PGS,MAILCHIMP,47.24,0,47.24,Software Support,
Buckinghamshire Council,30.09.2022,14.09.2022,Deputy Chief Executive,Communities - DCE,AMZNMKTPLACE,11.99,0,11.99,Administrative Equipment & Tools,Miscellaneous retail
Buckinghamshire Council,30.09.2022,14.09.2022,Adults and Health,Health & Wellbeing - Adults & Health Dir,AMZNMKTPLACE,17.49,0,17.49,Other Personal Needs,Miscellaneous retail
Buckinghamshire Council,30.09.2022,14.09.2022,Adults and Health,Health & Wellbeing - Adults & Health Dir,AMZNMKTPLACE,23.96,0,23.96,Other Personal Needs,Miscellaneous retail
Buckinghamshire Council,30.09.2022,14.09.2022,Adults and Health,Health & Wellbeing - Adults & Health Dir,AMZNMKTPLACE,5.99,0,5.99,Other Personal Needs,Miscellaneous retail
Buckinghamshire Council,30.09.2022,14.09.2022,Adults and Health,Health & Wellbeing - Adults & Health Dir,AMZNMKTPLACE,102.72,0,102.72,Awaiting Coding,Miscellaneous retail
Buckinghamshire Council,30.09.2022,14.09.2022,Adults and Health,Health & Wellbeing - Adults & Health Dir,AMZNMKTPLACE,23.39,0,23.39,Awaiting Coding,Miscellaneous retail
Buckinghamshire Council,30.09.2022,14.09.2022,Communities,Partnerships - Communities,UK COACHING SOLUTIONS,20,4,24,Computer Consumables,Computer software stores
Buckinghamshire Council,30.09.2022,14.09.2022,Communities,Transport - Communities Dir,PREMIER INN44530325,-98.75,-19.75,-118.5,"Courses, Conference and Seminar Fees",Premier Inn
Buckinghamshire Council,30.09.2022,14.09.2022,Deputy Chief Executive,Communities - DCE,ARGOS LTD,100.82,0,100.82,Other Personal Needs,Discount stores
Buckinghamshire Council,30.09.2022,14.09.2022,Deputy Chief Executive,Communities - DCE,ARGOS LTD,272.95,0,272.95,Other Personal Needs,Discount stores
Buckinghamshire Council,30.09.2022,14.09.2022,Deputy Chief Executive,Communities - DCE,ARGOS LTD,98.96,0,98.96,Other Personal Needs,Discount stores
Buckinghamshire Council,30.09.2022,14.09.2022,Deputy Chief Executive,Communities - DCE,ARGOS LTD,337.95,0,337.95,Other Personal Needs,Discount stores
Buckinghamshire Council,30.09.2022,14.09.2022,Deputy Chief Executive,Communities - DCE,ARGOS LTD,81.82,0,81.82,Other Personal Needs,Discount stores
Buckinghamshire Council,30.09.2022,14.09.2022,Deputy Chief Executive,AH&R- DCE Dir,TRAVELODGE GB0846,12.4,0,12.4,"Courses, Conference and Seminar Fees",Travelodge
Buckinghamshire Council,30.09.2022,14.09.2022,Deputy Chief Executive,AH&R- DCE Dir,TRAVELODGE GB0846,23.13,0,23.13,"Courses, Conference and Seminar Fees",Travelodge
Buckinghamshire Council,30.09.2022,14.09.2022,Children's Services,Education & Childrens Services - CS Dir,BUCKINGHAMSHIRE COUNCIL,-11,0,-11,Court Orders Sec 31: Miscellaneous,Government services
Buckinghamshire Council,30.09.2022,14.09.2022,Communities,Culture & Leisure - Communities Dir,WWW.FENLANDLEISURE.CO.UK,292.4,0,292.4,Awaiting Coding,Children/infants shops
Buckinghamshire Council,30.09.2022,14.09.2022,Children's Services,Education & Childrens Services - CS Dir,TRAINLINE.COM,60.79,0,60.79,Sec 20/31: Specialist Services,Passenger railways
Buckinghamshire Council,30.09.2022,14.09.2022,Communities,Climate Change & Environment - Community,NOVOTEL BIRMINGHAM AIR,191,0,191,"Courses, Conference and Seminar Fees",Novotel Hotels
Buckinghamshire Council,30.09.2022,14.09.2022,Communities,Climate Change & Environment - Community,NOVOTEL BIRMINGHAM AIR,191,0,191,"Courses, Conference and Seminar Fees",Novotel Hotels
Buckinghamshire Council,30.09.2022,14.09.2022,Resources,AH&R - Res Dir,PAYPAL,14.39,0,14.39,IT - Computer Network Charges,Computer network information services
Buckinghamshire Council,30.09.2022,14.09.2022,Communities,Climate Change & Environment - Community,SKIPPER TM LTD,212.04,0,212.04,General Repairs & Maintenance,Electrical parts & equipment
Buckinghamshire Council,30.09.2022,14.09.2022,Communities,Communities - Trust Accounts,COSTCO WHOLESALE #102,209.01,0,209.01,Stationery & Office Supplies,Buying & shopping services/clubs
Buckinghamshire Council,30.09.2022,14.09.2022,Children's Services,Education & Childrens Services - CS Dir,Amazon.co.uk,11.38,0,11.38,Stationery & Office Supplies,Direct sales companies
Buckinghamshire Council,30.09.2022,14.09.2022,Children's Services,Education & Childrens Services - CS Dir,RING UNLIMITED YEARLY,80,0,80,Computer Consumables,"Computers, peripherals & software"
Buckinghamshire Council,30.09.2022,14.09.2022,Deputy Chief Executive,Communities - DCE,WWW.LOVELLFUELS.CO.UK,441,0,441,Other Personal Needs,Fuel dealers
Buckinghamshire Council,30.09.2022,13.09.2022,Deputy Chief Executive,AH&R- DCE Dir,TRAVELODGE GB0846,10.45,0,10.45,"Courses, Conference and Seminar Fees",Travelodge
Buckinghamshire Council,30.09.2022,13.09.2022,Communities,Culture & Leisure - Communities Dir,TVLICENSING.CO.UK,159,0,159,Administrative Equipment & Tools,Consultants & public relation services
Buckinghamshire Council,30.09.2022,13.09.2022,Children's Services,Education & Childrens Services - CS Dir,SMYTHS TOYS,49.99,0,49.99,Sec 20/31: Financial Assistance,Misc. general merchandise
Buckinghamshire Council,30.09.2022,13.09.2022,Children's Services,Education & Childrens Services - CS Dir,AMZNMKTPLACE,45.29,0,45.29,"Books, Records, Films & Oth Publications",Miscellaneous retail
Buckinghamshire Council,30.09.2022,13.09.2022,Children's Services,Education & Childrens Services - CS Dir,WAITROSE,100,0,100,Other Employees Expenses,Grocery stores
Buckinghamshire Council,30.09.2022,13.09.2022,Children's Services,Education & Childrens Services - CS Dir,MYTRIP,100,0,100,Sec 20/31: Supp for Contact,
Buckinghamshire Council,30.09.2022,13.09.2022,Communities,Transport - Communities Dir,GWR OXFORD SST,43.5,0,43.5,Staff Travelling Expenses,Passenger railways
Buckinghamshire Council,30.09.2022,13.09.2022,Communities,Transport - Communities Dir,MILAN INDIAN CUISINE,335,67,402,Subsistence,Restaurants
Buckinghamshire Council,30.09.2022,13.09.2022,Communities,Transport - Communities Dir,MILAN INDIAN CUISINE,0.05,0,0.05,Subsistence,Restaurants
Buckinghamshire Council,30.09.2022,13.09.2022,Communities,Housing & Homelessness & Regulatory Comm,WAITROSE,250,0,250,Miscellaneous (Other)  Expenses,Grocery stores
Buckinghamshire Council,30.09.2022,13.09.2022,Deputy Chief Executive,Communities - DCE,ARGOS LTD,54.95,0,54.95,Other Personal Needs,Discount stores
Buckinghamshire Council,30.09.2022,13.09.2022,Deputy Chief Executive,Communities - DCE,ARGOS LTD,24.2,0,24.2,Other Personal Needs,Discount stores
Buckinghamshire Council,30.09.2022,13.09.2022,Deputy Chief Executive,Communities - DCE,AO RETAIL LIMITED,215.8,43.16,258.96,Other Personal Needs,Household appliance stores
Buckinghamshire Council,30.09.2022,13.09.2022,Deputy Chief Executive,Communities - DCE,AO RETAIL LIMITED,0.03,0,0.03,Other Personal Needs,Household appliance stores
Buckinghamshire Council,30.09.2022,13.09.2022,Deputy Chief Executive,Communities - DCE,AO RETAIL LIMITED,527.49,105.5,632.99,Other Personal Needs,Household appliance stores
Buckinghamshire Council,30.09.2022,13.09.2022,Deputy Chief Executive,Communities - DCE,AO RETAIL LIMITED,240.8,48.16,288.96,Other Personal Needs,Household appliance stores
Buckinghamshire Council,30.09.2022,13.09.2022,Deputy Chief Executive,Communities - DCE,AO RETAIL LIMITED,0.03,0,0.03,Other Personal Needs,Household appliance stores
Buckinghamshire Council,30.09.2022,13.09.2022,Deputy Chief Executive,Communities - DCE,AO RETAIL LIMITED,245.05,49.01,294.06,Other Personal Needs,Household appliance stores
Buckinghamshire Council,30.09.2022,13.09.2022,Deputy Chief Executive,Communities - DCE,AO RETAIL LIMITED,0.03,0,0.03,Other Personal Needs,Household appliance stores
Buckinghamshire Council,30.09.2022,13.09.2022,Deputy Chief Executive,Communities - DCE,CURRYS ONLINE,287.42,57.49,344.91,Other Personal Needs,Electronics shops
Buckinghamshire Council,30.09.2022,13.09.2022,Deputy Chief Executive,Communities - DCE,CURRYS ONLINE,719.09,143.82,862.91,Other Personal Needs,Electronics shops
Buckinghamshire Council,30.09.2022,13.09.2022,Children's Services,Education & Childrens Services - CS Dir,ARGOS  AYLESBURY GATEHOU,69.99,0,69.99,Other Personal Needs,Discount stores
Buckinghamshire Council,30.09.2022,13.09.2022,Communities,Climate Change & Environment - Community,DVLA VEHICLE TAX,152.5,0,152.5,Vehicle Insurance,Tax payments
Buckinghamshire Council,30.09.2022,13.09.2022,Communities,Climate Change & Environment - Community,DVLA VEHICLE TAX,162,0,162,Vehicle Insurance,Tax payments
Buckinghamshire Council,30.09.2022,13.09.2022,Communities,Climate Change & Environment - Community,DVLA VEHICLE TAX,93.25,0,93.25,Vehicle Insurance,Tax payments
Buckinghamshire Council,30.09.2022,13.09.2022,Deputy Chief Executive,AH&R- DCE Dir,TRAVELODGE GB0000,138.44,0,138.44,"Courses, Conference and Seminar Fees",Travelodge
Buckinghamshire Council,30.09.2022,13.09.2022,Communities,Transport - Communities Dir,WILKO RETAIL LIMITED,28.3,0,28.3,Maintenance of Cremators Plant & Equip,Misc. general merchandise
Buckinghamshire Council,30.09.2022,13.09.2022,Communities,Culture & Leisure - Communities Dir,FLOWERLAND IVER,22.9,4.58,27.48,"Workshop - Materials,Tools & Equipment",Lawn & garden supply/nursery
Buckinghamshire Council,30.09.2022,13.09.2022,Communities,Partnerships - Communities,ROYAL MAIL GROUP LTD,2.85,0,2.85,Equipment,Postal services
Buckinghamshire Council,30.09.2022,13.09.2022,Communities,Housing & Homelessness & Regulatory Comm,E.ON NEXT,24.7,0,24.7,Electricity,Utilities
Buckinghamshire Council,30.09.2022,13.09.2022,Communities,Housing & Homelessness & Regulatory Comm,BRITISH GAS OTP,38.72,0,38.72,Gas,Utilities
Buckinghamshire Council,30.09.2022,13.09.2022,Children's Services,Education & Childrens Services - CS Dir,TALKACTION* #965,299,0,299,"Courses, Conference and Seminar Fees",Schools
Buckinghamshire Council,30.09.2022,13.09.2022,Resources,AH&R - Res Dir,AMAZON.CO.UK,100,0,100,Other Employees Expenses,Direct sales companies
Buckinghamshire Council,30.09.2022,13.09.2022,Children's Services,Education & Childrens Services - CS Dir,COUNTRY HOUSE (MENSWEA,120,0,120,Awaiting Coding,Men/boys clothing shops
Buckinghamshire Council,30.09.2022,13.09.2022,Children's Services,Education & Childrens Services - CS Dir,TRAVELODGE GB0000,70.36,0,70.36,Sec 20/31: Specialist Services,Travelodge
Buckinghamshire Council,30.09.2022,13.09.2022,Children's Services,Education & Childrens Services - CS Dir,TRAVELODGE GB0000,56.08,0,56.08,Sec 20/31: Specialist Services,Travelodge
Buckinghamshire Council,30.09.2022,13.09.2022,Children's Services,Education & Childrens Services - CS Dir,SAINSBURYS S/MKTS,20.38,0,20.38,Awaiting Coding,Grocery stores
Buckinghamshire Council,30.09.2022,13.09.2022,Communities,Culture & Leisure - Communities Dir,SCREWFIX DIR LTD,16.65,3.33,19.98,Administrative Equipment & Tools,Timber & building supplies
Buckinghamshire Council,30.09.2022,13.09.2022,Communities,Culture & Leisure - Communities Dir,SCREWFIX DIR LTD,0.01,0,0.01,Administrative Equipment & Tools,Timber & building supplies
Buckinghamshire Council,30.09.2022,13.09.2022,Deputy Chief Executive,AH&R- DCE Dir,TAXIPAY,104,0,104,Staff Travelling Expenses,Taxicabs & limousines
Buckinghamshire Council,30.09.2022,13.09.2022,Deputy Chief Executive,AH&R- DCE Dir,CLOUDFLARE,183.7,0,183.7,Computer Consumables,Computer software stores
Buckinghamshire Council,30.09.2022,13.09.2022,Children's Services,Education & Childrens Services - CS Dir,MARKS&SPENCER PLC SA,78.2,0,78.2,Purchase.of Refreshments and Food,Grocery stores
Buckinghamshire Council,30.09.2022,13.09.2022,Children's Services,Education & Childrens Services - CS Dir,ASDA  STORES 4396,2.64,0,2.64,General Provisions (Food),Grocery stores
Buckinghamshire Council,30.09.2022,13.09.2022,Children's Services,Education & Childrens Services - CS Dir,ASDA  STORES 4396,2.64,0,2.64,General Provisions (Food),Grocery stores
Buckinghamshire Council,30.09.2022,13.09.2022,Children's Services,Education & Childrens Services - CS Dir,ASDA  STORES 4396,13.04,0,13.04,General Postage,Grocery stores
Buckinghamshire Council,30.09.2022,13.09.2022,Deputy Chief Executive,Communities - DCE,ALLENS,318,0,318,Payments - Other Bodies,"Equipment, tool, furniture hire & leasing"
Buckinghamshire Council,30.09.2022,13.09.2022,Children's Services,Education & Childrens Services - CS Dir,DUNELM SOFTFURNISHINGS,31.95,0,31.95,Leaving Care - Grants for Care Leavers,Furniture & home furnishing
Buckinghamshire Council,30.09.2022,13.09.2022,Children's Services,Education & Childrens Services - CS Dir,AMZNMKTPLACE,24.98,0,24.98,Leaving Care - Grants for Care Leavers,Miscellaneous retail
Buckinghamshire Council,30.09.2022,13.09.2022,Children's Services,Education & Childrens Services - CS Dir,CURRYS ONLINE,404,0,404,Leaving Care - Grants for Care Leavers,Electronics shops
Buckinghamshire Council,30.09.2022,13.09.2022,Children's Services,Education & Childrens Services - CS Dir,WWW.BUCKINGHAMSHIRE.GOV,533.17,0,533.17,Leaving Care  - Financial Assistance,Government services
Buckinghamshire Council,30.09.2022,13.09.2022,Children's Services,Education & Childrens Services - CS Dir,AMZNMKTPLACE,8.99,0,8.99,Leaving Care - Grants for Care Leavers,Miscellaneous retail
Buckinghamshire Council,30.09.2022,13.09.2022,Children's Services,Education & Childrens Services - CS Dir,BUCKS NEW ONLINE,-132,0,-132,Leaving Care - Higher Education Supp,Colleges & universities
Buckinghamshire Council,30.09.2022,13.09.2022,Communities,Communities - Trust Accounts,WICKES SLOUGH,26.2,0,26.2,General Repairs & Maintenance,Timber & building supplies
Buckinghamshire Council,30.09.2022,13.09.2022,Communities,Communities - Trust Accounts,BISHOPSPORTSLEISURE,199.14,0,199.14,Awaiting Coding,Sporting goods shops
Buckinghamshire Council,30.09.2022,13.09.2022,Children's Services,Education & Childrens Services - CS Dir,AMZNMKTPLACE,17.48,0,17.48,Printing & Stationery,Miscellaneous retail
Buckinghamshire Council,30.09.2022,13.09.2022,Children's Services,Education & Childrens Services - CS Dir,AO RETAIL LIMITED,233.99,0,233.99,Furniture,Household appliance stores
Buckinghamshire Council,30.09.2022,13.09.2022,Children's Services,Education & Childrens Services - CS Dir,ARGOS LTD,92.95,0,92.95,Sec 20/31: Placed with Parent,Discount stores
Buckinghamshire Council,30.09.2022,13.09.2022,Adults and Health,Health & Wellbeing - Adults & Health Dir,TRAVELODGE GB0000,64.18,0,64.18,"Courses, Conference and Seminar Fees",Travelodge
Buckinghamshire Council,30.09.2022,13.09.2022,Adults and Health,Health & Wellbeing - Adults & Health Dir,TRAVELODGE GB0000,492.58,0,492.58,"Courses, Conference and Seminar Fees",Travelodge
Buckinghamshire Council,30.09.2022,13.09.2022,Deputy Chief Executive,Communities - DCE,SQ *ARTIZIAN CATERING SER,4.95,0,4.95,General Provisions (Food),Caterers
Buckinghamshire Council,30.09.2022,13.09.2022,Deputy Chief Executive,Communities - DCE,SQ *ARTIZIAN CATERING SER,4.4,0,4.4,General Provisions (Food),Caterers
Buckinghamshire Council,30.09.2022,13.09.2022,Children's Services,Education & Childrens Services - CS Dir,BUCKINGHAM HOTELS,240,0,240,Sec 17: Financial Assistance,"Hotels, motels & resorts"
Buckinghamshire Council,30.09.2022,12.09.2022,Children's Services,Education & Childrens Services - CS Dir,VOUCHER EXPRESS,150,0,150,Other Employees Expenses,Misc business services
Buckinghamshire Council,30.09.2022,12.09.2022,Children's Services,Education & Childrens Services - CS Dir,TRAINLINE.COM,109.07,0,109.07,Sec 20/31: Supp for Contact,Passenger railways
Buckinghamshire Council,30.09.2022,12.09.2022,"Planning, Growth & Sustainability",Housing & Homelessness & Regulatory PGS,LAND REGISTRY ECOM CCC,3,0,3,Homelessness,Government services
Buckinghamshire Council,30.09.2022,12.09.2022,"Planning, Growth & Sustainability",Housing & Homelessness & Regulatory PGS,LAND REGISTRY ECOM CCC,3,0,3,Homelessness,Government services
Buckinghamshire Council,30.09.2022,12.09.2022,Deputy Chief Executive,Communities - DCE,AO RETAIL LIMITED,266.74,53.35,320.09,Other Personal Needs,Household appliance stores
Buckinghamshire Council,30.09.2022,12.09.2022,Deputy Chief Executive,Communities - DCE,ARGOS LTD,337.95,0,337.95,Other Personal Needs,Discount stores
Buckinghamshire Council,30.09.2022,12.09.2022,Deputy Chief Executive,Communities - DCE,CURRYS ONLINE,519.15,103.83,622.98,Other Personal Needs,Electronics shops
Buckinghamshire Council,30.09.2022,12.09.2022,Deputy Chief Executive,Communities - DCE,CURRYS ONLINE,0.02,0,0.02,Other Personal Needs,Electronics shops
Buckinghamshire Council,30.09.2022,12.09.2022,Deputy Chief Executive,Communities - DCE,ARGOS LTD,337.95,0,337.95,Other Personal Needs,Discount stores
Buckinghamshire Council,30.09.2022,12.09.2022,Deputy Chief Executive,Communities - DCE,CURRYS ONLINE,435.83,87.17,523,Other Personal Needs,Electronics shops
Buckinghamshire Council,30.09.2022,12.09.2022,Deputy Chief Executive,Communities - DCE,CURRYS ONLINE,278.33,55.67,334,Other Personal Needs,Electronics shops
Buckinghamshire Council,30.09.2022,12.09.2022,Children's Services,Education & Childrens Services - CS Dir,YELLOW CARS HW LTD,28,0,28,Staff Travelling Expenses,Taxicabs & limousines
Buckinghamshire Council,30.09.2022,12.09.2022,Children's Services,Education & Childrens Services - CS Dir,YELLOW CARS HW LTD,-60,0,-60,Staff Travelling Expenses,Taxicabs & limousines
Buckinghamshire Council,30.09.2022,12.09.2022,Children's Services,Education & Childrens Services - CS Dir,AMZNMKTPLACE,95.91,0,95.91,Leaving Care - Higher Education Supp,Miscellaneous retail
Buckinghamshire Council,30.09.2022,12.09.2022,Children's Services,Education & Childrens Services - CS Dir,AMZNMKTPLACE,217.89,0,217.89,Leaving Care - Grants for Care Leavers,Miscellaneous retail
Buckinghamshire Council,30.09.2022,12.09.2022,Children's Services,Education & Childrens Services - CS Dir,SPORTSDIRECT 210,119.98,0,119.98,Other Personal Needs,Sporting goods shops
Buckinghamshire Council,30.09.2022,12.09.2022,Children's Services,Education & Childrens Services - CS Dir,SPORTSDIRECT 210,31.99,0,31.99,Other Personal Needs,Sporting goods shops
Buckinghamshire Council,30.09.2022,12.09.2022,Children's Services,Education & Childrens Services - CS Dir,BUCKS SCHOOLWEAR PLUS,189.2,0,189.2,Other Personal Needs,Children/infants shops
Buckinghamshire Council,30.09.2022,12.09.2022,Resources,AH&R - Res Dir,C2E829100529F UKVI,"3,199.00",0,"3,199.00",Professional Services (non curriculum) - External,Government services
Buckinghamshire Council,30.09.2022,12.09.2022,Resources,AH&R - Res Dir,AMZNMKTPLACE,10.47,0,10.47,IT Equipment Purchase,Miscellaneous retail
Buckinghamshire Council,30.09.2022,12.09.2022,Communities,Climate Change & Environment - Community,WWW.FTA.CO.UK,259.8,0,259.8,Equipment,Railways
Buckinghamshire Council,30.09.2022,12.09.2022,Children's Services,Education & Childrens Services - CS Dir,EARLY EDUCATION,40,0,40,Course Fees & Post Entry Training,Schools
Buckinghamshire Council,30.09.2022,12.09.2022,"Planning, Growth & Sustainability",AH&R - PGS Dir,WH SMITH,39.95,7.99,47.94,Printing & Stationery,Newspapers / newsagents
Buckinghamshire Council,30.09.2022,12.09.2022,"Planning, Growth & Sustainability",AH&R - PGS Dir,WH SMITH,0.05,0,0.05,Printing & Stationery,Newspapers / newsagents
Buckinghamshire Council,30.09.2022,12.09.2022,Communities,Housing & Homelessness & Regulatory Comm,AMZNMKTPLACE,4.57,0.92,5.49,General Repairs & Maintenance,Miscellaneous retail
Buckinghamshire Council,30.09.2022,12.09.2022,Communities,Housing & Homelessness & Regulatory Comm,ST JOHN AMBULANCE,-198,0,-198,"Courses, Conference and Seminar Fees",Charitable organisations
Buckinghamshire Council,30.09.2022,12.09.2022,"Planning, Growth & Sustainability",AH&R - PGS Dir,HTTP://PMSE.OFCOM.ORG.,135,0,135,Awaiting Coding,Membership organisations
Buckinghamshire Council,30.09.2022,12.09.2022,Communities,Culture & Leisure - Communities Dir,JAX FIRST AID,21.04,4.21,25.25,Events Expenditure,Computer software stores
Buckinghamshire Council,30.09.2022,12.09.2022,"Planning, Growth & Sustainability",Planning & Regeneration - PGS,WWW.REDOAKDIRECT.C,14.28,0,14.28,Repair and Maintenance of Equipment,Timber & building supplies
Buckinghamshire Council,30.09.2022,12.09.2022,Children's Services,Education & Childrens Services - CS Dir,HM PASSPORT OFFICE,49,0,49,Sec 20/31: Specialist Services,Government services
Buckinghamshire Council,30.09.2022,12.09.2022,Children's Services,Education & Childrens Services - CS Dir,HM PASSPORT OFFICE,49,0,49,Sec 20/31: Specialist Services,Government services
Buckinghamshire Council,30.09.2022,12.09.2022,Children's Services,Education & Childrens Services - CS Dir,HM PASSPORT OFFICE,49,0,49,Sec 20/31: Specialist Services,Government services
Buckinghamshire Council,30.09.2022,12.09.2022,Children's Services,Education & Childrens Services - CS Dir,SAINSBURYS S/MKTS,31.51,0,31.51,Awaiting Coding,Grocery stores
Buckinghamshire Council,30.09.2022,12.09.2022,Communities,Climate Change & Environment - Community,ST JOHN AMBULANCE,15.84,0,15.84,Health & Safety Supplies & Services,Charitable organisations
Buckinghamshire Council,30.09.2022,12.09.2022,Children's Services,Education & Childrens Services - CS Dir,TAXIPAY,100,0,100,Sec 20/31: Supp for Contact,Taxicabs & limousines
Buckinghamshire Council,30.09.2022,12.09.2022,Children's Services,Education & Childrens Services - CS Dir,SAFESTORE LTD ONLINE R,95.98,0,95.98,Sec 20/31: Financial Assistance,"Haulage, removals & delivery"
Buckinghamshire Council,30.09.2022,12.09.2022,Deputy Chief Executive,AH&R- DCE Dir,TRAVELODGE GB0000,516.31,0,516.31,"Courses, Conference and Seminar Fees",Travelodge
Buckinghamshire Council,30.09.2022,12.09.2022,Children's Services,Education & Childrens Services - CS Dir,TESCO STORES 2041,25.15,0,25.15,General Provisions (Food),Grocery stores
Buckinghamshire Council,30.09.2022,12.09.2022,,,AMZNMktplace,443.53,0,443.53,Awaiting Coding,Miscellaneous retail
Buckinghamshire Council,30.09.2022,12.09.2022,Children's Services,Education & Childrens Services - CS Dir,AMZNMKTPLACE,54.99,0,54.99,General Repairs & Maintenance,Miscellaneous retail
Buckinghamshire Council,30.09.2022,12.09.2022,Children's Services,Education & Childrens Services - CS Dir,MAILCHIMP,226.47,0,226.47,Service Development,
Buckinghamshire Council,30.09.2022,12.09.2022,Deputy Chief Executive,AH&R- DCE Dir,MOONPIG,4.44,0,4.44,"Courses, Conference and Seminar Fees",Misc. general merchandise
Buckinghamshire Council,30.09.2022,12.09.2022,Children's Services,Education & Childrens Services - CS Dir,EASYJET,100.96,0,100.96,Staff Travelling Expenses,Easyjet
Buckinghamshire Council,30.09.2022,12.09.2022,Children's Services,Education & Childrens Services - CS Dir,DUNELM SOFTFURNISHINGS,76.2,0,76.2,Leaving Care - Grants for Care Leavers,Furniture & home furnishing
Buckinghamshire Council,30.09.2022,12.09.2022,Children's Services,Education & Childrens Services - CS Dir,CURRYS ONLINE,649.9,0,649.9,Leaving Care - Grants for Care Leavers,Electronics shops
Buckinghamshire Council,30.09.2022,12.09.2022,Children's Services,Education & Childrens Services - CS Dir,AMZNMKTPLACE,24.99,0,24.99,Leaving Care - Grants for Care Leavers,Miscellaneous retail
Buckinghamshire Council,30.09.2022,12.09.2022,Children's Services,Education & Childrens Services - CS Dir,ASDA SUPERSTORE,3.99,0,3.99,General Provisions (Food),Grocery stores
Buckinghamshire Council,30.09.2022,12.09.2022,Resources,AH&R - Res Dir,LINKEDIN 8239427214,100.86,0,100.86,Permanent Recruitment Costs,Advertising services
Buckinghamshire Council,30.09.2022,12.09.2022,Children's Services,Education & Childrens Services - CS Dir,AMAZON.CO.UK,100,0,100,Other Employees Expenses,Direct sales companies
Buckinghamshire Council,30.09.2022,12.09.2022,Adults and Health,Health & Wellbeing - Adults & Health Dir,AMAZON PRIME,7.99,0,7.99,General Provisions (Food),Continuous subscriptions
Buckinghamshire Council,30.09.2022,12.09.2022,Adults and Health,Health & Wellbeing - Adults & Health Dir,TESCO STORES 5135,96.59,0,96.59,General Provisions (Food),Grocery stores
Buckinghamshire Council,30.09.2022,12.09.2022,Adults and Health,Health & Wellbeing - Adults & Health Dir,TESCO SUBSCRIPTION,7.99,0,7.99,General Provisions (Food),Continuous subscriptions
Buckinghamshire Council,30.09.2022,12.09.2022,Children's Services,Education & Childrens Services - CS Dir,INTELLISOFTWARE LTD,52.8,0,52.8,Support for Foster Carers,"Computers, peripherals & software"
Buckinghamshire Council,30.09.2022,12.09.2022,Children's Services,Education & Childrens Services - CS Dir,AMZNMKTPLACE,99.93,0,99.93,Activities & General Recreation,Miscellaneous retail
Buckinghamshire Council,30.09.2022,12.09.2022,Deputy Chief Executive,Communities - DCE,SQ *ARTIZIAN CATERING SER,2.2,0,2.2,General Provisions (Food),Caterers
Buckinghamshire Council,30.09.2022,12.09.2022,Children's Services,Education & Childrens Services - CS Dir,ARGOS LTD,22.95,0,22.95,Leaving Care - Grants for Care Leavers,Discount stores
Buckinghamshire Council,30.09.2022,11.09.2022,Adults and Health,Health & Wellbeing - Adults & Health Dir,Amazon Prime,7.99,0,7.99,Stationery & Office Supplies,Continuous subscriptions
Buckinghamshire Council,30.09.2022,11.09.2022,Deputy Chief Executive,Communities - DCE,ASDA GEORGE COM LEEDS,-4.5,0,-4.5,Other Personal Needs,Grocery stores
Buckinghamshire Council,30.09.2022,11.09.2022,Communities,Culture & Leisure - Communities Dir,SCREWFIX DIR LTD,40,8,48,"Workshop - Materials,Tools & Equipment",Timber & building supplies
Buckinghamshire Council,30.09.2022,11.09.2022,Communities,Culture & Leisure - Communities Dir,SCREWFIX DIR LTD,0.03,0,0.03,"Workshop - Materials,Tools & Equipment",Timber & building supplies
Buckinghamshire Council,30.09.2022,11.09.2022,Children's Services,Education & Childrens Services - CS Dir,ROGUE RACING,33,0,33,Activities & General Recreation,"Member clubs, sport, recreation & golf"
Buckinghamshire Council,30.09.2022,11.09.2022,Children's Services,Education & Childrens Services - CS Dir,TESCO STORES 2041,198.12,0,198.12,General Provisions (Food),Grocery stores
Buckinghamshire Council,30.09.2022,11.09.2022,Children's Services,Education & Childrens Services - CS Dir,SCHUDIOTV,12,0,12,Training Materials,Schools
Buckinghamshire Council,30.09.2022,11.09.2022,Communities,Climate Change & Environment - Community,AMZNMKTPLACE,29.08,0,29.08,Equipment,Miscellaneous retail
Buckinghamshire Council,30.09.2022,11.09.2022,Communities,Housing & Homelessness & Regulatory Comm,AMZNMKTPLACE,42.79,8.56,51.35,Furniture Fittings & IT,Miscellaneous retail
Buckinghamshire Council,30.09.2022,11.09.2022,Children's Services,Education & Childrens Services - CS Dir,AMZNMKTPLACE,34.76,0,34.76,Other Personal Needs,Miscellaneous retail
Buckinghamshire Council,30.09.2022,11.09.2022,Deputy Chief Executive,AH&R- DCE Dir,SLACK T181RTHAL,9.13,0,9.13,Computer Consumables,Computer software stores
Buckinghamshire Council,30.09.2022,11.09.2022,Deputy Chief Executive,AH&R- DCE Dir,AMZNMKTPLACE,427.37,0,427.37,General Allowances,Miscellaneous retail
Buckinghamshire Council,30.09.2022,11.09.2022,Communities,Transport - Communities Dir,ROCOCO LOUNGE,10.9,0,10.9,Subsistence,"Bars, taverns, pubs & nightclubs"
Buckinghamshire Council,30.09.2022,11.09.2022,Communities,Transport - Communities Dir,ROCOCO LOUNGE,10.4,0,10.4,Subsistence,"Bars, taverns, pubs & nightclubs"
Buckinghamshire Council,30.09.2022,11.09.2022,Deputy Chief Executive,AH&R- DCE Dir,HILTON BIRMINGHAM METR,12,0,12,"Courses, Conference and Seminar Fees","Hotels, motels & resorts"
Buckinghamshire Council,30.09.2022,11.09.2022,"Planning, Growth & Sustainability",Planning & Regeneration - PGS,AMZNMKTPLACE,104.97,0,104.97,Stationery & Office Supplies,Miscellaneous retail
Buckinghamshire Council,30.09.2022,11.09.2022,"Planning, Growth & Sustainability",Climate Change & Environment - PGS,LAND REGISTRY ECOM CCC,3,0,3,Surveys,Government services
Buckinghamshire Council,30.09.2022,11.09.2022,Deputy Chief Executive,AH&R- DCE Dir,TRAVELODGE GB0846,12.4,0,12.4,"Courses, Conference and Seminar Fees",Travelodge
Buckinghamshire Council,30.09.2022,10.09.2022,Children's Services,Education & Childrens Services - CS Dir,AMZNMKTPLACE,20.78,0,20.78,Other Equipment and Materials,Miscellaneous retail
Buckinghamshire Council,30.09.2022,10.09.2022,Children's Services,Education & Childrens Services - CS Dir,DUNELM LTD,50,0,50,Other Employees Expenses,Drapery & upholstery shops
Buckinghamshire Council,30.09.2022,10.09.2022,Deputy Chief Executive,Communities - DCE,ARGOS LTD,-27.32,0,-27.32,Other Personal Needs,Discount stores
Buckinghamshire Council,30.09.2022,10.09.2022,Children's Services,Education & Childrens Services - CS Dir,STOKE MANDEVILLE STADIUM,5,0,5,Activities & General Recreation,"Hotels, motels & resorts"
Buckinghamshire Council,30.09.2022,10.09.2022,Resources,AH&R - Res Dir,DNH*GODADDY.COM EUROPE,719.98,0,719.98,Annual Licence (IT),Computer network information services
Buckinghamshire Council,30.09.2022,10.09.2022,Communities,Transport - Communities Dir,WM MORRISONS STORE,27,0,27,General Repairs & Maintenance,Grocery stores
Buckinghamshire Council,30.09.2022,10.09.2022,Communities,Transport - Communities Dir,WM MORRISONS STORE,21.59,0,21.59,General Repairs & Maintenance,Grocery stores
Buckinghamshire Council,30.09.2022,10.09.2022,Communities,Housing & Homelessness & Regulatory Comm,CHILTERN VIEW NURSER 01,7.98,0,7.98,Maintenance of Grounds,Florist supplies & nursery stock
Buckinghamshire Council,30.09.2022,10.09.2022,"Planning, Growth & Sustainability",AH&R - PGS Dir,B & Q 1305,19.32,0,19.32,General Repairs & Maintenance,Home supply warehouse stores
Buckinghamshire Council,30.09.2022,10.09.2022,Children's Services,Education & Childrens Services - CS Dir,AMZNMKTPLACE,4.39,0,4.39,Activities & General Recreation,Miscellaneous retail
Buckinghamshire Council,30.09.2022,10.09.2022,Communities,Culture & Leisure - Communities Dir,FACEBK KFBJZEPJB2,25.9,0,25.9,Advertising,Advertising services
Buckinghamshire Council,30.09.2022,10.09.2022,Children's Services,Education & Childrens Services - CS Dir,AMAZON PRIME,7.99,0,7.99,Miscellaneous (Other)  Expenses,Continuous subscriptions
Buckinghamshire Council,30.09.2022,10.09.2022,Communities,Partnerships - Communities,MAILCHIMP,8.54,1.71,10.25,Miscellaneous (Other)  Expenses,
Buckinghamshire Council,30.09.2022,10.09.2022,Deputy Chief Executive,AH&R- DCE Dir,TRAVELODGE GB0846,24.65,0,24.65,"Courses, Conference and Seminar Fees",Travelodge
Buckinghamshire Council,30.09.2022,09.09.2022,Children's Services,Education & Childrens Services - CS Dir,AMZNMKTPLACE,277.92,0,277.92,Furniture,Miscellaneous retail
Buckinghamshire Council,30.09.2022,09.09.2022,Children's Services,Education & Childrens Services - CS Dir,AMZNMKTPLACE,275.95,0,275.95,Furniture,Miscellaneous retail
Buckinghamshire Council,30.09.2022,09.09.2022,Children's Services,Education & Childrens Services - CS Dir,AMAZON.CO.UK,98.56,0,98.56,Stationery & Office Supplies,Direct sales companies
Buckinghamshire Council,30.09.2022,09.09.2022,Children's Services,Education & Childrens Services - CS Dir,THETRAINLINE.COM,28.92,0,28.92,Sec 20/31: Supp for Contact,Passenger railways
Buckinghamshire Council,30.09.2022,09.09.2022,Children's Services,Education & Childrens Services - CS Dir,TRAINLINE.COM,28.92,0,28.92,Sec 20/31: Supp for Contact,Passenger railways
Buckinghamshire Council,30.09.2022,09.09.2022,Children's Services,Education & Childrens Services - CS Dir,HOTEL AT BOOKING.COM,86.45,0,86.45,Staff Travelling Expenses,"Hotels, motels & resorts"
Buckinghamshire Council,30.09.2022,09.09.2022,Children's Services,Education & Childrens Services - CS Dir,TRAINLINE.COM,28.92,0,28.92,Sec 20/31: Supp for Contact,Passenger railways
Buckinghamshire Council,30.09.2022,09.09.2022,Children's Services,Education & Childrens Services - CS Dir,TRAINLINE.COM,28.92,0,28.92,Sec 20/31: Supp for Contact,Passenger railways
Buckinghamshire Council,30.09.2022,09.09.2022,Deputy Chief Executive,Communities - DCE,CURRYS ONLINE,713.33,142.67,856,Other Personal Needs,Electronics shops
Buckinghamshire Council,30.09.2022,09.09.2022,Deputy Chief Executive,Communities - DCE,ARGOS LTD,862.95,0,862.95,Other Personal Needs,Discount stores
Buckinghamshire Council,30.09.2022,09.09.2022,Deputy Chief Executive,Communities - DCE,CURRYS ONLINE,224.15,44.83,268.98,Other Personal Needs,Electronics shops
Buckinghamshire Council,30.09.2022,09.09.2022,Deputy Chief Executive,Communities - DCE,CURRYS ONLINE,0.02,0,0.02,Other Personal Needs,Electronics shops
Buckinghamshire Council,30.09.2022,09.09.2022,Deputy Chief Executive,Communities - DCE,ASDA GEORGE COM LEEDS,172.5,0,172.5,Other Personal Needs,Grocery stores
Buckinghamshire Council,30.09.2022,09.09.2022,Deputy Chief Executive,Communities - DCE,ARGOS LTD,302.95,0,302.95,Other Personal Needs,Discount stores
Buckinghamshire Council,30.09.2022,09.09.2022,Deputy Chief Executive,Communities - DCE,ARGOS LTD,122.57,0,122.57,Other Personal Needs,Discount stores
Buckinghamshire Council,30.09.2022,09.09.2022,Deputy Chief Executive,Communities - DCE,CURRYS ONLINE,132.5,26.5,159,Other Personal Needs,Electronics shops
Buckinghamshire Council,30.09.2022,09.09.2022,Deputy Chief Executive,Communities - DCE,AO RETAIL LIMITED,266.74,53.35,320.09,Other Personal Needs,Household appliance stores
Buckinghamshire Council,30.09.2022,09.09.2022,Deputy Chief Executive,Communities - DCE,AO RETAIL LIMITED,531.65,106.34,637.99,Other Personal Needs,Household appliance stores
Buckinghamshire Council,30.09.2022,09.09.2022,Deputy Chief Executive,Communities - DCE,AO RETAIL LIMITED,478.4,95.69,574.09,Other Personal Needs,Household appliance stores
Buckinghamshire Council,30.09.2022,09.09.2022,Deputy Chief Executive,Communities - DCE,ARGOS LTD,38.5,0,38.5,Other Personal Needs,Discount stores
Buckinghamshire Council,30.09.2022,09.09.2022,Children's Services,Education & Childrens Services - CS Dir,ARGOS LTD,32,0,32,Leaving Care - Grants for Care Leavers,Discount stores
Buckinghamshire Council,30.09.2022,09.09.2022,Children's Services,Education & Childrens Services - CS Dir,ARGOS LTD,147.95,0,147.95,Leaving Care - Grants for Care Leavers,Discount stores
Buckinghamshire Council,30.09.2022,09.09.2022,Communities,Climate Change & Environment - Community,thetrainline.com,101.29,0,101.29,Staff Travelling Expenses,Passenger railways
Buckinghamshire Council,30.09.2022,09.09.2022,Adults and Health,Health & Wellbeing - Adults & Health Dir,AMZNMKTPLACE,42.97,0,42.97,Other Equipment and Materials,Miscellaneous retail
Buckinghamshire Council,30.09.2022,09.09.2022,Deputy Chief Executive,AH&R- DCE Dir,TRAVELODGE GB0846,24.65,0,24.65,"Courses, Conference and Seminar Fees",Travelodge
Buckinghamshire Council,30.09.2022,09.09.2022,Children's Services,Education & Childrens Services - CS Dir,WAITROSE,5.8,0,5.8,General Provisions (Food),Grocery stores
Buckinghamshire Council,30.09.2022,09.09.2022,"Planning, Growth & Sustainability",AH&R - PGS Dir,CJ'S LOCKSMITHS,24.3,0,24.3,Miscellaneous (Other)  Expenses,Misc. repair services
Buckinghamshire Council,30.09.2022,09.09.2022,Communities,Climate Change & Environment - Community,TWITTER ONLINE ADS,131.49,0,131.49,Waste Prevention costs,Advertising services
Buckinghamshire Council,30.09.2022,09.09.2022,Children's Services,Education & Childrens Services - CS Dir,AMZNMKTPLACE,4.99,0,4.99,Activities & General Recreation,Miscellaneous retail
Buckinghamshire Council,30.09.2022,09.09.2022,Adults and Health,Health & Wellbeing - Adults & Health Dir,ASDA SUPERSTORE,9.4,0,9.4,General Provisions (Food),Grocery stores
Buckinghamshire Council,30.09.2022,09.09.2022,Adults and Health,Health & Wellbeing - Adults & Health Dir,WAITROSE 177,4.94,0,4.94,General Provisions (Food),Grocery stores
Buckinghamshire Council,30.09.2022,09.09.2022,Communities,Transport - Communities Dir,NEW YORK (AYLESBURY) LTD,36,0,36,Subsistence,Restaurants
Buckinghamshire Council,30.09.2022,09.09.2022,"Planning, Growth & Sustainability",Planning & Regeneration - PGS,THE SAFETY SUPPLY COMP,8.28,0,8.28,Repair and Maintenance of Equipment,Department stores
Buckinghamshire Council,30.09.2022,09.09.2022,Children's Services,Education & Childrens Services - CS Dir,TRAINLINE,23.35,0,23.35,Sec 20/31: Supp for Contact,Passenger railways
Buckinghamshire Council,30.09.2022,09.09.2022,Children's Services,Education & Childrens Services - CS Dir,TAXIPAY,70,0,70,Sec 20/31: Supp for Contact,Taxicabs & limousines
Buckinghamshire Council,30.09.2022,09.09.2022,Children's Services,Education & Childrens Services - CS Dir,TAXIPAY,81,0,81,Sec 20/31: Supp for Contact,Taxicabs & limousines
Buckinghamshire Council,30.09.2022,09.09.2022,Children's Services,Education & Childrens Services - CS Dir,TAXIPAY,81,0,81,Sec 20/31: Supp for Contact,Taxicabs & limousines
Buckinghamshire Council,30.09.2022,09.09.2022,Children's Services,Education & Childrens Services - CS Dir,TAXIPAY,81,0,81,Sec 20/31: Supp for Contact,Taxicabs & limousines
Buckinghamshire Council,30.09.2022,09.09.2022,Children's Services,Education & Childrens Services - CS Dir,TAXIPAY,81,0,81,Sec 20/31: Supp for Contact,Taxicabs & limousines
Buckinghamshire Council,30.09.2022,09.09.2022,Children's Services,Education & Childrens Services - CS Dir,TAXIPAY,100,0,100,Sec 20/31: Supp for Contact,Taxicabs & limousines
Buckinghamshire Council,30.09.2022,09.09.2022,Children's Services,Education & Childrens Services - CS Dir,TAXIPAY,81,0,81,Sec 20/31: Supp for Contact,Taxicabs & limousines
Buckinghamshire Council,30.09.2022,09.09.2022,Children's Services,Education & Childrens Services - CS Dir,TRAINLINE,23.35,0,23.35,Sec 20/31: Supp for Contact,Passenger railways
Buckinghamshire Council,30.09.2022,09.09.2022,Children's Services,Education & Childrens Services - CS Dir,TRAINLINE,23.35,0,23.35,Sec 20/31: Supp for Contact,Passenger railways
Buckinghamshire Council,30.09.2022,09.09.2022,Children's Services,Education & Childrens Services - CS Dir,TRAINLINE,23.35,0,23.35,Sec 20/31: Supp for Contact,Passenger railways
Buckinghamshire Council,30.09.2022,09.09.2022,Deputy Chief Executive,AH&R- DCE Dir,THE TAXI PEOPLE,360,0,360,Staff Travelling Expenses,Taxicabs & limousines
Buckinghamshire Council,30.09.2022,09.09.2022,Deputy Chief Executive,AH&R- DCE Dir,YELLOW CARS HW LTD,216,0,216,Staff Travelling Expenses,Taxicabs & limousines
Buckinghamshire Council,30.09.2022,09.09.2022,Children's Services,Education & Childrens Services - CS Dir,HOTEL AT BOOKING.COM,95,0,95,"Courses, Conference and Seminar Fees","Hotels, motels & resorts"
Buckinghamshire Council,30.09.2022,09.09.2022,Deputy Chief Executive,AH&R- DCE Dir,AIRBNB * HMETYKYSR5,"1,189.06",0,"1,189.06",Staff Travelling Expenses,Travel agencies
Buckinghamshire Council,30.09.2022,09.09.2022,Deputy Chief Executive,AH&R- DCE Dir,TRAVELODGE GB0000,429.06,0,429.06,"Courses, Conference and Seminar Fees",Travelodge
Buckinghamshire Council,30.09.2022,09.09.2022,Deputy Chief Executive,AH&R- DCE Dir,TRAVELODGE GB0000,313.05,0,313.05,General Allowances,Travelodge
Buckinghamshire Council,30.09.2022,09.09.2022,Children's Services,Education & Childrens Services - CS Dir,ARGOS LTD,332.09,0,332.09,Leaving Care - Grants for Care Leavers,Discount stores
Buckinghamshire Council,30.09.2022,09.09.2022,Communities,Communities - Trust Accounts,COSTCO WHOLESALE #102,370.76,74.15,370.76,Stationery & Office Supplies,Buying & shopping services/clubs
Buckinghamshire Council,30.09.2022,09.09.2022,Communities,Communities - Trust Accounts,VIKING UK,181.92,30.32,181.92,Stationery & Office Supplies,Stationery & office supplies
Buckinghamshire Council,30.09.2022,09.09.2022,"Planning, Growth & Sustainability",Housing & Homelessness & Regulatory PGS,SP TUBZ UK,179.96,0,179.96,Furniture,Furniture & home furnishing
Buckinghamshire Council,30.09.2022,09.09.2022,"Planning, Growth & Sustainability",Housing & Homelessness & Regulatory PGS,IKEA LTD SHOP ONLINE,297,0,297,Furniture,Furniture & home furnishing
Buckinghamshire Council,30.09.2022,09.09.2022,Communities,Climate Change & Environment - Community,WWW.LETSRECYCLE.COM,196.8,0,196.8,"Courses, Conference and Seminar Fees",
Buckinghamshire Council,30.09.2022,09.09.2022,Adults and Health,Health & Wellbeing - Adults & Health Dir,Amazon Prime,7.99,0,7.99,Stationery & Office Supplies,Continuous subscriptions
Buckinghamshire Council,30.09.2022,09.09.2022,Children's Services,Education & Childrens Services - CS Dir,TRAINLINE,14.55,0,14.55,Sec 20/31: Supp for Contact,Passenger railways
Buckinghamshire Council,30.09.2022,09.09.2022,Children's Services,Education & Childrens Services - CS Dir,A1 TAXI SERVICE,24,0,24,Sec 20/31: Supp for Contact,Taxicabs & limousines
Buckinghamshire Council,30.09.2022,09.09.2022,Adults and Health,Health & Wellbeing - Adults & Health Dir,VIKING UK,-214.8,0,-214.8,Stationery & Office Supplies,Stationery & office supplies
Buckinghamshire Council,30.09.2022,09.09.2022,Children's Services,Education & Childrens Services - CS Dir,IKEA LTD SHOP ONLINE,165,0,165,Support for Foster Carers,Furniture & home furnishing
Buckinghamshire Council,30.09.2022,09.09.2022,Children's Services,Education & Childrens Services - CS Dir,INTELLISOFTWARE LTD,52.8,0,52.8,Support for Foster Carers,"Computers, peripherals & software"
Buckinghamshire Council,30.09.2022,09.09.2022,Children's Services,Education & Childrens Services - CS Dir,BUCKINGHAMSHIRE CNCL,33,0,33,Sec 20/31: Specialist Services,Government services
Buckinghamshire Council,30.09.2022,09.09.2022,Children's Services,Education & Childrens Services - CS Dir,TAXIPAY,40,0,40,Sec 20/31: Transport,Taxicabs & limousines
Buckinghamshire Council,30.09.2022,09.09.2022,Children's Services,Education & Childrens Services - CS Dir,UK CARS (HIGH WYCOMBE),28,0,28,Sec 17: Financial Assistance One Off,Taxicabs & limousines
Buckinghamshire Council,30.09.2022,09.09.2022,Children's Services,Education & Childrens Services - CS Dir,SWAN RIDER,320,0,320,Sec 17: Financial Assistance One Off,Transportation services
Buckinghamshire Council,30.09.2022,09.09.2022,Deputy Chief Executive,Communities - DCE,CURRYS ONLINE,-249,0,-249,Other Personal Needs,Electronics shops
Buckinghamshire Council,30.09.2022,08.09.2022,Children's Services,Education & Childrens Services - CS Dir,ENTERPRISE RENT A CAR,154.98,0,154.98,Sec 20/31: Financial Assistance One Off,Enterprise Rent-a-Car
Buckinghamshire Council,30.09.2022,08.09.2022,Children's Services,Education & Childrens Services - CS Dir,WWW.PORT.AC.UK,"1,656.48",0,"1,656.48",Leaving Care - Higher Education Supp,Colleges & universities
Buckinghamshire Council,30.09.2022,08.09.2022,Deputy Chief Executive,Leader - DCE,NEW YORK (AYLESBURY) LTD,99,0,99,Subsistence,Restaurants
Buckinghamshire Council,30.09.2022,08.09.2022,Communities,Culture & Leisure - Communities Dir,SPARE PARTS WORLD,19.92,3.99,23.91,"Workshop - Materials,Tools & Equipment",Hardware stores
Buckinghamshire Council,30.09.2022,08.09.2022,Communities,Climate Change & Environment - Community,DVLA VEHICLE TAX,162,0,162,Vehicle Insurance,Tax payments
Buckinghamshire Council,30.09.2022,08.09.2022,Communities,Climate Change & Environment - Community,DVLA VEHICLE TAX,162,0,162,Vehicle Insurance,Tax payments
Buckinghamshire Council,30.09.2022,08.09.2022,Deputy Chief Executive,AH&R- DCE Dir,TRAVELODGE GB0000,708.17,0,708.17,"Courses, Conference and Seminar Fees",Travelodge
Buckinghamshire Council,30.09.2022,08.09.2022,Deputy Chief Executive,AH&R- DCE Dir,TRAVELODGE GB0000,444.36,0,444.36,"Courses, Conference and Seminar Fees",Travelodge
Buckinghamshire Council,30.09.2022,08.09.2022,Children's Services,Education & Childrens Services - CS Dir,YELLOW CARS HW LTD,28,0,28,Sec 17: Transport,Taxicabs & limousines
Buckinghamshire Council,30.09.2022,08.09.2022,Children's Services,Education & Childrens Services - CS Dir,FREEDOM PROGRAMME LIMITED,24,0,24,Sec 17: Financial Assistance One Off,Schools
Buckinghamshire Council,30.09.2022,08.09.2022,"Planning, Growth & Sustainability",Housing & Homelessness & Regulatory PGS,LAND REGISTRY ECOM CCC,3,0,3,Homelessness,Government services
Buckinghamshire Council,30.09.2022,08.09.2022,Adults and Health,Health & Wellbeing - Adults & Health Dir,ASDA SUPERSTORE,76.68,0,76.68,Activities & General Recreation,Grocery stores
Buckinghamshire Council,30.09.2022,08.09.2022,Adults and Health,Health & Wellbeing - Adults & Health Dir,TESCO STORES 5135,96.06,0,96.06,General Provisions (Food),Grocery stores
Buckinghamshire Council,30.09.2022,08.09.2022,Adults and Health,Health & Wellbeing - Adults & Health Dir,TESCO STORES 5135,-96.06,0,-96.06,General Provisions (Food),Grocery stores
Buckinghamshire Council,30.09.2022,08.09.2022,Communities,Partnerships - Communities,ADOBE CREATIVE CLOUD,43.32,0,43.32,Miscellaneous (Other)  Expenses,
Buckinghamshire Council,30.09.2022,08.09.2022,Adults and Health,Health & Wellbeing - Adults & Health Dir,TESCO STORE 2162,50.65,0,50.65,Activities & General Recreation,Grocery stores
Buckinghamshire Council,30.09.2022,08.09.2022,Adults and Health,Health & Wellbeing - Adults & Health Dir,TESCO STORE 2162,26.8,0,26.8,Activities & General Recreation,Grocery stores
Buckinghamshire Council,30.09.2022,08.09.2022,Adults and Health,Health & Wellbeing - Adults & Health Dir,LIDL GB BUCKINGHAM,81.94,0,81.94,Activities & General Recreation,Grocery stores
Buckinghamshire Council,30.09.2022,08.09.2022,"Planning, Growth & Sustainability",AH&R - PGS Dir,AMAZON.CO.UK,53.06,0,53.06,Purchase.of Refreshments and Food,Direct sales companies
Buckinghamshire Council,30.09.2022,08.09.2022,"Planning, Growth & Sustainability",AH&R - PGS Dir,B & Q 1305,8.48,0,8.48,General Repairs & Maintenance,Home supply warehouse stores
Buckinghamshire Council,30.09.2022,08.09.2022,Communities,Climate Change & Environment - Community,HELLOPRINT UNITED KINGDOM,222.56,0,222.56,Waste Prevention costs,Photocopy & reproduction services
Buckinghamshire Council,30.09.2022,08.09.2022,Communities,Climate Change & Environment - Community,FACEBK 53F5MJPCM2,25.98,0,25.98,Waste Prevention costs,Advertising services
Buckinghamshire Council,30.09.2022,08.09.2022,Children's Services,Education & Childrens Services - CS Dir,AMZNMKTPLACE,17.99,0,17.99,Consumable Supplies,Miscellaneous retail
Buckinghamshire Council,30.09.2022,08.09.2022,Resources,AH&R - Res Dir,WWW.NWGB.CO.UK,404.7,0,404.7,Awaiting Coding,Utilities
Buckinghamshire Council,30.09.2022,08.09.2022,Adults and Health,Health & Wellbeing - Adults & Health Dir,MILK AND MORE (RECUR,13.55,0,13.55,General Provisions (Food),Dairy produce stores
Buckinghamshire Council,30.09.2022,08.09.2022,Children's Services,Education & Childrens Services - CS Dir,AMZNMKTPLACE,27.98,0,27.98,"Books, Records, Films & Oth Publications",Miscellaneous retail
Buckinghamshire Council,30.09.2022,08.09.2022,Children's Services,Education & Childrens Services - CS Dir,AMZNMktplace,74.13,0,74.13,Awaiting Coding,Miscellaneous retail
Buckinghamshire Council,30.09.2022,08.09.2022,Communities,Climate Change & Environment - Community,LONDON HEARTS,435.99,0,435.99,Health & Safety Supplies & Services,Charitable organisations
Buckinghamshire Council,30.09.2022,08.09.2022,Children's Services,Education & Childrens Services - CS Dir,WWW.ANYVAN.COM,54,0,54,Sec 20/31: Financial Assistance,"Haulage, removals & delivery"
Buckinghamshire Council,30.09.2022,08.09.2022,Deputy Chief Executive,AH&R- DCE Dir,TRAVELODGE GB0000,575.19,0,575.19,"Courses, Conference and Seminar Fees",Travelodge
Buckinghamshire Council,30.09.2022,08.09.2022,Deputy Chief Executive,AH&R- DCE Dir,YELLOW CARS HW LTD,216,0,216,Staff Travelling Expenses,Taxicabs & limousines
Buckinghamshire Council,30.09.2022,08.09.2022,Children's Services,Education & Childrens Services - CS Dir,AMZNMKTPLACE,981.07,0,981.07,Furniture,Miscellaneous retail
Buckinghamshire Council,30.09.2022,08.09.2022,Children's Services,Education & Childrens Services - CS Dir,IKEA LTD SHOP ONLINE,"1,650.00",0,"1,650.00",Leaving Care - Grants for Care Leavers,Furniture & home furnishing
Buckinghamshire Council,30.09.2022,08.09.2022,Communities,Communities - Trust Accounts,BOOKER LIMITED SLOUGH,741.4,0,741.4,Purchase of Food for Re-sale,Caterers
Buckinghamshire Council,30.09.2022,08.09.2022,Resources,AH&R - Res Dir,TESCO GIFT CARD,200,0,200,Miscellaneous (Other)  Expenses,Grocery stores
Buckinghamshire Council,30.09.2022,08.09.2022,Adults and Health,Health & Wellbeing - Adults & Health Dir,VIKING UK,214.8,0,214.8,Stationery & Office Supplies,Stationery & office supplies
Buckinghamshire Council,30.09.2022,08.09.2022,Adults and Health,Health & Wellbeing - Adults & Health Dir,AMAZON.CO.UK,32.46,6.49,32.46,Other Personal Needs,Direct sales companies
Buckinghamshire Council,30.09.2022,08.09.2022,Children's Services,Education & Childrens Services - CS Dir,AMAZON.CO.UK,39.98,0,39.98,Support for Foster Carers,Direct sales companies
Buckinghamshire Council,30.09.2022,08.09.2022,Adults and Health,Health & Wellbeing - Adults & Health Dir,BUCKINGHAM HOTELS,938,187.6,"1,125.60","Courses, Conference and Seminar Fees","Hotels, motels & resorts"
Buckinghamshire Council,30.09.2022,08.09.2022,Adults and Health,Health & Wellbeing - Adults & Health Dir,SIGN WIZZARD LIMITED,151.9,30.38,182.28,LKD Printing CPU Catalogue,Typesetting & plate making
Buckinghamshire Council,30.09.2022,08.09.2022,Adults and Health,Health & Wellbeing - Adults & Health Dir,SIGN WIZZARD LIMITED,0.02,0,0.02,LKD Printing CPU Catalogue,Typesetting & plate making
Buckinghamshire Council,30.09.2022,08.09.2022,Children's Services,Education & Childrens Services - CS Dir,BUCKINGHAM HOTELS,840,0,840,Sec 17: Financial Assistance,"Hotels, motels & resorts"
Buckinghamshire Council,30.09.2022,08.09.2022,Children's Services,Education & Childrens Services - CS Dir,BUCKINGHAM HOTELS,777.6,0,777.6,Sec 17: Accommodation,"Hotels, motels & resorts"
Buckinghamshire Council,30.09.2022,08.09.2022,Children's Services,Education & Childrens Services - CS Dir,BUCKINGHAM HOTELS,240,0,240,Sec 17: Specialist Services,"Hotels, motels & resorts"
Buckinghamshire Council,30.09.2022,08.09.2022,Deputy Chief Executive,AH&R- DCE Dir,TRAVELODGE GB0846,12.4,0,12.4,"Courses, Conference and Seminar Fees",Travelodge
Buckinghamshire Council,30.09.2022,08.09.2022,Adults and Health,Health & Wellbeing - Adults & Health Dir,AMAZON.CO.UK,134.98,0,134.98,Stationery & Office Supplies,Direct sales companies
Buckinghamshire Council,30.09.2022,08.09.2022,Children's Services,Education & Childrens Services - CS Dir,AMAZON.CO.UK,12.09,0,12.09,"Books, Records, Films & Oth Publications",Direct sales companies
Buckinghamshire Council,30.09.2022,07.09.2022,Children's Services,Education & Childrens Services - CS Dir,AMZNMKTPLACE,8.95,0,8.95,Other Personal Needs,Miscellaneous retail
Buckinghamshire Council,30.09.2022,07.09.2022,Children's Services,Education & Childrens Services - CS Dir,PARADIGM HOUSING GROUP,514.36,0,514.36,Leaving Care - Rent,Government services
Buckinghamshire Council,30.09.2022,07.09.2022,Deputy Chief Executive,AH&R- DCE Dir,TRAVELODGE GB0846,24.68,0,24.68,"Courses, Conference and Seminar Fees",Travelodge
Buckinghamshire Council,30.09.2022,07.09.2022,Children's Services,Education & Childrens Services - CS Dir,ARSENAL STADIUM,34.95,0,34.95,Activities & General Recreation,"Member clubs, sport, recreation & golf"
Buckinghamshire Council,30.09.2022,07.09.2022,Children's Services,Education & Childrens Services - CS Dir,BUCKINGHAMSHIRE CNCL,33,0,33,Sec 20/31: Specialist Services,Government services
Buckinghamshire Council,30.09.2022,07.09.2022,Communities,Transport - Communities Dir,PREMIER INN,396.65,79.33,475.98,"Courses, Conference and Seminar Fees",Premier Inn
Buckinghamshire Council,30.09.2022,07.09.2022,Communities,Transport - Communities Dir,PREMIER INN,0.02,0,0.02,"Courses, Conference and Seminar Fees",Premier Inn
Buckinghamshire Council,30.09.2022,07.09.2022,Communities,Transport - Communities Dir,PREMIER INN,396.65,79.33,475.98,"Courses, Conference and Seminar Fees",Premier Inn
Buckinghamshire Council,30.09.2022,07.09.2022,Communities,Transport - Communities Dir,PREMIER INN,0.02,0,0.02,"Courses, Conference and Seminar Fees",Premier Inn
Buckinghamshire Council,30.09.2022,07.09.2022,Communities,Transport - Communities Dir,PREMIER INN,102,20.4,122.4,"Courses, Conference and Seminar Fees",Premier Inn
Buckinghamshire Council,30.09.2022,07.09.2022,Communities,Transport - Communities Dir,PREMIER INN,0.1,0,0.1,"Courses, Conference and Seminar Fees",Premier Inn
Buckinghamshire Council,30.09.2022,07.09.2022,Children's Services,Education & Childrens Services - CS Dir,IKEA LTD SHOP ONLINE,458,0,458,Leaving Care - Grants for Care Leavers,Furniture & home furnishing
Buckinghamshire Council,30.09.2022,07.09.2022,Children's Services,Education & Childrens Services - CS Dir,ROGUE BOWLING,40,0,40,Activities & General Recreation,"Member clubs, sport, recreation & golf"
Buckinghamshire Council,30.09.2022,07.09.2022,Resources,AH&R - Res Dir,VOUCHER EXPRESS,155.75,0,155.75,Long Service Awards,Misc business services
Buckinghamshire Council,30.09.2022,07.09.2022,Deputy Chief Executive,Communities - DCE,RINGGO PARKING,1.7,0,1.7,Staff Travelling Expenses,Car parking & garages
Buckinghamshire Council,30.09.2022,07.09.2022,"Planning, Growth & Sustainability",Climate Change & Environment - PGS,WH SMITH AYLESBURY,3.99,0,3.99,"Books, Records, Films & Oth Publications",Newspapers / newsagents
Buckinghamshire Council,30.09.2022,07.09.2022,"Planning, Growth & Sustainability",Climate Change & Environment - PGS,AB* ABEBOOKS.UK JHRZAY,11.6,0,11.6,"Books, Records, Films & Oth Publications","Books, periodicals & newspapers"
Buckinghamshire Council,30.09.2022,07.09.2022,Deputy Chief Executive,Leader - DCE,MILTON KEYNES PARKING,10,0,10,Staff Travelling Expenses,Car parking & garages
Buckinghamshire Council,30.09.2022,07.09.2022,Children's Services,Education & Childrens Services - CS Dir,ROYAL MAIL ONLINE SHOP,156,0,156,General Postage,Postal services
Buckinghamshire Council,30.09.2022,07.09.2022,Children's Services,Education & Childrens Services - CS Dir,HOTEL AT BOOKING.COM,95,0,95,Staff Travelling Expenses,"Hotels, motels & resorts"
Buckinghamshire Council,30.09.2022,07.09.2022,Communities,Housing & Homelessness & Regulatory Comm,WWW.SOLOPRESS.COM,14.38,0,14.38,Printing & Stationery,Publishing & printing services
Buckinghamshire Council,30.09.2022,07.09.2022,Communities,Housing & Homelessness & Regulatory Comm,WWW.SOLOPRESS.COM,190.6,0,190.6,Printing & Stationery,Publishing & printing services
Buckinghamshire Council,30.09.2022,07.09.2022,Children's Services,Education & Childrens Services - CS Dir,BUCKINGHAMSHIRE COUNCIL,33,0,33,Court Orders Sec 31: Miscellaneous,Government services
Buckinghamshire Council,30.09.2022,07.09.2022,Communities,Partnerships - Communities,TESCO STORES 2038,6.3,0,6.3,Equipment,Grocery stores
Buckinghamshire Council,30.09.2022,07.09.2022,Communities,Housing & Homelessness & Regulatory Comm,VAN HAGE GARDEN CO,134.81,0,134.81,Maintenance of Grounds,Lawn & garden supply/nursery
Buckinghamshire Council,30.09.2022,07.09.2022,Communities,Housing & Homelessness & Regulatory Comm,GEORGE BROWNS LTD CHESHAM,11.9,0,11.9,Protective Clothing & Uniforms,Lawn & garden supply/nursery
Buckinghamshire Council,30.09.2022,07.09.2022,Deputy Chief Executive,Communities - DCE,WH Smith Aylesbury,13.98,0,13.98,"Books, Records, Films & Oth Publications",Newspapers / newsagents
Buckinghamshire Council,30.09.2022,07.09.2022,Adults and Health,Health & Wellbeing - Adults & Health Dir,FARMFOODS 658,20.14,0,20.14,Activities & General Recreation,Grocery stores
Buckinghamshire Council,30.09.2022,07.09.2022,Adults and Health,Health & Wellbeing - Adults & Health Dir,ICELAND FOODS LTD 1748,15.45,0,15.45,Activities & General Recreation,Grocery stores
Buckinghamshire Council,30.09.2022,07.09.2022,Adults and Health,Health & Wellbeing - Adults & Health Dir,B&M 426 - HS AYLESBURY,18.43,0,18.43,Activities & General Recreation,Misc. general merchandise
Buckinghamshire Council,30.09.2022,07.09.2022,Adults and Health,Health & Wellbeing - Adults & Health Dir,LIDL GB AYLESBURY,6.76,0,6.76,Activities & General Recreation,Grocery stores
Buckinghamshire Council,30.09.2022,07.09.2022,"Planning, Growth & Sustainability",AH&R - PGS Dir,LIGHTING & MAINS POWER,66.24,0,66.24,General Repairs & Maintenance,Household appliance stores
Buckinghamshire Council,30.09.2022,07.09.2022,Communities,Climate Change & Environment - Community,AMAZON.CO.UK,22.98,0,22.98,Stationery & Office Supplies,Direct sales companies
Buckinghamshire Council,30.09.2022,07.09.2022,Resources,AH&R - Res Dir,ABRATAX - MTD,10,2,12,Computer Consumables,Computer software stores
Buckinghamshire Council,30.09.2022,07.09.2022,Communities,Culture & Leisure - Communities Dir,AMZNMKTPLACE,58.05,11.61,69.66,Events Expenditure,Miscellaneous retail
Buckinghamshire Council,30.09.2022,07.09.2022,Communities,Culture & Leisure - Communities Dir,AMZNMKTPLACE,0.03,0,0.03,Events Expenditure,Miscellaneous retail
Buckinghamshire Council,30.09.2022,07.09.2022,"Planning, Growth & Sustainability",Planning & Regeneration - PGS,WWW.REDOAKDIRECT.C,121.72,0,121.72,Health & Safety Supplies & Services,Timber & building supplies
Buckinghamshire Council,30.09.2022,07.09.2022,"Planning, Growth & Sustainability",Planning & Regeneration - PGS,WWW.SCREWFIX.COM,108.95,0,108.95,Health & Safety Supplies & Services,Timber & building supplies
Buckinghamshire Council,30.09.2022,07.09.2022,Communities,Climate Change & Environment - Community,Wob.com,6.79,0,6.79,"Books, Records, Films & Oth Publications","Books, periodicals & newspapers"
Buckinghamshire Council,30.09.2022,07.09.2022,Children's Services,Education & Childrens Services - CS Dir,BUCKINGHAMSHIRE COUNCIL,22,0,22,Sec 20/31: Specialist Services,Government services
Buckinghamshire Council,30.09.2022,07.09.2022,Communities,Climate Change & Environment - Community,WWW.LETSRECYCLE.COM,237.6,0,237.6,"Courses, Conference and Seminar Fees",
Buckinghamshire Council,30.09.2022,07.09.2022,Communities,Climate Change & Environment - Community,WWW.LETSRECYCLE.COM,237.6,0,237.6,"Courses, Conference and Seminar Fees",
Buckinghamshire Council,30.09.2022,07.09.2022,Communities,Climate Change & Environment - Community,WWW.LETSRECYCLE.COM,237.6,0,237.6,"Courses, Conference and Seminar Fees",
Buckinghamshire Council,30.09.2022,07.09.2022,Communities,Climate Change & Environment - Community,WWW.LETSRECYCLE.COM,237.6,0,237.6,"Courses, Conference and Seminar Fees",
Buckinghamshire Council,30.09.2022,07.09.2022,Children's Services,Education & Childrens Services - CS Dir,PREMIER INN,128,0,128,"Courses, Conference and Seminar Fees",Premier Inn
Buckinghamshire Council,30.09.2022,07.09.2022,Deputy Chief Executive,AH&R- DCE Dir,YELLOW CARS HW LTD,20,0,20,Staff Travelling Expenses,Taxicabs & limousines
Buckinghamshire Council,30.09.2022,07.09.2022,Deputy Chief Executive,AH&R- DCE Dir,NEALES TAXIS LTD,50,0,50,Staff Travelling Expenses,Taxicabs & limousines
Buckinghamshire Council,30.09.2022,07.09.2022,Children's Services,Education & Childrens Services - CS Dir,AMZNMKTPLACE,305.27,0,305.27,Furniture,Miscellaneous retail
Buckinghamshire Council,30.09.2022,07.09.2022,Deputy Chief Executive,AH&R- DCE Dir,TRAVELODGE GB0000,595.09,0,595.09,"Courses, Conference and Seminar Fees",Travelodge
Buckinghamshire Council,30.09.2022,07.09.2022,Children's Services,Education & Childrens Services - CS Dir,CARPETRIGHT,"2,119.56",0,"2,119.56",Sec 20/31: Financial Assistance One Off,Floor covering stores
Buckinghamshire Council,30.09.2022,07.09.2022,Children's Services,Education & Childrens Services - CS Dir,ARGOS LTD,531.95,0,531.95,Leaving Care - Grants for Care Leavers,Discount stores
Buckinghamshire Council,30.09.2022,07.09.2022,Children's Services,Education & Childrens Services - CS Dir,WWW.OTS-UK.CO.UK,90,0,90,Purchase of Vehicles and Moveable Plant,Taxicabs & limousines
Buckinghamshire Council,30.09.2022,07.09.2022,Children's Services,Education & Childrens Services - CS Dir,TRIPP LTD,55,0,55,Leaving Care  - Financial Assistance,Misc. clothing & accessory shops
Buckinghamshire Council,30.09.2022,07.09.2022,Communities,Communities - Trust Accounts,COSTCO WHOLESALE #102,330.98,0,330.98,Bar Expenditure,Buying & shopping services/clubs
Buckinghamshire Council,30.09.2022,07.09.2022,"Planning, Growth & Sustainability",Planning & Regeneration - PGS,AMAZON.CO.UK,32.98,0,32.98,Stationery & Office Supplies,Direct sales companies
Buckinghamshire Council,30.09.2022,07.09.2022,"Planning, Growth & Sustainability",Planning & Regeneration - PGS,AMZNMKTPLACE,37.98,0,37.98,IT Equipment Purchase,Miscellaneous retail
Buckinghamshire Council,30.09.2022,07.09.2022,Resources,AH&R - Res Dir,FACEBK *XTUGAHFVH2,14.54,0,14.54,Permanent Recruitment Costs,Advertising services
Buckinghamshire Council,30.09.2022,07.09.2022,Resources,AH&R - Res Dir,LINKEDIN 8223346754,94.26,0,94.26,Permanent Recruitment Costs,Advertising services
Buckinghamshire Council,30.09.2022,07.09.2022,Children's Services,Education & Childrens Services - CS Dir,AYLESBURY STATION T/O,38.5,0,38.5,Staff Travelling Expenses,Passenger railways
Buckinghamshire Council,30.09.2022,07.09.2022,"Planning, Growth & Sustainability",Climate Change & Environment - PGS,LAND REGISTRY ECOM CCC,3,0,3,Surveys,Government services
Buckinghamshire Council,30.09.2022,07.09.2022,"Planning, Growth & Sustainability",Climate Change & Environment - PGS,WEX PHOTO,-20.99,0,-20.99,Administrative Equipment & Tools,Camera & photographic supply shop
Buckinghamshire Council,30.09.2022,07.09.2022,Deputy Chief Executive,Communities - DCE,AMZNMKTPLACE,19.58,0,19.58,Administrative Equipment & Tools,Miscellaneous retail
Buckinghamshire Council,30.09.2022,07.09.2022,Children's Services,Education & Childrens Services - CS Dir,THETRAINLINE.COM,114.47,0,114.47,Sec 20/31: Supp for Contact,Passenger railways
Buckinghamshire Council,30.09.2022,07.09.2022,Children's Services,Education & Childrens Services - CS Dir,BUCKINGHAMSHIRE CNCL,11,0,11,Sec 20/31: Specialist Services,Government services
Buckinghamshire Council,30.09.2022,07.09.2022,Children's Services,Education & Childrens Services - CS Dir,THETRAINLINE.COM,130.77,0,130.77,Sec 20/31: Financial Assistance,Passenger railways
Buckinghamshire Council,30.09.2022,07.09.2022,Adults and Health,Health & Wellbeing - Adults & Health Dir,THE TAXI PEOPLE,85,0,85,Staff Travelling Expenses,Taxicabs & limousines
Buckinghamshire Council,30.09.2022,07.09.2022,Adults and Health,Health & Wellbeing - Adults & Health Dir,THE TAXI PEOPLE,41,0,41,Staff Travelling Expenses,Taxicabs & limousines
Buckinghamshire Council,30.09.2022,06.09.2022,Adults and Health,Health & Wellbeing - Adults & Health Dir,AMZNMKTPLACE,64.95,0,64.95,Activities & General Recreation,Miscellaneous retail
Buckinghamshire Council,30.09.2022,06.09.2022,Children's Services,Education & Childrens Services - CS Dir,WAITROSE,150,0,150,Other Employees Expenses,Grocery stores
Buckinghamshire Council,30.09.2022,06.09.2022,Children's Services,Education & Childrens Services - CS Dir,STARBUCKS AYLESBURY SAINS,6.62,1.33,7.95,"Exp of School, Club & College Activities",Fast food restaurants
Buckinghamshire Council,30.09.2022,06.09.2022,Deputy Chief Executive,Communities - DCE,ARGOS LTD,247.95,0,247.95,Other Personal Needs,Discount stores
Buckinghamshire Council,30.09.2022,06.09.2022,Deputy Chief Executive,Communities - DCE,AO RETAIL LIMITED,485.82,97.17,582.99,Other Personal Needs,Household appliance stores
Buckinghamshire Council,30.09.2022,06.09.2022,Deputy Chief Executive,Communities - DCE,AO RETAIL LIMITED,257.49,51.5,308.99,Other Personal Needs,Household appliance stores
Buckinghamshire Council,30.09.2022,06.09.2022,Deputy Chief Executive,Communities - DCE,AO RETAIL LIMITED,282.49,56.5,338.99,Other Personal Needs,Household appliance stores
Buckinghamshire Council,30.09.2022,06.09.2022,Deputy Chief Executive,Communities - DCE,CURRYS ONLINE,311.65,62.33,373.98,Other Personal Needs,Electronics shops
Buckinghamshire Council,30.09.2022,06.09.2022,Deputy Chief Executive,Communities - DCE,CURRYS ONLINE,0.02,0,0.02,Other Personal Needs,Electronics shops
Buckinghamshire Council,30.09.2022,06.09.2022,Deputy Chief Executive,Communities - DCE,AO RETAIL LIMITED,581.65,116.33,697.98,Other Personal Needs,Household appliance stores
Buckinghamshire Council,30.09.2022,06.09.2022,Deputy Chief Executive,Communities - DCE,AO RETAIL LIMITED,0.01,0,0.01,Other Personal Needs,Household appliance stores
Buckinghamshire Council,30.09.2022,06.09.2022,Deputy Chief Executive,Communities - DCE,CURRYS ONLINE,415.83,83.17,499,Other Personal Needs,Electronics shops
Buckinghamshire Council,30.09.2022,06.09.2022,Deputy Chief Executive,Communities - DCE,CURRYS ONLINE,715,143,858,Other Personal Needs,Electronics shops
Buckinghamshire Council,30.09.2022,06.09.2022,Deputy Chief Executive,Communities - DCE,ARGOS LTD,27.32,0,27.32,Other Personal Needs,Discount stores
Buckinghamshire Council,30.09.2022,06.09.2022,Communities,Culture & Leisure - Communities Dir,CARBOCLASS LTD,47.5,9.5,57,"Workshop - Materials,Tools & Equipment",Timber & building supplies
Buckinghamshire Council,30.09.2022,06.09.2022,Children's Services,Education & Childrens Services - CS Dir,AMAZON.CO.UK,41.06,0,41.06,Stationery & Office Supplies,Direct sales companies
Buckinghamshire Council,30.09.2022,06.09.2022,Resources,AH&R - Res Dir,C2E828500042H UKVI,199,0,199,Professional Services (non curriculum) - External,Government services
Buckinghamshire Council,30.09.2022,06.09.2022,Resources,AH&R - Res Dir,C2E828500033I UKVI,"3,199.00",0,"3,199.00",Professional Services (non curriculum) - External,Government services
Buckinghamshire Council,30.09.2022,06.09.2022,Resources,AH&R - Res Dir,C2E828500038Z UKVI,"3,199.00",0,"3,199.00",Professional Services (non curriculum) - External,Government services
Buckinghamshire Council,30.09.2022,06.09.2022,Deputy Chief Executive,Leader - DCE,MARKS&SPENCER PLC SACA,9,0,9,Subsistence,Grocery stores
Buckinghamshire Council,30.09.2022,06.09.2022,"Planning, Growth & Sustainability",Climate Change & Environment - PGS,INPRINT LITHO LIMITED,22.2,0,22.2,Printing & Stationery,Publishing & printing services
Buckinghamshire Council,30.09.2022,06.09.2022,Adults and Health,Health & Wellbeing - Adults & Health Dir,THE TAXI PEOPLE,40,0,40,Staff Travelling Expenses,Taxicabs & limousines
Buckinghamshire Council,30.09.2022,06.09.2022,Adults and Health,Health & Wellbeing - Adults & Health Dir,THE TAXI PEOPLE,40,0,40,Staff Travelling Expenses,Taxicabs & limousines
Buckinghamshire Council,30.09.2022,06.09.2022,Communities,Culture & Leisure - Communities Dir,SCREWFIX DIR LTD,59.35,11.88,71.23,"Workshop - Materials,Tools & Equipment",Timber & building supplies
Buckinghamshire Council,30.09.2022,06.09.2022,"Planning, Growth & Sustainability",Planning & Regeneration - PGS,PALEOIMAGING.COM,50,0,50,Stationery & Office Supplies,Schools
Buckinghamshire Council,30.09.2022,06.09.2022,Children's Services,Education & Childrens Services - CS Dir,NEALES TAXIS LTD,84,0,84,Staff Travelling Expenses,Taxicabs & limousines
Buckinghamshire Council,30.09.2022,06.09.2022,Children's Services,Education & Childrens Services - CS Dir,BUCKINGHAMSHIRE COUNCIL,11,0,11,Sec 17: Specialist Services,Government services
Buckinghamshire Council,30.09.2022,06.09.2022,Resources,AH&R - Res Dir,GEN REGISTER OFFICE,14,0,14,Miscellaneous (Other)  Expenses,Government services
Buckinghamshire Council,30.09.2022,06.09.2022,Communities,Transport - Communities Dir,WILKO RETAIL LIMITED,10,0,10,Maintenance of Cremators Plant & Equip,Misc. general merchandise
Buckinghamshire Council,30.09.2022,06.09.2022,Adults and Health,Health & Wellbeing - Adults & Health Dir,AMZNMKTPLACE,44.95,0,44.95,Health & Safety Supplies & Services,Miscellaneous retail
Buckinghamshire Council,30.09.2022,06.09.2022,Children's Services,Education & Childrens Services - CS Dir,TAXIPAY,120,0,120,Court Orders Sec 31: Miscellaneous,Taxicabs & limousines
Buckinghamshire Council,30.09.2022,06.09.2022,Children's Services,Education & Childrens Services - CS Dir,TAXIPAY,120,0,120,Court Orders Sec 31: Miscellaneous,Taxicabs & limousines
Buckinghamshire Council,30.09.2022,06.09.2022,Children's Services,Education & Childrens Services - CS Dir,TAXIPAY,120,0,120,Court Orders Sec 31: Miscellaneous,Taxicabs & limousines
Buckinghamshire Council,30.09.2022,06.09.2022,Adults and Health,Health & Wellbeing - Adults & Health Dir,ETRMYTRIP_UK_LSEIGE,159.09,0,159.09,Staff Travelling Expenses,Travel agencies
Buckinghamshire Council,30.09.2022,06.09.2022,Adults and Health,Health & Wellbeing - Adults & Health Dir,WWW.NEWQUAYCORNWALLAIR,40,0,40,Staff Travelling Expenses,"Airports, fields & terminals"
Buckinghamshire Council,30.09.2022,06.09.2022,"Planning, Growth & Sustainability",AH&R - PGS Dir,EDMUNDSON ELECTRICAL,63,0,63,Special Projects,Electrical parts & equipment
Buckinghamshire Council,30.09.2022,06.09.2022,Communities,Housing & Homelessness & Regulatory Comm,AMZNMKTPLACE,49.9,9.98,59.88,Furniture Fittings & IT,Miscellaneous retail
Buckinghamshire Council,30.09.2022,06.09.2022,Communities,Housing & Homelessness & Regulatory Comm,AMZNMKTPLACE,0.02,0,0.02,Furniture Fittings & IT,Miscellaneous retail
Buckinghamshire Council,30.09.2022,06.09.2022,Communities,Climate Change & Environment - Community,AYLESBURY ECO STORES,106.32,0,106.32,Waste Prevention costs,Grocery stores
Buckinghamshire Council,30.09.2022,06.09.2022,Children's Services,Education & Childrens Services - CS Dir,AMZNMKTPLACE,31.47,0,31.47,Activities & General Recreation,Miscellaneous retail
Buckinghamshire Council,30.09.2022,06.09.2022,Adults and Health,Health & Wellbeing - Adults & Health Dir,POST OFFICE COUNTER,8.55,0,8.55,General Postage,Postal services
Buckinghamshire Council,30.09.2022,06.09.2022,Communities,Culture & Leisure - Communities Dir,TESCO STORE 3099,6.88,0,6.88,Events Expenditure,Grocery stores
Buckinghamshire Council,30.09.2022,06.09.2022,Children's Services,Education & Childrens Services - CS Dir,BUCKINGHAMSHIRE CNCL,11,0,11,Sec 20/31: Supp for Contact,Government services
Buckinghamshire Council,30.09.2022,06.09.2022,Resources,AH&R - Res Dir,VOUCHER EXPRESS,100,0,100,Other Employees Expenses,Misc business services
Buckinghamshire Council,30.09.2022,06.09.2022,Deputy Chief Executive,AH&R- DCE Dir,YELLOW CARS HW LTD,432,0,432,Staff Travelling Expenses,Taxicabs & limousines
Buckinghamshire Council,30.09.2022,06.09.2022,Deputy Chief Executive,AH&R- DCE Dir,THE TAXI PEOPLE,216,0,216,Staff Travelling Expenses,Taxicabs & limousines
Buckinghamshire Council,30.09.2022,06.09.2022,Resources,AH&R - Res Dir,GMO GLOBALSIGN LIM,513.6,0,513.6,Annual Licence (IT),Computer network information services
Buckinghamshire Council,30.09.2022,06.09.2022,Resources,AH&R - Res Dir,PAYPAL,73.2,0,73.2,IT - Computer Network Charges,Computer network information services
Buckinghamshire Council,30.09.2022,06.09.2022,Resources,AH&R - Res Dir,PAYPAL,129.49,0,129.49,IT - Computer Network Charges,Computer network information services
Buckinghamshire Council,30.09.2022,06.09.2022,Deputy Chief Executive,Leader - DCE,PURE GUSTO,71.06,0,71.06,General Provisions (Food),Misc non-durable goods
Buckinghamshire Council,30.09.2022,06.09.2022,Communities,Partnerships - Communities,WAITROSE 752,15,0,15,Miscellaneous (Other)  Expenses,Grocery stores
Buckinghamshire Council,30.09.2022,06.09.2022,Children's Services,Education & Childrens Services - CS Dir,WF *UK3798248984,61.99,0,61.99,Leaving Care - Grants for Care Leavers,Furniture & home furnishing
Buckinghamshire Council,30.09.2022,06.09.2022,Children's Services,Education & Childrens Services - CS Dir,WIFI: PREMIER INN,5,0,5,Computer Consumables,Computer software stores
Buckinghamshire Council,30.09.2022,06.09.2022,Children's Services,Education & Childrens Services - CS Dir,RDFURNITURE.CO.UK,410,0,410,Leaving Care - Grants for Care Leavers,Furniture & home furnishing
Buckinghamshire Council,30.09.2022,06.09.2022,Children's Services,Education & Childrens Services - CS Dir,WILKO.COM,20.95,0,20.95,Leaving Care - Grants for Care Leavers,Misc. general merchandise
Buckinghamshire Council,30.09.2022,06.09.2022,Communities,Communities - Trust Accounts,WICKES SLOUGH,64.4,0,64.4,General Repairs & Maintenance,Timber & building supplies
Buckinghamshire Council,30.09.2022,06.09.2022,"Planning, Growth & Sustainability",Planning & Regeneration - PGS,AMZNMKTPLACE,44.97,0,44.97,IT Equipment Purchase,Miscellaneous retail
Buckinghamshire Council,30.09.2022,06.09.2022,"Planning, Growth & Sustainability",AH&R - PGS Dir,GWR DIDCOT PKWY TO,80.5,0,80.5,Staff Travelling Expenses,Passenger railways
Buckinghamshire Council,30.09.2022,06.09.2022,Children's Services,Education & Childrens Services - CS Dir,LONDON DUNGEON,50,0,50,Activities & General Recreation,Tourist attractions and exhibitions
Buckinghamshire Council,30.09.2022,06.09.2022,Children's Services,Education & Childrens Services - CS Dir,TAXIPAY,24,0,24,Sec 20/31: Supp for Contact,Taxicabs & limousines
Buckinghamshire Council,30.09.2022,06.09.2022,Children's Services,Education & Childrens Services - CS Dir,AMZNMKTPLACE,272.49,0,272.49,Activities & General Recreation,Miscellaneous retail
Buckinghamshire Council,30.09.2022,06.09.2022,Children's Services,Education & Childrens Services - CS Dir,TESCO STORES 2038,70.69,0,70.69,Activities & General Recreation,Grocery stores
Buckinghamshire Council,30.09.2022,06.09.2022,Children's Services,Education & Childrens Services - CS Dir,BUCKINGHAMSHIRE CNCL,70,0,70,Sec 20/31: Financial Assistance,Government services
Buckinghamshire Council,30.09.2022,06.09.2022,Children's Services,Education & Childrens Services - CS Dir,WWW.SAFARIMK.CO.UK,36.1,0,36.1,Sec 20/31: Supp for Contact,Misc. recreational services
Buckinghamshire Council,30.09.2022,06.09.2022,Children's Services,Education & Childrens Services - CS Dir,TESCO STORE 3045,100,0,100,Activities & General Recreation,Grocery stores
Buckinghamshire Council,30.09.2022,06.09.2022,Children's Services,Education & Childrens Services - CS Dir,TESCO STORE 3045,4.32,0,4.32,Activities & General Recreation,Grocery stores
Buckinghamshire Council,30.09.2022,06.09.2022,Communities,Partnerships - Communities,BT PLC BUSINESS MOTO BPAY,4.7,0.94,5.64,Telephones,Phone services
Buckinghamshire Council,30.09.2022,06.09.2022,Communities,Partnerships - Communities,BT PLC BUSINESS MOTO BPAY,0.63,0,0.63,Telephones,Phone services
Buckinghamshire Council,30.09.2022,06.09.2022,Deputy Chief Executive,Communities - DCE,ARGOS LTD,337.95,0,337.95,Other Personal Needs,Discount stores
Buckinghamshire Council,30.09.2022,06.09.2022,Deputy Chief Executive,Communities - DCE,ARGOS LTD,55,0,55,Other Personal Needs,Discount stores
Buckinghamshire Council,30.09.2022,06.09.2022,Deputy Chief Executive,Communities - DCE,ARGOS LTD,337.95,0,337.95,Other Personal Needs,Discount stores
Buckinghamshire Council,30.09.2022,06.09.2022,Deputy Chief Executive,AH&R- DCE Dir,TRAVELODGE GB0846,12.4,0,12.4,"Courses, Conference and Seminar Fees",Travelodge
Buckinghamshire Council,30.09.2022,05.09.2022,Adults and Health,Health & Wellbeing - Adults & Health Dir,WAITROSE 177,4.25,0,4.25,General Provisions (Food),Grocery stores
Buckinghamshire Council,30.09.2022,05.09.2022,Children's Services,Education & Childrens Services - CS Dir,ARGOS LTD,133.5,0,133.5,Sec 20/31: Specialist Services,Discount stores
Buckinghamshire Council,30.09.2022,05.09.2022,Deputy Chief Executive,Communities - DCE,ARGOS LTD,35.82,0,35.82,Other Personal Needs,Discount stores
Buckinghamshire Council,30.09.2022,05.09.2022,Deputy Chief Executive,Communities - DCE,CURRYS ONLINE,220.83,44.17,265,Other Personal Needs,Electronics shops
Buckinghamshire Council,30.09.2022,05.09.2022,Deputy Chief Executive,Communities - DCE,CURRYS ONLINE,744.15,148.83,892.98,Other Personal Needs,Electronics shops
Buckinghamshire Council,30.09.2022,05.09.2022,Deputy Chief Executive,Communities - DCE,CURRYS ONLINE,0.02,0,0.02,Other Personal Needs,Electronics shops
Buckinghamshire Council,30.09.2022,05.09.2022,Deputy Chief Executive,Communities - DCE,ARGOS LTD,302.95,0,302.95,Other Personal Needs,Discount stores
Buckinghamshire Council,30.09.2022,05.09.2022,Deputy Chief Executive,Communities - DCE,ARGOS LTD,317.95,0,317.95,Other Personal Needs,Discount stores
Buckinghamshire Council,30.09.2022,05.09.2022,Children's Services,Education & Childrens Services - CS Dir,A1 TAXI SERVICE,61.6,12.32,73.92,Sec 17: Transport,Taxicabs & limousines
Buckinghamshire Council,30.09.2022,05.09.2022,Children's Services,Education & Childrens Services - CS Dir,A1 TAXI SERVICE,0.08,0,0.08,Sec 17: Transport,Taxicabs & limousines
Buckinghamshire Council,30.09.2022,05.09.2022,Children's Services,Education & Childrens Services - CS Dir,WWW.BUCKINGHAMSHIRE.GOV,"1,245.70",0,"1,245.70",Leaving Care  - Financial Assistance,Government services
Buckinghamshire Council,30.09.2022,05.09.2022,Children's Services,Education & Childrens Services - CS Dir,AMAZON.CO.UK,19.93,0,19.93,Stationery & Office Supplies,Direct sales companies
Buckinghamshire Council,30.09.2022,05.09.2022,Children's Services,Education & Childrens Services - CS Dir,TESCO STORES 2038,28.35,0,28.35,General Provisions (Food),Grocery stores
Buckinghamshire Council,30.09.2022,05.09.2022,Children's Services,Education & Childrens Services - CS Dir,MARKS&SPENCER PLC SA,39,0,39,Activities & General Recreation,Grocery stores
Buckinghamshire Council,30.09.2022,05.09.2022,Children's Services,Education & Childrens Services - CS Dir,SPORTSDIRECT 210,83.63,0,83.63,Other Personal Needs,Sporting goods shops
Buckinghamshire Council,30.09.2022,05.09.2022,Children's Services,Education & Childrens Services - CS Dir,AMZNMKTPLACE,20.5,0,20.5,Cleaning Materials,Miscellaneous retail
Buckinghamshire Council,30.09.2022,05.09.2022,Children's Services,Education & Childrens Services - CS Dir,AMAZON.CO.UK,47.88,0,47.88,Stationery & Office Supplies,Direct sales companies
Buckinghamshire Council,30.09.2022,05.09.2022,Children's Services,Education & Childrens Services - CS Dir,AMZNMKTPLACE,26.9,0,26.9,Cleaning Materials,Miscellaneous retail
Buckinghamshire Council,30.09.2022,05.09.2022,"Planning, Growth & Sustainability",Climate Change & Environment - PGS,INPRINT LITHO LIMITED,88.8,0,88.8,Printing & Stationery,Publishing & printing services
Buckinghamshire Council,30.09.2022,05.09.2022,Communities,Culture & Leisure - Communities Dir,B & Q 1262,153.65,0,153.65,"Workshop - Materials,Tools & Equipment",Home supply warehouse stores
Buckinghamshire Council,30.09.2022,05.09.2022,Communities,Culture & Leisure - Communities Dir,B & Q 1262,-144,0,-144,"Workshop - Materials,Tools & Equipment",Home supply warehouse stores
Buckinghamshire Council,30.09.2022,05.09.2022,Children's Services,Education & Childrens Services - CS Dir,HM PASSPORT OFFICE,75.5,0,75.5,Sec 20/31: Financial Assistance,Government services
Buckinghamshire Council,30.09.2022,05.09.2022,Children's Services,Education & Childrens Services - CS Dir,NEALES TAXIS LTD,84,0,84,Sec 20/31: Transport,Taxicabs & limousines
Buckinghamshire Council,30.09.2022,05.09.2022,"Planning, Growth & Sustainability",Housing & Homelessness & Regulatory PGS,LAND REGISTRY ECOM CCC,3,0,3,Homelessness,Government services
Buckinghamshire Council,30.09.2022,05.09.2022,Resources,AH&R - Res Dir,GEN REGISTER OFFICE,14,0,14,Miscellaneous (Other)  Expenses,Government services
Buckinghamshire Council,30.09.2022,05.09.2022,Communities,Culture & Leisure - Communities Dir,WORDPRESS 7WD2YWFKJP,256,0,256,Computer Software Licences & Purchase,Computer software stores
